Workbook

Sheet Disclaimer
B4: Oklahoma Department of Transportation
B5: US 281 Bridgeport Bridge over South Canadian River
B6: 18/05/2020
B13: Disclaimer
B14: ="The Model is provided to "&Client.Name&" on the basis that it is strictly private and confidential. The Recipients agree to not disclose that information to any person or entity except with the prior consent of HDR Inc. (HDR) or as required by law." -> The Model is provided to Oklahoma Department of Transportation on the basis that it is strictly private and confidential. The Recipients agree to not disclose that information to any person or entity except with the prior consent of HDR Inc. (HDR) or as required by law.
B17: ="HDR retains all intellectual property with respect to this Model. The Recipients agree to use this Model only for the purpose of performing analysis in support of the "&Project.Name&" project. The Model must not be used for any other purpose. " -> HDR retains all intellectual property with respect to this Model. The Recipients agree to use this Model only for the purpose of performing analysis in support of the US 281 Bridgeport Bridge over South Canadian River project. The Model must not be used for any other purpose.
B20: By retaining and using this Model, the Recipients represent to HDR that they are capable of making their own independent assessment as to the validity of the assumptions, data and results contained in this Model.
B22: The Model may be a development version and may not be complete or, in the event that development of the Model has concluded, material events may have occurred since completion which are not reflected in the Model. In consultation with the client, HDR used what was deemed the best available data at the time of analysis and makes no warranties as to the accuracy of this information or completeness of the Model.

Sheet Results
B1: Cost-Benefit Analysis Results
B3: All values are in 2018$ millions
B4: Benefit Category | C4: Impact # | D4: Over Years 2019-2053
D5: Undiscounted | E5: 0.07 | F5: 0.03
B6: Travel Time Savings | C6: 1 | D6: =(SUM(D28:AL28))/10^6 -> 104.5824218 | E6: =(SUM(D42:AL42))/10^6 -> 30.00444299 | F6: =(SUM(D56:AL56))/10^6 -> 58.14514494
B7: Vehicle Operating Cost Savings | C7: 2 | D7: 102.0713506 | E7: 29.28402273 | F7: 56.7490537
B8: Reduction in Accident Costs | C8: 3 | D8: 61.79749411 | E8: 17.72955107 | F8: 34.35782218
B9: Environmental Cost Savings | C9: 4 | D9: 0.5689273255 | E9: 0.2339242992 | F9: 0.3754944588
B10: Agency Cost Saving | C10: 5 | D10: 3.00672023 | E10: 1.111743299 | F10: 1.853073072
B11: O&M Costs | C11: 6 | D11: -13.29554168 | E11: -2.193847247 | F11: -5.819984907
B12: Capital Costs | C12: C1 | D12: =((SUM(D34:AL34))/10^6) -> -35.0214736 | E12: =((SUM(D48:AL48))/10^6) -> -27.85843383 | F12: -31.68012192
B13: NPV | D13: =SUM(D6:D12) -> 223.7098988 | E13: =SUM(E6:E12) -> 48.31140331 | F13: =SUM(F6:F12) -> 113.9804815
B15: All values are in 2018$ millions | D15: Over Years 2019-2053
B16: Financial Metrics | D16: Undiscounted | E16: 0.07 | F16: 0.03
B17: Total Benefits | D17: =(SUM(D35:AL35))/10^6 -> 272.026914 | E17: =(SUM(D49:AL49))/10^6 -> 78.36368439 | F17: =(SUM(D63:AL63))/10^6 -> 151.4805883
B18: Total O&M Costs | D18: =(-SUM(D33:AL33)/10^6) -> 13.29554168 | E18: =-(SUM(D47:AL47)/10^6) -> 2.193847247 | F18: =-(SUM(D61:AL61)/10^6) -> 5.819984907
B19: Total Costs | D19: =((-SUM(D34:AL34))/10^6) -> 35.0214736 | E19: =((-SUM(D48:AL48))/10^6) -> 27.85843383 | F19: =(-SUM(D62:AL62))/10^6 -> 31.68012192
B20: NPV | D20: =D13 -> 223.7098988 | E20: =E13 -> 48.31140331 | F20: =F13 -> 113.9804815
B21: ROI | D21: =IFERROR(D20/D19,"-") -> 6.387792281 | E21: =IFERROR(E20/E19,"-") -> 1.734175137 | F21: =IFERROR(F20/F19,"-") -> 3.597854889
B22: BCR | D22: =IFERROR((D17-D18)/D19,"-") -> 7.387792281 | E22: =IFERROR((E17-E18)/E19,"-") -> 2.734175137 | F22: =IFERROR((F17-F18)/F19,"-") -> 4.597854889
B23: Payback Period | D23: =IFERROR((L27-H27+1)+(-L38/M37),"-") -> 5.94162051
B24: IRR | D24: =IFERROR(IRR(D37:AL37),"-") -> 0.1898060209
B26: Results - Undiscounted 2018$
B27: Impact Category | C27: Total | D27: =BaseYear -> 2019 | E27: =D27+1 -> 2020 | F27: =E27+1 -> 2021 | G27: 2022 | H27: 2023 | I27: 2024 | J27: 2025 | K27: 2026 | L27: 2027 | M27: 2028 | N27: 2029 | O27: 2030 | P27: 2031 | Q27: 2032 | R27: 2033 | S27: 2034 | T27: 2035 | U27: 2036 | V27: 2037 | W27: 2038 | X27: 2039 | Y27: 2040 | Z27: 2041 | AA27: 2042 | AB27: 2043 | AC27: =AB27+1 -> 2044 | AD27: =AC27+1 -> 2045 | AE27: =AD27+1 -> 2046 | AF27: =AE27+1 -> 2047 | AG27: =AF27+1 -> 2048 | AH27: =AG27+1 -> 2049 | AI27: =AH27+1 -> 2050 | AJ27: =AI27+1 -> 2051 | AK27: =AJ27+1 -> 2052 | AL27: =AK27+1 -> 2053
B28: Travel Time Savings | C28: =SUM(D28:AL28)/10^6 -> 104.5824218 | D28: ='Calc-1'!D35 -> 0 | E28: ='Calc-1'!E35 -> 0 | F28: ='Calc-1'!F35 -> 0 | G28: ='Calc-1'!G35 -> 0 | H28: ='Calc-1'!H35 -> 0 | I28: ='Calc-1'!I35 -> 2586302.563 | J28: ='Calc-1'!J35 -> 2637494.151 | K28: ='Calc-1'!K35 -> 2689698.993 | L28: ='Calc-1'!L35 -> 2742937.142 | M28: ='Calc-1'!M35 -> 2797229.053 | N28: ='Calc-1'!N35 -> 2852595.583 | O28: ='Calc-1'!O35 -> 2909058.002 | P28: ='Calc-1'!P35 -> 2966638.001 | Q28: ='Calc-1'!Q35 -> 3025357.701 | R28: ='Calc-1'!R35 -> 3085239.661 | S28: ='Calc-1'!S35 -> 3146306.885 | T28: ='Calc-1'!T35 -> 3208582.834 | U28: ='Calc-1'!U35 -> 3272091.432 | V28: ='Calc-1'!V35 -> 3336857.079 | W28: ='Calc-1'!W35 -> 3402904.654 | X28: ='Calc-1'!X35 -> 3470259.532 | Y28: ='Calc-1'!Y35 -> 3538947.589 | Z28: ='Calc-1'!Z35 -> 3608995.212 | AA28: ='Calc-1'!AA35 -> 3680429.312 | AB28: ='Calc-1'!AB35 -> 3753277.333 | AC28: ='Calc-1'!AC35 -> 3827567.259 | AD28: ='Calc-1'!AD35 -> 3903327.632 | AE28: ='Calc-1'!AE35 -> 3980587.557 | AF28: ='Calc-1'!AF35 -> 4059376.714 | AG28: ='Calc-1'!AG35 -> 4139725.372 | AH28: ='Calc-1'!AH35 -> 4221664.4 | AI28: ='Calc-1'!AI35 -> 4305225.275 | AJ28: ='Calc-1'!AJ35 -> 4390440.099 | AK28: ='Calc-1'!AK35 -> 4477341.611 | AL28: ='Calc-1'!AL35 -> 4565963.194
B29: Vehicle Operating Cost Savings | C29: =SUM(D29:AL29)/10^6 -> 102.0713506 | D29: ='Calc-2'!D33 -> 0 | E29: ='Calc-2'!E33 -> 0 | F29: ='Calc-2'!F33 -> 0 | G29: ='Calc-2'!G33 -> 0 | H29: ='Calc-2'!H33 -> 0 | I29: ='Calc-2'!I33 -> 2524204.268 | J29: ='Calc-2'!J33 -> 2574166.723 | K29: ='Calc-2'!K33 -> 2625118.103 | L29: ='Calc-2'!L33 -> 2677077.98 | M29: ='Calc-2'!M33 -> 2730066.318 | N29: ='Calc-2'!N33 -> 2784103.472 | O29: ='Calc-2'!O33 -> 2839210.203 | P29: ='Calc-2'!P33 -> 2895407.68 | Q29: ='Calc-2'!Q33 -> 2952717.494 | R29: ='Calc-2'!R33 -> 3011161.66 | S29: ='Calc-2'!S33 -> 3070762.633 | T29: ='Calc-2'!T33 -> 3131543.308 | U29: ='Calc-2'!U33 -> 3193527.036 | V29: ='Calc-2'!V33 -> 3256737.63 | W29: ='Calc-2'!W33 -> 3321199.374 | X29: ='Calc-2'!X33 -> 3386937.031 | Y29: ='Calc-2'!Y33 -> 3453975.856 | Z29: ='Calc-2'!Z33 -> 3522341.604 | AA29: ='Calc-2'!AA33 -> 3592060.539 | AB29: ='Calc-2'!AB33 -> 3663159.446 | AC29: ='Calc-2'!AC33 -> 3735665.638 | AD29: ='Calc-2'!AD33 -> 3809606.97 | AE29: ='Calc-2'!AE33 -> 3885011.848 | AF29: ='Calc-2'!AF33 -> 3961909.242 | AG29: ='Calc-2'!AG33 -> 4040328.693 | AH29: ='Calc-2'!AH33 -> 4120300.327 | AI29: ='Calc-2'!AI33 -> 4201854.868 | AJ29: ='Calc-2'!AJ33 -> 4285023.646 | AK29: ='Calc-2'!AK33 -> 4369838.613 | AL29: ='Calc-2'!AL33 -> 4456332.352
B30: Reduction in Accident Costs | C30: 61.79749411 | D30: ='Calc-3'!D42 -> 0 | E30: ='Calc-3'!E42 -> 0 | F30: ='Calc-3'!F42 -> 0 | G30: ='Calc-3'!G42 -> 0 | H30: ='Calc-3'!H42 -> 0 | I30: ='Calc-3'!I42 -> 1528239.781 | J30: ='Calc-3'!J42 -> 1558488.764 | K30: ='Calc-3'!K42 -> 1589336.475 | L30: ='Calc-3'!L42 -> 1620794.766 | M30: ='Calc-3'!M42 -> 1652875.722 | N30: ='Calc-3'!N42 -> 1685591.667 | O30: ='Calc-3'!O42 -> 1718955.17 | P30: ='Calc-3'!P42 -> 1752979.049 | Q30: ='Calc-3'!Q42 -> 1787676.375 | R30: ='Calc-3'!R42 -> 1823060.476 | S30: ='Calc-3'!S42 -> 1859144.948 | T30: ='Calc-3'!T42 -> 1895943.652 | U30: ='Calc-3'!U42 -> 1933470.726 | V30: ='Calc-3'!V42 -> 1971740.586 | W30: ='Calc-3'!W42 -> 2010767.934 | X30: ='Calc-3'!X42 -> 2050567.765 | Y30: ='Calc-3'!Y42 -> 2091155.368 | Z30: ='Calc-3'!Z42 -> 2132546.335 | AA30: ='Calc-3'!AA42 -> 2174756.568 | AB30: ='Calc-3'!AB42 -> 2217802.283 | AC30: ='Calc-3'!AC42 -> 2261700.016 | AD30: ='Calc-3'!AD42 -> 2306466.633 | AE30: ='Calc-3'!AE42 -> 2352119.331 | AF30: ='Calc-3'!AF42 -> 2398675.649 | AG30: ='Calc-3'!AG42 -> 2446153.472 | AH30: ='Calc-3'!AH42 -> 2494571.041 | AI30: ='Calc-3'!AI42 -> 2543946.955 | AJ30: ='Calc-3'!AJ42 -> 2594300.184 | AK30: ='Calc-3'!AK42 -> 2645650.072 | AL30: ='Calc-3'!AL42 -> 2698016.346
B31: Environmental Cost Savings | C31: 0.5689273255 | D31: ='Cal-4'!D33 -> 0 | E31: ='Cal-4'!E33 -> 0 | F31: ='Cal-4'!F33 -> 0 | G31: ='Cal-4'!G33 -> 0 | H31: ='Cal-4'!H33 -> 0 | I31: ='Cal-4'!I33 -> 30859.23937 | J31: ='Cal-4'!J33 -> 31470.04705 | K31: ='Cal-4'!K33 -> 32092.94467 | L31: ='Cal-4'!L33 -> 32728.17151 | M31: ='Cal-4'!M33 -> 33375.97162 | N31: ='Cal-4'!N33 -> 34036.59386 | O31: ='Cal-4'!O33 -> 34710.29202 | P31: ='Cal-4'!P33 -> 35397.32493 | Q31: ='Cal-4'!Q33 -> 36097.95652 | R31: ='Cal-4'!R33 -> 36812.45596 | S31: ='Cal-4'!S33 -> 37541.09774 | T31: ='Cal-4'!T33 -> 38284.16177 | U31: ='Cal-4'!U33 -> 7276.460888 | V31: ='Cal-4'!V33 -> 7420.486415 | W31: ='Cal-4'!W33 -> 7567.362689 | X31: ='Cal-4'!X33 -> 7717.146137 | Y31: ='Cal-4'!Y33 -> 7869.8943 | Z31: ='Cal-4'!Z33 -> 8025.665861 | AA31: ='Cal-4'!AA33 -> 8184.520664 | AB31: ='Cal-4'!AB33 -> 8346.519734 | AC31: ='Cal-4'!AC33 -> 8511.725309 | AD31: ='Cal-4'!AD33 -> 8680.200855 | AE31: ='Cal-4'!AE33 -> 8852.011096 | AF31: ='Cal-4'!AF33 -> 9027.222038 | AG31: ='Cal-4'!AG33 -> 9205.90099 | AH31: ='Cal-4'!AH33 -> 9388.116598 | AI31: ='Cal-4'!AI33 -> 9573.938862 | AJ31: ='Cal-4'!AJ33 -> 9763.439172 | AK31: ='Cal-4'!AK33 -> 9956.690327 | AL31: ='Cal-4'!AL33 -> 10153.76657
B32: Agency Cost Saving | C32: 3.00672023 | D32: ='Project Data'!D18 -> 0 | E32: ='Project Data'!E18 -> 44876.42135 | F32: ='Project Data'!F18 -> 89752.84269 | G32: ='Project Data'!G18 -> 89752.84269 | H32: ='Project Data'!H18 -> 89752.84269 | I32: ='Project Data'!I18 -> 89752.84269 | J32: ='Project Data'!J18 -> 89752.84269 | K32: ='Project Data'!K18 -> 89752.84269 | L32: ='Project Data'!L18 -> 89752.84269 | M32: ='Project Data'!M18 -> 89752.84269 | N32: ='Project Data'!N18 -> 89752.84269 | O32: ='Project Data'!O18 -> 89752.84269 | P32: ='Project Data'!P18 -> 89752.84269 | Q32: ='Project Data'!Q18 -> 89752.84269 | R32: ='Project Data'!R18 -> 89752.84269 | S32: ='Project Data'!S18 -> 89752.84269 | T32: ='Project Data'!T18 -> 89752.84269 | U32: ='Project Data'!U18 -> 89752.84269 | V32: ='Project Data'!V18 -> 89752.84269 | W32: ='Project Data'!W18 -> 89752.84269 | X32: ='Project Data'!X18 -> 89752.84269 | Y32: ='Project Data'!Y18 -> 89752.84269 | Z32: ='Project Data'!Z18 -> 89752.84269 | AA32: ='Project Data'!AA18 -> 89752.84269 | AB32: ='Project Data'!AB18 -> 89752.84269 | AC32: ='Project Data'!AC18 -> 89752.84269 | AD32: ='Project Data'!AD18 -> 89752.84269 | AE32: ='Project Data'!AE18 -> 89752.84269 | AF32: ='Project Data'!AF18 -> 89752.84269 | AG32: ='Project Data'!AG18 -> 89752.84269 | AH32: ='Project Data'!AH18 -> 89752.84269 | AI32: ='Project Data'!AI18 -> 89752.84269 | AJ32: ='Project Data'!AJ18 -> 89752.84269 | AK32: ='Project Data'!AK18 -> 89752.84269 | AL32: ='Project Data'!AL18 -> 89752.84269
B33: O&M Costs | C33: -13.29554168 | D33: ='Project Data'!D15 -> 0 | E33: =-'Project Data'!E15 -> 0 | F33: =-'Project Data'!F15 -> 0 | G33: =-'Project Data'!G15 -> 0 | H33: =-'Project Data'!H15 -> 0 | I33: =-'Project Data'!I15 -> 0 | J33: =-'Project Data'!J15 -> -4809.905825 | K33: =-'Project Data'!K15 -> 0 | L33: =-'Project Data'!L15 -> -4809.905825 | M33: =-'Project Data'!M15 -> 0 | N33: =-'Project Data'!N15 -> -4809.905825 | O33: =-'Project Data'!O15 -> 0 | P33: =-'Project Data'!P15 -> -4809.905825 | Q33: =-'Project Data'!Q15 -> 0 | R33: =-'Project Data'!R15 -> -1736376.003 | S33: =-'Project Data'!S15 -> 0 | T33: =-'Project Data'!T15 -> -4809.905825 | U33: =-'Project Data'!U15 -> 0 | V33: =-'Project Data'!V15 -> -4809.905825 | W33: =-'Project Data'!W15 -> -1025471.922 | X33: =-'Project Data'!X15 -> -4809.905825 | Y33: =-'Project Data'!Y15 -> 0 | Z33: =-'Project Data'!Z15 -> -4809.905825 | AA33: =-'Project Data'!AA15 -> 0 | AB33: =-'Project Data'!AB15 -> -1736376.003 | AC33: =-'Project Data'!AC15 -> 0 | AD33: =-'Project Data'!AD15 -> -4809.905825 | AE33: =-'Project Data'!AE15 -> 0 | AF33: =-'Project Data'!AF15 -> -4809.905825 | AG33: =-'Project Data'!AG15 -> 0 | AH33: =-'Project Data'!AH15 -> -4809.905825 | AI33: =-'Project Data'!AI15 -> 0 | AJ33: =-'Project Data'!AJ15 -> -4809.905825 | AK33: =-'Project Data'!AK15 -> 0 | AL33: =-'Project Data'!AL15 -> -8739598.884
B34: Capital Costs | C34: -35.0214736 | D34: =-'Project Data'!D12 -> -661851.6993 | E34: =-'Project Data'!E12 -> 0 | F34: =-'Project Data'!F12 -> -791289.151 | G34: =-'Project Data'!G12 -> -16784166.38 | H34: =-'Project Data'!H12 -> -16784166.38 | I34: =-'Project Data'!I12 -> 0 | J34: =-'Project Data'!J12 -> 0 | K34: =-'Project Data'!K12 -> 0 | L34: =-'Project Data'!L12 -> 0 | M34: =-'Project Data'!M12 -> 0 | N34: =-'Project Data'!N12 -> 0 | O34: =-'Project Data'!O12 -> 0 | P34: =-'Project Data'!P12 -> 0 | Q34: =-'Project Data'!Q12 -> 0 | R34: =-'Project Data'!R12 -> 0 | S34: =-'Project Data'!S12 -> 0 | T34: =-'Project Data'!T12 -> 0 | U34: =-'Project Data'!U12 -> 0 | V34: =-'Project Data'!V12 -> 0 | W34: =-'Project Data'!W12 -> 0 | X34: =-'Project Data'!X12 -> 0 | Y34: =-'Project Data'!Y12 -> 0 | Z34: =-'Project Data'!Z12 -> 0 | AA34: =-'Project Data'!AA12 -> 0 | AB34: =-'Project Data'!AB12 -> 0 | AC34: =-'Project Data'!AC12 -> 0 | AD34: =-'Project Data'!AD12 -> 0 | AE34: =-'Project Data'!AE12 -> 0 | AF34: =-'Project Data'!AF12 -> 0 | AG34: =-'Project Data'!AG12 -> 0 | AH34: =-'Project Data'!AH12 -> 0 | AI34: =-'Project Data'!AI12 -> 0 | AJ34: =-'Project Data'!AJ12 -> 0 | AK34: =-'Project Data'!AK12 -> 0 | AL34: =-'Project Data'!AL12 -> 0
B35: Total Benefits | C35: =SUM(D35:AL35)/10^6 -> 272.026914 | D35: =SUM(D28:D32) -> 0 | E35: =SUM(E28:E32) -> 44876.42135 | F35: =SUM(F28:F32) -> 89752.84269 | G35: 89752.84269 | H35: 89752.84269 | I35: 6759358.695 | J35: 6891372.528 | K35: 7025999.358 | L35: 7163290.903 | M35: 7303299.908 | N35: 7446080.159 | O35: 7591686.51 | P35: 7740174.898 | Q35: 7891602.369 | R35: 8046027.096 | S35: 8203508.406 | T35: 8364106.798 | U35: 8496118.498 | V35: 8662508.624 | W35: 8832192.167 | X35: 9005234.317 | Y35: 9181701.549 | Z35: 9361661.659 | AA35: 9545183.783 | AB35: 9732338.423 | AC35: =SUM(AC28:AC32) -> 9923197.481 | AD35: 10117834.28 | AE35: 10316323.59 | AF35: 10518741.67 | AG35: 10725166.28 | AH35: 10935676.73 | AI35: 11150353.88 | AJ35: 11369280.21 | AK35: 11592539.83 | AL35: 11820218.5
B36: Total Costs | C36: =SUM(D36:AL36)/10^6 -> -48.31701528 | D36: =SUM(D33:D34) -> -661851.6993 | E36: =SUM(E33:E34) -> 0 | F36: -791289.151 | G36: -16784166.38 | H36: -16784166.38 | I36: 0 | J36: -4809.905825 | K36: 0 | L36: -4809.905825 | M36: 0 | N36: -4809.905825 | O36: 0 | P36: -4809.905825 | Q36: 0 | R36: -1736376.003 | S36: 0 | T36: -4809.905825 | U36: 0 | V36: -4809.905825 | W36: -1025471.922 | X36: -4809.905825 | Y36: 0 | Z36: -4809.905825 | AA36: 0 | AB36: -1736376.003 | AC36: =SUM(AC33:AC34) -> 0 | AD36: -4809.905825 | AE36: 0 | AF36: -4809.905825 | AG36: 0 | AH36: -4809.905825 | AI36: 0 | AJ36: -4809.905825 | AK36: 0 | AL36: -8739598.884
B37: Net Impacts | C37: =SUM(D37:AL37)/10^6 -> 223.7098988 | D37: =SUM(D28:D34) -> -661851.6993 | E37: =SUM(E28:E34) -> 44876.42135 | F37: =SUM(F28:F34) -> -701536.3083 | G37: -16694413.53 | H37: -16694413.53 | I37: 6759358.695 | J37: 6886562.622 | K37: 7025999.358 | L37: 7158480.997 | M37: 7303299.908 | N37: 7441270.253 | O37: 7591686.51 | P37: 7735364.992 | Q37: 7891602.369 | R37: 6309651.094 | S37: 8203508.406 | T37: 8359296.893 | U37: 8496118.498 | V37: 8657698.718 | W37: 7806720.246 | X37: 9000424.411 | Y37: 9181701.549 | Z37: 9356851.754 | AA37: 9545183.783 | AB37: =SUM(AB28:AB34) -> 7995962.421 | AC37: =SUM(AC28:AC34) -> 9923197.481 | AD37: 10113024.37 | AE37: 10316323.59 | AF37: 10513931.76 | AG37: 10725166.28 | AH37: 10930866.82 | AI37: 11150353.88 | AJ37: 11364470.31 | AK37: 11592539.83 | AL37: 3080619.617
B38: Cumulative Net Impacts | D38: =D37 -> -661851.6993 | E38: =D38+E37 -> -616975.278 | F38: =E38+F37 -> -1318511.586 | G38: =F38+G37 -> -18012925.12 | H38: =G38+H37 -> -34707338.65 | I38: -27947979.96 | J38: -21061417.34 | K38: -14035417.98 | L38: -6876936.981 | M38: 426362.9263 | N38: 7867633.18 | O38: 15459319.69 | P38: 23194684.68 | Q38: 31086287.05 | R38: 37395938.14 | S38: 45599446.55 | T38: 53958743.44 | U38: 62454861.94 | V38: 71112560.66 | W38: 78919280.9 | X38: 87919705.32 | Y38: 97101406.86 | Z38: 106458258.6 | AA38: 116003442.4 | AB38: 123999404.8 | AC38: =AB38+AC37 -> 133922602.3 | AD38: =AC38+AD37 -> 144035626.7 | AE38: =AD38+AE37 -> 154351950.3 | AF38: =AE38+AF37 -> 164865882 | AG38: =AF38+AG37 -> 175591048.3 | AH38: =AG38+AH37 -> 186521915.1 | AI38: =AH38+AI37 -> 197672269 | AJ38: =AI38+AJ37 -> 209036739.3 | AK38: =AJ38+AK37 -> 220629279.1 | AL38: =AK38+AL37 -> 223709898.8
B40: Results - 7% 2018$
B41: Impact Category | C41: Total | D41: =BaseYear -> 2019 | E41: =D41+1 -> 2020 | F41: 2021 | G41: 2022 | H41: 2023 | I41: 2024 | J41: 2025 | K41: 2026 | L41: 2027 | M41: 2028 | N41: 2029 | O41: 2030 | P41: 2031 | Q41: 2032 | R41: 2033 | S41: 2034 | T41: 2035 | U41: 2036 | V41: 2037 | W41: 2038 | X41: 2039 | Y41: 2040 | Z41: 2041 | AA41: 2042 | AB41: 2043 | AC41: =AB41+1 -> 2044 | AD41: =AC41+1 -> 2045 | AE41: =AD41+1 -> 2046 | AF41: =AE41+1 -> 2047 | AG41: =AF41+1 -> 2048 | AH41: =AG41+1 -> 2049 | AI41: =AH41+1 -> 2050 | AJ41: =AI41+1 -> 2051 | AK41: =AJ41+1 -> 2052 | AL41: =AK41+1 -> 2053
B42: Travel Time Savings | C42: =SUM(D42:AL42)/10^6 -> 30.00444299 | D42: ='Calc-1'!D36 -> 0 | E42: ='Calc-1'!E36 -> 0 | F42: ='Calc-1'!F36 -> 0 | G42: ='Calc-1'!G36 -> 0 | H42: ='Calc-1'!H36 -> 0 | I42: ='Calc-1'!I36 -> 1843997.984 | J42: ='Calc-1'!J36 -> 1757473.718 | K42: ='Calc-1'!K36 -> 1675009.353 | L42: ='Calc-1'!L36 -> 1596414.39 | M42: ='Calc-1'!M36 -> 1521507.268 | N42: ='Calc-1'!N36 -> 1450114.945 | O42: ='Calc-1'!O36 -> 1382072.501 | P42: ='Calc-1'!P36 -> 1317222.751 | Q42: ='Calc-1'!Q36 -> 1255415.888 | R42: ='Calc-1'!R36 -> 1196509.133 | S42: ='Calc-1'!S36 -> 1140366.407 | T42: ='Calc-1'!T36 -> 1086858.016 | U42: ='Calc-1'!U36 -> 1035860.351 | V42: ='Calc-1'!V36 -> 987255.6035 | W42: ='Calc-1'!W36 -> 940931.4933 | X42: ='Calc-1'!X36 -> 896781.0078 | Y42: ='Calc-1'!Y36 -> 854702.156 | Z42: ='Calc-1'!Z36 -> 814597.7324 | AA42: ='Calc-1'!AA36 -> 776375.0928 | AB42: ='Calc-1'!AB36 -> 739945.9399 | AC42: ='Calc-1'!AC36 -> 705226.1194 | AD42: ='Calc-1'!AD36 -> 672135.426 | AE42: ='Calc-1'!AE36 -> 640597.4176 | AF42: ='Calc-1'!AF36 -> 610539.2389 | AG42: ='Calc-1'!AG36 -> 581891.4531 | AH42: ='Calc-1'!AH36 -> 554587.8818 | AI42: ='Calc-1'!AI36 -> 528565.4514 | AJ42: ='Calc-1'!AJ36 -> 503764.0483 | AK42: ='Calc-1'!AK36 -> 480126.3792 | AL42: ='Calc-1'!AL36 -> 457597.8392
B43: Vehicle Operating Cost Savings | C43: =SUM(D43:AL43)/10^6 -> 29.28402273 | D43: ='Calc-2'!D34 -> 0 | E43: ='Calc-2'!E34 -> 0 | F43: ='Calc-2'!F34 -> 0 | G43: ='Calc-2'!G34 -> 0 | H43: ='Calc-2'!H34 -> 0 | I43: ='Calc-2'!I34 -> 1799722.758 | J43: ='Calc-2'!J34 -> 1715275.979 | K43: ='Calc-2'!K34 -> 1634791.621 | L43: ='Calc-2'!L34 -> 1558083.758 | M43: ='Calc-2'!M34 -> 1484975.19 | N43: ='Calc-2'!N34 -> 1415297.029 | O43: ='Calc-2'!O34 -> 1348888.315 | P43: ='Calc-2'!P34 -> 1285595.637 | Q43: ='Calc-2'!Q34 -> 1225272.785 | R43: ='Calc-2'!R34 -> 1167780.407 | S43: ='Calc-2'!S34 -> 1112985.694 | T43: ='Calc-2'!T34 -> 1060762.063 | U43: ='Calc-2'!U34 -> 1010988.875 | V43: ='Calc-2'!V34 -> 963551.1498 | W43: ='Calc-2'!W34 -> 918339.3024 | X43: ='Calc-2'!X34 -> 875248.89 | Y43: ='Calc-2'!Y34 -> 834180.3705 | Z43: ='Calc-2'!Z34 -> 795038.8723 | AA43: ='Calc-2'!AA34 -> 757733.9755 | AB43: ='Calc-2'!AB34 -> 722179.503 | AC43: ='Calc-2'!AC34 -> 688293.3212 | AD43: ='Calc-2'!AD34 -> 655997.1503 | AE43: ='Calc-2'!AE34 -> 625216.3837 | AF43: ='Calc-2'!AF34 -> 595879.9155 | AG43: ='Calc-2'!AG34 -> 567919.976 | AH43: ='Calc-2'!AH34 -> 541271.9758 | AI43: ='Calc-2'!AI34 -> 515874.3558 | AJ43: ='Calc-2'!AJ34 -> 491668.4456 | AK43: ='Calc-2'!AK34 -> 468598.3276 | AL43: ='Calc-2'!AL34 -> 446610.7081
B44: Reduction in Accident Costs | C44: 17.72955107 | D44: ='Calc-3'!D43 -> 0 | E44: ='Calc-3'!E43 -> 0 | F44: ='Calc-3'!F43 -> 0 | G44: ='Calc-3'!G43 -> 0 | H44: ='Calc-3'!H43 -> 0 | I44: ='Calc-3'!I43 -> 1089613.843 | J44: ='Calc-3'!J43 -> 1038486.869 | K44: ='Calc-3'!K43 -> 989758.8796 | L44: ='Calc-3'!L43 -> 943317.3104 | M44: ='Calc-3'!M43 -> 899054.8773 | N44: ='Calc-3'!N43 -> 856869.3308 | O44: ='Calc-3'!O43 -> 816663.2188 | P44: ='Calc-3'!P43 -> 778343.6622 | Q44: ='Calc-3'!Q43 -> 741822.1399 | R44: ='Calc-3'!R43 -> 707014.2842 | S44: ='Calc-3'!S43 -> 673839.6863 | T44: ='Calc-3'!T43 -> 642221.7104 | U44: ='Calc-3'!U43 -> 612087.3164 | V44: ='Calc-3'!V43 -> 583366.8917 | W44: ='Calc-3'!W43 -> 555994.0896 | X44: ='Calc-3'!X43 -> 529905.6771 | Y44: ='Calc-3'!Y43 -> 505041.3877 | Z44: ='Calc-3'!Z43 -> 481343.7831 | AA44: ='Calc-3'!AA43 -> 458758.12 | AB44: ='Calc-3'!AB43 -> 437232.2238 | AC44: ='Calc-3'!AC43 -> 416716.3678 | AD44: ='Calc-3'!AD43 -> 397163.159 | AE44: ='Calc-3'!AE43 -> 378527.4279 | AF44: ='Calc-3'!AF43 -> 360766.1245 | AG44: ='Calc-3'!AG43 -> 343838.2189 | AH44: ='Calc-3'!AH43 -> 327704.6062 | AI44: ='Calc-3'!AI43 -> 312328.0165 | AJ44: ='Calc-3'!AJ43 -> 297672.9288 | AK44: ='Calc-3'!AK43 -> 283705.4887 | AL44: ='Calc-3'!AL43 -> 270393.4302
B45: Environmental Cost Savings | C45: 0.2339242992 | D45: ='Cal-4'!D34 -> 0 | E45: ='Cal-4'!E34 -> 0 | F45: ='Cal-4'!F34 -> 0 | G45: ='Cal-4'!G34 -> 0 | H45: ='Cal-4'!H34 -> 0 | I45: ='Cal-4'!I34 -> 22002.21118 | J45: ='Cal-4'!J34 -> 20969.82114 | K45: ='Cal-4'!K34 -> 19985.87301 | L45: ='Cal-4'!L34 -> 19048.09379 | M45: ='Cal-4'!M34 -> 18154.31715 | N45: ='Cal-4'!N34 -> 17302.47839 | O45: ='Cal-4'!O34 -> 16490.6097 | P45: ='Cal-4'!P34 -> 15716.8356 | Q45: ='Cal-4'!Q34 -> 14979.3686 | R45: ='Cal-4'!R34 -> 14276.50511 | S45: ='Cal-4'!S34 -> 13606.62145 | T45: ='Cal-4'!T34 -> 12968.17014 | U45: ='Cal-4'!U34 -> 2303.54117 | V45: ='Cal-4'!V34 -> 2195.454172 | W45: ='Cal-4'!W34 -> 2092.438842 | X45: ='Cal-4'!X34 -> 1994.257209 | Y45: ='Cal-4'!Y34 -> 1900.682465 | Z45: ='Cal-4'!Z34 -> 1811.498444 | AA45: ='Cal-4'!AA34 -> 1726.499126 | AB45: ='Cal-4'!AB34 -> 1645.488154 | AC45: ='Cal-4'!AC34 -> 1568.278387 | AD45: ='Cal-4'!AD34 -> 1494.691466 | AE45: ='Cal-4'!AE34 -> 1424.557397 | AF45: ='Cal-4'!AF34 -> 1357.714167 | AG45: ='Cal-4'!AG34 -> 1294.007361 | AH45: ='Cal-4'!AH34 -> 1233.289813 | AI45: ='Cal-4'!AI34 -> 1175.42126 | AJ45: ='Cal-4'!AJ34 -> 1120.268021 | AK45: ='Cal-4'!AK34 -> 1067.702688 | AL45: ='Cal-4'!AL34 -> 1017.603832
B46: Agency Cost Saving | C46: 1.111743299 | D46: ='Project Data'!D18*'Project Data'!D$5 -> 0 | E46: ='Project Data'!E18*'Project Data'!E$5 -> 41940.5807 | F46: ='Project Data'!F18*'Project Data'!F$5 -> 78393.60878 | G46: ='Project Data'!G18*'Project Data'!G$5 -> 73265.05493 | H46: ='Project Data'!H18*'Project Data'!H$5 -> 68472.01396 | I46: ='Project Data'!I18*'Project Data'!I$5 -> 63992.53641 | J46: ='Project Data'!J18*'Project Data'!J$5 -> 59806.10879 | K46: ='Project Data'!K18*'Project Data'!K$5 -> 55893.55962 | L46: ='Project Data'!L18*'Project Data'!L$5 -> 52236.97161 | M46: ='Project Data'!M18*'Project Data'!M$5 -> 48819.59963 | N46: ='Project Data'!N18*'Project Data'!N$5 -> 45625.79405 | O46: ='Project Data'!O18*'Project Data'!O$5 -> 42640.92902 | P46: ='Project Data'!P18*'Project Data'!P$5 -> 39851.33553 | Q46: ='Project Data'!Q18*'Project Data'!Q$5 -> 37244.23881 | R46: ='Project Data'!R18*'Project Data'!R$5 -> 34807.69983 | S46: ='Project Data'!S18*'Project Data'!S$5 -> 32530.56059 | T46: ='Project Data'!T18*'Project Data'!T$5 -> 30402.39307 | U46: ='Project Data'!U18*'Project Data'!U$5 -> 28413.45147 | V46: ='Project Data'!V18*'Project Data'!V$5 -> 26554.62754 | W46: ='Project Data'!W18*'Project Data'!W$5 -> 24817.40892 | X46: ='Project Data'!X18*'Project Data'!X$5 -> 23193.84011 | Y46: ='Project Data'!Y18*'Project Data'!Y$5 -> 21676.48608 | Z46: ='Project Data'!Z18*'Project Data'!Z$5 -> 20258.39821 | AA46: ='Project Data'!AA18*'Project Data'!AA$5 -> 18933.08244 | AB46: ='Project Data'!AB18*'Project Data'!AB$5 -> 17694.46957 | AC46: ='Project Data'!AC18*'Project Data'!AC$5 -> 16536.88745 | AD46: ='Project Data'!AD18*'Project Data'!AD$5 -> 15455.035 | AE46: ='Project Data'!AE18*'Project Data'!AE$5 -> 14443.95794 | AF46: ='Project Data'!AF18*'Project Data'!AF$5 -> 13499.02611 | AG46: ='Project Data'!AG18*'Project Data'!AG$5 -> 12615.91226 | AH46: ='Project Data'!AH18*'Project Data'!AH$5 -> 11790.5722 | AI46: ='Project Data'!AI18*'Project Data'!AI$5 -> 11019.22636 | AJ46: ='Project Data'!AJ18*'Project Data'!AJ$5 -> 10298.34239 | AK46: ='Project Data'!AK18*'Project Data'!AK$5 -> 9624.619055 | AL46: ='Project Data'!AL18*'Project Data'!AL$5 -> 8994.971079
B47: O&M Costs | C47: -2.193847247 | D47: =('Project Data'!D$15)*'Project Data'!D$5 -> 0 | E47: =-('Project Data'!E$15)*'Project Data'!E$5 -> 0 | F47: =-('Project Data'!F$15)*'Project Data'!F$5 -> 0 | G47: =-('Project Data'!G$15)*'Project Data'!G$5 -> 0 | H47: =-('Project Data'!H$15)*'Project Data'!H$5 -> 0 | I47: =-('Project Data'!I$15)*'Project Data'!I$5 -> 0 | J47: =-('Project Data'!J$15)*'Project Data'!J$5 -> -3205.043344 | K47: =-('Project Data'!K$15)*'Project Data'!K$5 -> 0 | L47: =-('Project Data'!L$15)*'Project Data'!L$5 -> -2799.408982 | M47: =-('Project Data'!M$15)*'Project Data'!M$5 -> 0 | N47: =-('Project Data'!N$15)*'Project Data'!N$5 -> -2445.112221 | O47: =-('Project Data'!O$15)*'Project Data'!O$5 -> 0 | P47: =-('Project Data'!P$15)*'Project Data'!P$5 -> -2135.655709 | Q47: =-('Project Data'!Q$15)*'Project Data'!Q$5 -> 0 | R47: =-('Project Data'!R$15)*'Project Data'!R$5 -> -673396.5508 | S47: =-('Project Data'!S$15)*'Project Data'!S$5 -> 0 | T47: =-('Project Data'!T$15)*'Project Data'!T$5 -> -1629.281515 | U47: =-('Project Data'!U$15)*'Project Data'!U$5 -> 0 | V47: =-('Project Data'!V$15)*'Project Data'!V$5 -> -1423.077574 | W47: =-('Project Data'!W$15)*'Project Data'!W$5 -> -283551.5317 | X47: =-('Project Data'!X$15)*'Project Data'!X$5 -> -1242.971067 | Y47: =-('Project Data'!Y$15)*'Project Data'!Y$5 -> 0 | Z47: =-('Project Data'!Z$15)*'Project Data'!Z$5 -> -1085.659068 | AA47: =-('Project Data'!AA$15)*'Project Data'!AA$5 -> 0 | AB47: =-('Project Data'!AB$15)*'Project Data'!AB$5 -> -342320.6599 | AC47: =-('Project Data'!AC$15)*'Project Data'!AC$5 -> 0 | AD47: =-('Project Data'!AD$15)*'Project Data'!AD$5 -> -828.2441049 | AE47: =-('Project Data'!AE$15)*'Project Data'!AE$5 -> 0 | AF47: =-('Project Data'!AF$15)*'Project Data'!AF$5 -> -723.4204776 | AG47: =-('Project Data'!AG$15)*'Project Data'!AG$5 -> 0 | AH47: =-('Project Data'!AH$15)*'Project Data'!AH$5 -> -631.863462 | AI47: =-('Project Data'!AI$15)*'Project Data'!AI$5 -> 0 | AJ47: =-('Project Data'!AJ$15)*'Project Data'!AJ$5 -> -551.8940187 | AK47: =-('Project Data'!AK$15)*'Project Data'!AK$5 -> 0 | AL47: =-('Project Data'!AL$15)*'Project Data'!AL$5 -> -875876.8731
B48: =B34 -> Capital Costs | C48: -27.85843383 | D48: =-(('Project Data'!D$12)*'Project Data'!D$5) -> -661851.6993 | E48: =-(('Project Data'!E$12)*'Project Data'!E$5) -> 0 | F48: =-(('Project Data'!F$12)*'Project Data'!F$5) -> -691142.5898 | G48: =-(('Project Data'!G$12)*'Project Data'!G$5) -> -13700879.38 | H48: =-(('Project Data'!H$12)*'Project Data'!H$5) -> -12804560.17 | I48: =-(('Project Data'!I$12)*'Project Data'!I$5) -> 0 | J48: =-(('Project Data'!J$12)*'Project Data'!J$5) -> 0 | K48: =-(('Project Data'!K$12)*'Project Data'!K$5) -> 0 | L48: =-(('Project Data'!L$12)*'Project Data'!L$5) -> 0 | M48: =-(('Project Data'!M$12)*'Project Data'!M$5) -> 0 | N48: =-(('Project Data'!N$12)*'Project Data'!N$5) -> 0 | O48: =-(('Project Data'!O$12)*'Project Data'!O$5) -> 0 | P48: =-(('Project Data'!P$12)*'Project Data'!P$5) -> 0 | Q48: =-(('Project Data'!Q$12)*'Project Data'!Q$5) -> 0 | R48: =-(('Project Data'!R$12)*'Project Data'!R$5) -> 0 | S48: =-(('Project Data'!S$12)*'Project Data'!S$5) -> 0 | T48: =-(('Project Data'!T$12)*'Project Data'!T$5) -> 0 | U48: =-(('Project Data'!U$12)*'Project Data'!U$5) -> 0 | V48: =-(('Project Data'!V$12)*'Project Data'!V$5) -> 0 | W48: =-(('Project Data'!W$12)*'Project Data'!W$5) -> 0 | X48: =-(('Project Data'!X$12)*'Project Data'!X$5) -> 0 | Y48: =-(('Project Data'!Y$12)*'Project Data'!Y$5) -> 0 | Z48: =-(('Project Data'!Z$12)*'Project Data'!Z$5) -> 0 | AA48: =-(('Project Data'!AA$12)*'Project Data'!AA$5) -> 0 | AB48: =-(('Project Data'!AB$12)*'Project Data'!AB$5) -> 0 | AC48: =-(('Project Data'!AC$12)*'Project Data'!AC$5) -> 0 | AD48: =-(('Project Data'!AD$12)*'Project Data'!AD$5) -> 0 | AE48: =-(('Project Data'!AE$12)*'Project Data'!AE$5) -> 0 | AF48: =-(('Project Data'!AF$12)*'Project Data'!AF$5) -> 0 | AG48: =-(('Project Data'!AG$12)*'Project Data'!AG$5) -> 0 | AH48: =-(('Project Data'!AH$12)*'Project Data'!AH$5) -> 0 | AI48: =-(('Project Data'!AI$12)*'Project Data'!AI$5) -> 0 | AJ48: =-(('Project Data'!AJ$12)*'Project Data'!AJ$5) -> 0 | AK48: =-(('Project Data'!AK$12)*'Project Data'!AK$5) -> 0 | AL48: =-(('Project Data'!AL$12)*'Project Data'!AL$5) -> 0
B49: Total Benefits | C49: =SUM(D49:AL49)/10^6 -> 78.36368439 | D49: =SUM(D42:D46) -> 0 | E49: =SUM(E42:E46) -> 41940.5807 | F49: 78393.60878 | G49: 73265.05493 | H49: 68472.01396 | I49: 4819329.331 | J49: 4592012.496 | K49: 4375439.286 | L49: 4169100.524 | M49: 3972511.252 | N49: 3785209.578 | O49: 3606755.573 | P49: 3436730.221 | Q49: 3274734.42 | R49: 3120388.03 | S49: 2973328.969 | T49: 2833212.352 | U49: 2689653.535 | V49: 2562923.727 | W49: 2442174.733 | X49: 2327123.672 | Y49: 2217501.083 | Z49: 2113050.284 | AA49: 2013526.77 | AB49: 1918697.624 | AC49: =SUM(AC42:AC46) -> 1828340.974 | AD49: 1742245.462 | AE49: 1660209.745 | AF49: 1582042.019 | AG49: 1507559.568 | AH49: 1436588.326 | AI49: 1368962.471 | AJ49: 1304524.033 | AK49: 1243122.517 | AL49: 1184614.552
B50: Total Costs | C50: =SUM(D50:AL50)/10^6 -> -30.05228108 | D50: =SUM(D47:D48) -> -661851.6993 | E50: =SUM(E47:E48) -> 0 | F50: =SUM(F47:F48) -> -691142.5898 | G50: =SUM(G47:G48) -> -13700879.38 | H50: -12804560.17 | I50: 0 | J50: -3205.043344 | K50: 0 | L50: -2799.408982 | M50: 0 | N50: -2445.112221 | O50: 0 | P50: -2135.655709 | Q50: 0 | R50: -673396.5508 | S50: 0 | T50: -1629.281515 | U50: 0 | V50: -1423.077574 | W50: -283551.5317 | X50: -1242.971067 | Y50: 0 | Z50: -1085.659068 | AA50: 0 | AB50: =SUM(AB47:AB48) -> -342320.6599 | AC50: =SUM(AC47:AC48) -> 0 | AD50: -828.2441049 | AE50: 0 | AF50: -723.4204776 | AG50: 0 | AH50: -631.863462 | AI50: 0 | AJ50: -551.8940187 | AK50: 0 | AL50: -875876.8731
B51: Net Impacts | C51: =SUM(D51:AL51)/10^6 -> 48.31140331 | D51: =SUM(D42:D48) -> -661851.6993 | E51: =SUM(E42:E48) -> 41940.5807 | F51: -612748.981 | G51: -13627614.32 | H51: -12736088.15 | I51: 4819329.331 | J51: 4588807.452 | K51: 4375439.286 | L51: 4166301.115 | M51: 3972511.252 | N51: 3782764.466 | O51: 3606755.573 | P51: 3434594.566 | Q51: 3274734.42 | R51: 2446991.479 | S51: 2973328.969 | T51: 2831583.071 | U51: 2689653.535 | V51: 2561500.649 | W51: 2158623.201 | X51: 2325880.701 | Y51: 2217501.083 | Z51: 2111964.625 | AA51: 2013526.77 | AB51: =SUM(AB42:AB48) -> 1576376.964 | AC51: =SUM(AC42:AC48) -> 1828340.974 | AD51: 1741417.218 | AE51: 1660209.745 | AF51: 1581318.599 | AG51: 1507559.568 | AH51: 1435956.462 | AI51: 1368962.471 | AJ51: 1303972.139 | AK51: 1243122.517 | AL51: 308737.6793
B52: Cumulative Net Impacts | D52: =D51 -> -661851.6993 | E52: =D52+E51 -> -619911.1186 | F52: =E52+F51 -> -1232660.1 | G52: -14860274.42 | H52: -27596362.58 | I52: -22777033.24 | J52: -18188225.79 | K52: -13812786.51 | L52: =K52+L51 -> -9646485.39 | M52: -5673974.138 | N52: -1891209.672 | O52: 1715545.901 | P52: 5150140.467 | Q52: 8424874.887 | R52: 10871866.37 | S52: 13845195.33 | T52: 16676778.41 | U52: 19366431.94 | V52: 21927932.59 | W52: 24086555.79 | X52: 26412436.49 | Y52: 28629937.57 | Z52: 30741902.2 | AA52: 32755428.97 | AB52: 34331805.93 | AC52: =AB52+AC51 -> 36160146.91 | AD52: =AC52+AD51 -> 37901564.13 | AE52: =AD52+AE51 -> 39561773.87 | AF52: =AE52+AF51 -> 41143092.47 | AG52: =AF52+AG51 -> 42650652.04 | AH52: =AG52+AH51 -> 44086608.5 | AI52: =AH52+AI51 -> 45455570.97 | AJ52: =AI52+AJ51 -> 46759543.11 | AK52: =AJ52+AK51 -> 48002665.63 | AL52: =AK52+AL51 -> 48311403.31
B54: Results - 3% 2018$
B55: Impact Category | C55: Total | D55: =BaseYear -> 2019 | E55: =D55+1 -> 2020 | F55: 2021 | G55: 2022 | H55: 2023 | I55: 2024 | J55: 2025 | K55: 2026 | L55: 2027 | M55: 2028 | N55: 2029 | O55: 2030 | P55: 2031 | Q55: 2032 | R55: 2033 | S55: 2034 | T55: 2035 | U55: 2036 | V55: 2037 | W55: 2038 | X55: 2039 | Y55: 2040 | Z55: 2041 | AA55: 2042 | AB55: 2043 | AC55: =AB55+1 -> 2044 | AD55: =AC55+1 -> 2045 | AE55: =AD55+1 -> 2046 | AF55: =AE55+1 -> 2047 | AG55: =AF55+1 -> 2048 | AH55: =AG55+1 -> 2049 | AI55: =AH55+1 -> 2050 | AJ55: =AI55+1 -> 2051 | AK55: =AJ55+1 -> 2052 | AL55: =AK55+1 -> 2053
B56: Travel Time Savings | C56: =SUM(D56:AL56)/10^6 -> 58.14514494 | D56: ='Calc-1'!D37 -> 0 | E56: ='Calc-1'!E37 -> 0 | F56: ='Calc-1'!F37 -> 0 | G56: ='Calc-1'!G37 -> 0 | H56: ='Calc-1'!H37 -> 0 | I56: ='Calc-1'!I37 -> 2230967.31 | J56: ='Calc-1'!J37 -> 2208859.829 | K56: ='Calc-1'!K37 -> 2186971.419 | L56: ='Calc-1'!L37 -> 2165299.909 | M56: ='Calc-1'!M37 -> 2143843.151 | N56: ='Calc-1'!N37 -> 2122599.015 | O56: ='Calc-1'!O37 -> 2101565.395 | P56: ='Calc-1'!P37 -> 2080740.206 | Q56: ='Calc-1'!Q37 -> 2060121.381 | R56: ='Calc-1'!R37 -> 2039706.875 | S56: ='Calc-1'!S37 -> 2019494.664 | T56: ='Calc-1'!T37 -> 1999482.744 | U56: ='Calc-1'!U37 -> 1979669.129 | V56: ='Calc-1'!V37 -> 1960051.854 | W56: ='Calc-1'!W37 -> 1940628.975 | X56: ='Calc-1'!X37 -> 1921398.564 | Y56: ='Calc-1'!Y37 -> 1902358.714 | Z56: ='Calc-1'!Z37 -> 1883507.537 | AA56: ='Calc-1'!AA37 -> 1864843.163 | AB56: ='Calc-1'!AB37 -> 1846363.742 | AC56: ='Calc-1'!AC37 -> 1828067.44 | AD56: ='Calc-1'!AD37 -> 1809952.443 | AE56: ='Calc-1'!AE37 -> 1792016.954 | AF56: ='Calc-1'!AF37 -> 1774259.194 | AG56: ='Calc-1'!AG37 -> 1756677.403 | AH56: ='Calc-1'!AH37 -> 1739269.836 | AI56: ='Calc-1'!AI37 -> 1722034.767 | AJ56: ='Calc-1'!AJ37 -> 1704970.487 | AK56: ='Calc-1'!AK37 -> 1688075.303 | AL56: ='Calc-1'!AL37 -> 1671347.54
B57: Vehicle Operating Cost Savings | C57: =SUM(D57:AL57)/10^6 -> 56.7490537 | D57: ='Calc-2'!D35 -> 0 | E57: ='Calc-2'!E35 -> 0 | F57: ='Calc-2'!F35 -> 0 | G57: ='Calc-2'!G35 -> 0 | H57: ='Calc-2'!H35 -> 0 | I57: ='Calc-2'!I35 -> 2177400.776 | J57: ='Calc-2'!J35 -> 2155824.105 | K57: ='Calc-2'!K35 -> 2134461.246 | L57: ='Calc-2'!L35 -> 2113310.079 | M57: ='Calc-2'!M35 -> 2092368.507 | N57: ='Calc-2'!N35 -> 2071634.452 | O57: ='Calc-2'!O35 -> 2051105.859 | P57: ='Calc-2'!P35 -> 2030780.692 | Q57: ='Calc-2'!Q35 -> 2010656.934 | R57: ='Calc-2'!R35 -> 1990732.59 | S57: ='Calc-2'!S35 -> 1971005.684 | T57: ='Calc-2'!T35 -> 1951474.258 | U57: ='Calc-2'!U35 -> 1932136.377 | V57: ='Calc-2'!V35 -> 1912990.123 | W57: ='Calc-2'!W35 -> 1894033.595 | X57: ='Calc-2'!X35 -> 1875264.915 | Y57: ='Calc-2'!Y35 -> 1856682.22 | Z57: ='Calc-2'!Z35 -> 1838283.669 | AA57: ='Calc-2'!AA35 -> 1820067.435 | AB57: ='Calc-2'!AB35 -> 1802031.713 | AC57: ='Calc-2'!AC35 -> 1784174.713 | AD57: ='Calc-2'!AD35 -> 1766494.665 | AE57: ='Calc-2'!AE35 -> 1748989.816 | AF57: ='Calc-2'!AF35 -> 1731658.428 | AG57: ='Calc-2'!AG35 -> 1714498.783 | AH57: ='Calc-2'!AH35 -> 1697509.18 | AI57: ='Calc-2'!AI35 -> 1680687.933 | AJ57: ='Calc-2'!AJ35 -> 1664033.374 | AK57: ='Calc-2'!AK35 -> 1647543.851 | AL57: ='Calc-2'!AL35 -> 1631217.729
B58: Reduction in Accident Costs | C58: 34.35782218 | D58: ='Calc-3'!D44 -> 0 | E58: ='Calc-3'!E44 -> 0 | F58: ='Calc-3'!F44 -> 0 | G58: ='Calc-3'!G44 -> 0 | H58: ='Calc-3'!H44 -> 0 | I58: ='Calc-3'!I44 -> 1318273.06 | J58: ='Calc-3'!J44 -> 1305209.804 | K58: ='Calc-3'!K44 -> 1292275.996 | L58: ='Calc-3'!L44 -> 1279470.355 | M58: ='Calc-3'!M44 -> 1266791.61 | N58: ='Calc-3'!N44 -> 1254238.502 | O58: ='Calc-3'!O44 -> 1241809.789 | P58: ='Calc-3'!P44 -> 1229504.236 | Q58: ='Calc-3'!Q44 -> 1217320.623 | R58: ='Calc-3'!R44 -> 1205257.742 | S58: ='Calc-3'!S44 -> 1193314.397 | T58: ='Calc-3'!T44 -> 1181489.403 | U58: ='Calc-3'!U44 -> 1169781.587 | V58: ='Calc-3'!V44 -> 1158189.788 | W58: ='Calc-3'!W44 -> 1146712.856 | X58: ='Calc-3'!X44 -> 1135349.654 | Y58: ='Calc-3'!Y44 -> 1124099.054 | Z58: ='Calc-3'!Z44 -> 1112959.94 | AA58: ='Calc-3'!AA44 -> 1101931.208 | AB58: ='Calc-3'!AB44 -> 1091011.763 | AC58: ='Calc-3'!AC44 -> 1080200.524 | AD58: ='Calc-3'!AD44 -> 1069496.417 | AE58: ='Calc-3'!AE44 -> 1058898.381 | AF58: ='Calc-3'!AF44 -> 1048405.365 | AG58: ='Calc-3'!AG44 -> 1038016.328 | AH58: ='Calc-3'!AH44 -> 1027730.24 | AI58: ='Calc-3'!AI44 -> 1017546.08 | AJ58: ='Calc-3'!AJ44 -> 1007462.839 | AK58: ='Calc-3'!AK44 -> 997479.5168 | AL58: ='Calc-3'!AL44 -> 987595.1229
B59: Environmental Cost Savings | C59: 0.3754944588 | D59: ='Cal-4'!D35 -> 0 | E59: ='Cal-4'!E35 -> 0 | F59: ='Cal-4'!F35 -> 0 | G59: ='Cal-4'!G35 -> 0 | H59: ='Cal-4'!H35 -> 0 | I59: ='Cal-4'!I35 -> 26619.45096 | J59: ='Cal-4'!J35 -> 26355.66897 | K59: ='Cal-4'!K35 -> 26094.50088 | L59: ='Cal-4'!L35 -> 25835.92081 | M59: ='Cal-4'!M35 -> 25579.9031 | N59: ='Cal-4'!N35 -> 25326.42237 | O59: ='Cal-4'!O35 -> 25075.45347 | P59: ='Cal-4'!P35 -> 24826.97152 | Q59: ='Cal-4'!Q35 -> 24580.95187 | R59: ='Cal-4'!R35 -> 24337.37011 | S59: ='Cal-4'!S35 -> 24096.2021 | T59: ='Cal-4'!T35 -> 23857.42391 | U59: ='Cal-4'!U35 -> 4402.378505 | V59: ='Cal-4'!V35 -> 4358.753706 | W59: ='Cal-4'!W35 -> 4315.561201 | X59: ='Cal-4'!X35 -> 4272.796707 | Y59: ='Cal-4'!Y35 -> 4230.455983 | Z59: ='Cal-4'!Z35 -> 4188.534828 | AA59: ='Cal-4'!AA35 -> 4147.029085 | AB59: ='Cal-4'!AB35 -> 4105.934638 | AC59: ='Cal-4'!AC35 -> 4065.247411 | AD59: ='Cal-4'!AD35 -> 4024.96337 | AE59: ='Cal-4'!AE35 -> 3985.078517 | AF59: ='Cal-4'!AF35 -> 3945.588898 | AG59: ='Cal-4'!AG35 -> 3906.490597 | AH59: ='Cal-4'!AH35 -> 3867.779735 | AI59: ='Cal-4'!AI35 -> 3829.452473 | AJ59: ='Cal-4'!AJ35 -> 3791.505011 | AK59: ='Cal-4'!AK35 -> 3753.933584 | AL59: ='Cal-4'!AL35 -> 3716.734466
B60: Agency Cost Saving | C60: 1.853073072 | D60: ='Project Data'!D18*'Project Data'!D$6 -> 0 | E60: ='Project Data'!E18*'Project Data'!E$6 -> 43569.34111 | F60: ='Project Data'!F18*'Project Data'!F$6 -> 84600.66236 | G60: ='Project Data'!G18*'Project Data'!G$6 -> 82136.56539 | H60: ='Project Data'!H18*'Project Data'!H$6 -> 79744.23825 | I60: ='Project Data'!I18*'Project Data'!I$6 -> 77421.59053 | J60: ='Project Data'!J18*'Project Data'!J$6 -> 75166.59275 | K60: ='Project Data'!K18*'Project Data'!K$6 -> 72977.27451 | L60: ='Project Data'!L18*'Project Data'!L$6 -> 70851.72283 | M60: ='Project Data'!M18*'Project Data'!M$6 -> 68788.08042 | N60: ='Project Data'!N18*'Project Data'!N$6 -> 66784.54409 | O60: ='Project Data'!O18*'Project Data'!O$6 -> 64839.3632 | P60: ='Project Data'!P18*'Project Data'!P$6 -> 62950.83805 | Q60: ='Project Data'!Q18*'Project Data'!Q$6 -> 61117.3185 | R60: ='Project Data'!R18*'Project Data'!R$6 -> 59337.20243 | S60: ='Project Data'!S18*'Project Data'!S$6 -> 57608.9344 | T60: ='Project Data'!T18*'Project Data'!T$6 -> 55931.00427 | U60: ='Project Data'!U18*'Project Data'!U$6 -> 54301.94589 | V60: ='Project Data'!V18*'Project Data'!V$6 -> 52720.33582 | W60: ='Project Data'!W18*'Project Data'!W$6 -> 51184.79205 | X60: ='Project Data'!X18*'Project Data'!X$6 -> 49693.97287 | Y60: ='Project Data'!Y18*'Project Data'!Y$6 -> 48246.5756 | Z60: ='Project Data'!Z18*'Project Data'!Z$6 -> 46841.33553 | AA60: ='Project Data'!AA18*'Project Data'!AA$6 -> 45477.02479 | AB60: ='Project Data'!AB18*'Project Data'!AB$6 -> 44152.45125 | AC60: ='Project Data'!AC18*'Project Data'!AC$6 -> 42866.45753 | AD60: ='Project Data'!AD18*'Project Data'!AD$6 -> 41617.91993 | AE60: ='Project Data'!AE18*'Project Data'!AE$6 -> 40405.7475 | AF60: ='Project Data'!AF18*'Project Data'!AF$6 -> 39228.88107 | AG60: ='Project Data'!AG18*'Project Data'!AG$6 -> 38086.2923 | AH60: ='Project Data'!AH18*'Project Data'!AH$6 -> 36976.98282 | AI60: ='Project Data'!AI18*'Project Data'!AI$6 -> 35899.98332 | AJ60: ='Project Data'!AJ18*'Project Data'!AJ$6 -> 34854.35274 | AK60: ='Project Data'!AK18*'Project Data'!AK$6 -> 33839.17741 | AL60: ='Project Data'!AL18*'Project Data'!AL$6 -> 32853.57031
B61: O&M Costs | C61: -5.819984907 | D61: =(('Project Data'!D$15)*'Project Data'!D$6) -> 0 | E61: =-(('Project Data'!E$15)*'Project Data'!E$6) -> 0 | F61: =-(('Project Data'!F$15)*'Project Data'!F$6) -> 0 | G61: =-(('Project Data'!G$15)*'Project Data'!G$6) -> 0 | H61: =-(('Project Data'!H$15)*'Project Data'!H$6) -> 0 | I61: =-(('Project Data'!I$15)*'Project Data'!I$6) -> 0 | J61: =-(('Project Data'!J$15)*'Project Data'!J$6) -> -4028.220404 | K61: =-(('Project Data'!K$15)*'Project Data'!K$6) -> 0 | L61: =-(('Project Data'!L$15)*'Project Data'!L$6) -> -3796.984074 | M61: =-(('Project Data'!M$15)*'Project Data'!M$6) -> 0 | N61: =-(('Project Data'!N$15)*'Project Data'!N$6) -> -3579.021656 | O61: =-(('Project Data'!O$15)*'Project Data'!O$6) -> 0 | P61: =-(('Project Data'!P$15)*'Project Data'!P$6) -> -3373.571171 | Q61: =-(('Project Data'!Q$15)*'Project Data'!Q$6) -> 0 | R61: =-(('Project Data'!R$15)*'Project Data'!R$6) -> -1147949.093 | S61: =-(('Project Data'!S$15)*'Project Data'!S$6) -> 0 | T61: =-(('Project Data'!T$15)*'Project Data'!T$6) -> -2997.374291 | U61: =-(('Project Data'!U$15)*'Project Data'!U$6) -> 0 | V61: =-(('Project Data'!V$15)*'Project Data'!V$6) -> -2825.312745 | W61: =-(('Project Data'!W$15)*'Project Data'!W$6) -> -584812.3079 | X61: =-(('Project Data'!X$15)*'Project Data'!X$6) -> -2663.128235 | Y61: =-(('Project Data'!Y$15)*'Project Data'!Y$6) -> 0 | Z61: =-(('Project Data'!Z$15)*'Project Data'!Z$6) -> -2510.25378 | AA61: =-(('Project Data'!AA$15)*'Project Data'!AA$6) -> 0 | AB61: =-(('Project Data'!AB$15)*'Project Data'!AB$6) -> -854181.9347 | AC61: =-(('Project Data'!AC$15)*'Project Data'!AC$6) -> 0 | AD61: =-(('Project Data'!AD$15)*'Project Data'!AD$6) -> -2230.32797 | AE61: =-(('Project Data'!AE$15)*'Project Data'!AE$6) -> 0 | AF61: =-(('Project Data'!AF$15)*'Project Data'!AF$6) -> -2102.298021 | AG61: =-(('Project Data'!AG$15)*'Project Data'!AG$6) -> 0 | AH61: =-(('Project Data'!AH$15)*'Project Data'!AH$6) -> -1981.617514 | AI61: =-(('Project Data'!AI$15)*'Project Data'!AI$6) -> 0 | AJ61: =-(('Project Data'!AJ$15)*'Project Data'!AJ$6) -> -1867.864563 | AK61: =-(('Project Data'!AK$15)*'Project Data'!AK$6) -> 0 | AL61: =-(('Project Data'!AL$15)*'Project Data'!AL$6) -> -3199085.597
B62: =B48 -> Capital Costs | C62: -31.68012192 | D62: =-(('Project Data'!D$12)*'Project Data'!D$6) -> -661851.6993 | E62: =-(('Project Data'!E$12)*'Project Data'!E$6) -> 0 | F62: =-(('Project Data'!F$12)*'Project Data'!F$6) -> -745865.9167 | G62: =-(('Project Data'!G$12)*'Project Data'!G$6) -> -15359889.87 | H62: =-(('Project Data'!H$12)*'Project Data'!H$6) -> -14912514.44 | I62: =-(('Project Data'!I$12)*'Project Data'!I$6) -> 0 | J62: =-(('Project Data'!J$12)*'Project Data'!J$6) -> 0 | K62: =-(('Project Data'!K$12)*'Project Data'!K$6) -> 0 | L62: =-(('Project Data'!L$12)*'Project Data'!L$6) -> 0 | M62: =-(('Project Data'!M$12)*'Project Data'!M$6) -> 0 | N62: =-(('Project Data'!N$12)*'Project Data'!N$6) -> 0 | O62: =-(('Project Data'!O$12)*'Project Data'!O$6) -> 0 | P62: =-(('Project Data'!P$12)*'Project Data'!P$6) -> 0 | Q62: =-(('Project Data'!Q$12)*'Project Data'!Q$6) -> 0 | R62: =-(('Project Data'!R$12)*'Project Data'!R$6) -> 0 | S62: =-(('Project Data'!S$12)*'Project Data'!S$6) -> 0 | T62: =-(('Project Data'!T$12)*'Project Data'!T$6) -> 0 | U62: =-(('Project Data'!U$12)*'Project Data'!U$6) -> 0 | V62: =-(('Project Data'!V$12)*'Project Data'!V$6) -> 0 | W62: =-(('Project Data'!W$12)*'Project Data'!W$6) -> 0 | X62: =-(('Project Data'!X$12)*'Project Data'!X$6) -> 0 | Y62: =-(('Project Data'!Y$12)*'Project Data'!Y$6) -> 0 | Z62: =-(('Project Data'!Z$12)*'Project Data'!Z$6) -> 0 | AA62: =-(('Project Data'!AA$12)*'Project Data'!AA$6) -> 0 | AB62: =-(('Project Data'!AB$12)*'Project Data'!AB$6) -> 0 | AC62: =-(('Project Data'!AC$12)*'Project Data'!AC$6) -> 0 | AD62: =-(('Project Data'!AD$12)*'Project Data'!AD$6) -> 0 | AE62: =-(('Project Data'!AE$12)*'Project Data'!AE$6) -> 0 | AF62: =-(('Project Data'!AF$12)*'Project Data'!AF$6) -> 0 | AG62: =-(('Project Data'!AG$12)*'Project Data'!AG$6) -> 0 | AH62: =-(('Project Data'!AH$12)*'Project Data'!AH$6) -> 0 | AI62: =-(('Project Data'!AI$12)*'Project Data'!AI$6) -> 0 | AJ62: =-(('Project Data'!AJ$12)*'Project Data'!AJ$6) -> 0 | AK62: =-(('Project Data'!AK$12)*'Project Data'!AK$6) -> 0 | AL62: =-(('Project Data'!AL$12)*'Project Data'!AL$6) -> 0
B63: Total Benefits | C63: =SUM(D63:AL63)/10^6 -> 151.4805883 | D63: =SUM(D56:D60) -> 0 | E63: =SUM(E56:E60) -> 43569.34111 | F63: 84600.66236 | G63: 82136.56539 | H63: 79744.23825 | I63: 5830682.187 | J63: 5771415.999 | K63: 5712780.436 | L63: 5654767.987 | M63: 5597371.25 | N63: 5540582.936 | O63: 5484395.86 | P63: 5428802.943 | Q63: 5373797.208 | R63: 5319371.779 | S63: 5265519.881 | T63: 5212234.833 | U63: 5140291.417 | V63: 5088310.854 | W63: 5036875.779 | X63: 4985979.902 | Y63: 4935617.019 | Z63: 4885781.016 | AA63: 4836465.86 | AB63: 4787665.604 | AC63: =SUM(AC56:AC60) -> 4739374.382 | AD63: 4691586.408 | AE63: 4644295.976 | AF63: 4597497.457 | AG63: 4551185.297 | AH63: 4505354.018 | AI63: 4459998.216 | AJ63: 4415112.558 | AK63: 4370691.782 | AL63: 4326730.696
B64: Total Costs | C64: =SUM(D64:AL64)/10^6 -> -37.50010683 | D64: =SUM(D61:D62) -> -661851.6993 | E64: =SUM(E61:E62) -> 0 | F64: =SUM(F61:F62) -> -745865.9167 | G64: -15359889.87 | H64: -14912514.44 | I64: 0 | J64: -4028.220404 | K64: 0 | L64: -3796.984074 | M64: 0 | N64: -3579.021656 | O64: 0 | P64: -3373.571171 | Q64: 0 | R64: -1147949.093 | S64: 0 | T64: -2997.374291 | U64: 0 | V64: -2825.312745 | W64: -584812.3079 | X64: -2663.128235 | Y64: 0 | Z64: -2510.25378 | AA64: 0 | AB64: -854181.9347 | AC64: =SUM(AC61:AC62) -> 0 | AD64: -2230.32797 | AE64: 0 | AF64: -2102.298021 | AG64: 0 | AH64: -1981.617514 | AI64: 0 | AJ64: -1867.864563 | AK64: 0 | AL64: -3199085.597
B65: Net Impacts | C65: =SUM(D65:AL65)/10^6 -> 113.9804815 | D65: =SUM(D56:D62) -> -661851.6993 | E65: =SUM(E56:E62) -> 43569.34111 | F65: -661265.2543 | G65: -15277753.3 | H65: -14832770.2 | I65: 5830682.187 | J65: 5767387.779 | K65: 5712780.436 | L65: 5650971.003 | M65: 5597371.25 | N65: 5537003.915 | O65: 5484395.86 | P65: 5425429.372 | Q65: 5373797.208 | R65: 4171422.686 | S65: 5265519.881 | T65: 5209237.459 | U65: 5140291.417 | V65: 5085485.541 | W65: 4452063.471 | X65: 4983316.774 | Y65: 4935617.019 | Z65: 4883270.762 | AA65: 4836465.86 | AB65: =SUM(AB56:AB62) -> 3933483.669 | AC65: =SUM(AC56:AC62) -> 4739374.382 | AD65: 4689356.08 | AE65: 4644295.976 | AF65: 4595395.159 | AG65: 4551185.297 | AH65: 4503372.4 | AI65: 4459998.216 | AJ65: 4413244.693 | AK65: 4370691.782 | AL65: 1127645.099
B66: Cumulative Net Impacts | D66: =D65 -> -661851.6993 | E66: =D66+E65 -> -618282.3582 | F66: =E66+F65 -> -1279547.613 | G66: -16557300.92 | H66: -31390071.11 | I66: -25559388.93 | J66: -19792001.15 | K66: -14079220.71 | L66: -8428249.707 | M66: -2830878.457 | N66: 2706125.458 | O66: 8190521.318 | P66: 13615950.69 | Q66: 18989747.9 | R66: 23161170.58 | S66: 28426690.46 | T66: 33635927.92 | U66: 38776219.34 | V66: 43861704.88 | W66: 48313768.35 | X66: 53297085.13 | Y66: 58232702.15 | Z66: 63115972.91 | AA66: 67952438.77 | AB66: 71885922.44 | AC66: =AB66+AC65 -> 76625296.82 | AD66: =AC66+AD65 -> 81314652.9 | AE66: =AD66+AE65 -> 85958948.88 | AF66: =AE66+AF65 -> 90554344.03 | AG66: =AF66+AG65 -> 95105529.33 | AH66: =AG66+AH65 -> 99608901.73 | AI66: =AH66+AI65 -> 104068899.9 | AJ66: =AI66+AJ65 -> 108482144.6 | AK66: =AJ66+AK65 -> 112852836.4 | AL66: =AK66+AL65 -> 113980481.5

Sheet Report Tables
A2: Table ES-1
A3: Current Status or Baseline & Problems to be Addressed | B3: Changes to Baseline / Alternatives | C3: Type of Impacts | D3: Population Affected by Impacts | E3: Economic Benefit/Impact | F3: Summary of Results
A4: Bridgeport Bride over the South Canadian River is one of the historically significant bridges in Oklahoma and a key feature of the Oklahoma Route 66 National Scenic Byway. Currently Bridgeport bridge is a 2-lane undivided bridge assessed as being in poor conditions. If no action is taken, the bridge will be closed to all traffic in 2021. All travelers will be forced to take a lengthy detour. | B4: Full bridge replacement, a new structure along the same alignment; slightly wider structure with similar trusses on the outside of the structure for aesthetics. | C4: Safety: reduction in number of crashes due to avoidance of traffic detours | D4: Auto Users, Truck Operators, Tourist driving down Route 66 | E4: Reductions in fatalities, injuries, and property losses, reduction in accident costs on highway segment. | F4: $13.06 million in accident cost savings to auto users and truck operators.
C5: Economic Competitiveness: impact on travel times due to avoidance of traffic detours | D5: Auto Users, Truck Operators, Tourist driving down Route 66 | E5: Travel time savings to highway users. | F5: $24.27 million in travel time savings to auto users.
C6: Economic Competitiveness: impacts on vehicle operating costs due to avoidance of detours. | D6: Auto Users, Truck Operators, , Tourist driving down Route 66 | E6: Vehicle operating cost impacts to highway users. | F6: $23.69 million in vehicle operating costs
C7: Environmental Sustainability: impacts on vehicle emissions due to avoidance of traffic detours | D7: Citizens of Canadian and Caddo Counties | E7: Vehicle emissions cost savings. | F7: $0.22 million in vehicle emission
C8: State of good repair | D8: Agency operating US-281, Oklahoma residents | E8: Agency Cost Saving | F8: $0.99 million in agency cost saving
A11: Table ES-2
A12: Project Evaluation Metric | B12: Undiscounted | C12: Present Value at 7% Discount Rate | D12: Present Value at 3% Discount Rate
A13: Total Benefits | B13: =Results!D17 -> 272.026914 | C13: =Results!E17 -> 78.36368439 | D13: =Results!F17 -> 151.4805883
A14: Total O&M Costs | B14: =Results!D18 -> 13.29554168 | C14: =Results!E18 -> 2.193847247 | D14: =Results!F18 -> 5.819984907
A15: Total Costs | B15: =Results!D19 -> 35.0214736 | C15: =Results!E19 -> 27.85843383 | D15: =Results!F19 -> 31.68012192
A16: Net Present Value | B16: =Results!D20 -> 223.7098988 | C16: =Results!E20 -> 48.31140331 | D16: =Results!F20 -> 113.9804815
A17: Benefit / Cost Ratio | B17: =Results!D22 -> 7.387792281 | C17: =Results!E22 -> 2.734175137 | D17: =Results!F22 -> 4.597854889
A18: Internal Rate of Return (%) | B18: =Results!D24 -> 0.1898060209
A21: Table 1
B22: Over the Project Lifecycle
B23: In Constant Dollars | C23: Discounted at 7 Percent | D23: Discounted at 3 Percent
A24: Construction & Development Costs | B24: =Results!D19 -> 35.0214736 | C24: =Results!E19 -> 27.85843383 | D24: =Results!F19 -> 31.68012192
A25: Operations and Maintenance | B25: =Results!D18 -> 13.29554168 | C25: =Results!E18 -> 2.193847247 | D25: =Results!F18 -> 5.819984907
A26: Total | B26: =SUM(B24:B25) -> 48.31701528 | C26: =SUM(C24:C25) -> 30.05228108 | D26: =SUM(D24:D25) -> 37.50010683
A29: Table 3
A30: Data Item | B30: Unit | C30: Value | D30: Source
A31: Current Traffic Crossing Bridge | B31: ADT | C31: =Inputs!D18 -> 1800 | D31: Oklahoma Department Of Transportation's Collision Analysis and Safety Branch
A32: Future Traffic | B32: ADT | C32: 4100 | D32: Oklahoma Department Of Transportation's Collision Analysis and Safety Branch
A33: Average Annual Rate of Growth | B33: Percent | C33: =(C32/C31)^(1/(2060-2018))-1 -> 0.01979334859 | D33: Calculated from above.
A34: Truck Share | B34: Percent | C34: =Inputs!D21 -> 0.21 | D34: Oklahoma Department Of Transportation's Collision Analysis and Safety Branch
A36: Table 4
A37: Year | B37: Total ADT
A38: 2019 | B38: =Traffic!D5 -> 1835.628027
A39: 2022 (Construction Starts) | B39: =Traffic!G5 -> 1946.799407
A40: 2024 (First Year of Benefits) | B40: =Traffic!I5 -> 2024.629476
A41: 2025 | B41: =Traffic!J5 -> 2064.703673
A42: …. | B42: ….
A43: 2041 | B43: =Traffic!Z5 -> 2825.221685
A44: 2043 | B44: =Traffic!AB5 -> 2938.169736
A45: 2053 | B45: =Traffic!AL5 -> 3574.362799
A47: Table 5
A48: Variable Name | B48: Unit | C48: Value | D48: Source
A49: Fatality | B49: $/Victim | C49: =AccidentCost_Fatality -> 9600000 | D49: =Inputs!E48 -> US DOT, Benefit-Cost Analysis Guidance for Discretionary Grants Program, January 2020.
A50: Injury | B50: $/Victim | C50: =AccidentCost_Injury -> 174000 | D50: =Inputs!E49 -> US DOT, Benefit-Cost Analysis Guidance for Discretionary Grants Program, January 2020.
A51: No Injury/ PDO | B51: $/PDO Crash | C51: =AccidentCost_PDO -> 4400 | D51: =Inputs!E50 -> US DOT, Benefit-Cost Analysis Guidance for Discretionary Grants Program, January 2020.
A52: Accident rate, current | B52: rate, number per million VMT | C52: =CrashRate_Bridge -> 124.82 | D52: =Inputs!E28 -> Oklahoma Department of Transportation- Collision Analysis and Safety Branch .
A53: Fatality | B53: =Inputs!C29 -> % of total | C53: =PercentFatal_Bridge -> 0 | D53: =Inputs!E29 -> Calculated from ODOT collision Data for the bridge over period 2014-2018.
A54: Injury Accidents | B54: =Inputs!C30 -> % of total | C54: =PercentInjury_Bridge -> 0 | D54: =Inputs!E30 -> Calculated from ODOT collision Data for the bridge over period 2014-2018.
A55: No injury/ PDO | B55: =Inputs!C31 -> % of total | C55: =PercentPDO_Bridge -> 1 | D55: =Inputs!E31 -> Calculated from ODOT collision Data for the bridge over period 2014-2018.
A56: Accident rate, detour route | B56: rate, number per million VMT | C56: =CrashRate_Detour -> 64.51 | D56: =Inputs!E32 -> Oklahoma Department of Transportation- Collision Analysis and Safety Branch.
A57: Fatality | B57: =Inputs!C33 -> % of total | C57: =PercentFatal_Detour -> 0.02058 | D57: =Inputs!E33 -> Calculated from ODOT collision Data for the bridge over period 2013-2018.
A58: Injury Accidents | B58: =Inputs!C34 -> % of total | C58: =PercentInjury_Detour -> 0.2963 | D58: =Inputs!E34 -> Calculated from ODOT collision Data for the bridge over period 2013-2018.
A59: No injury/ PDO | B59: =Inputs!C35 -> % of total | C59: =PercentPDO_Detour -> 0.68312 | D59: =Inputs!E35 -> Calculated from ODOT collision Data for the bridge over period 2013-2018.
A60: =Inputs!B36 -> Number of injured per injury crash on bridge | B60: Number per Crash | C60: =Inputs!D36 -> 0 | D60: =Inputs!E36 -> Calculated from bridge crash statistics 2013 to 2018 provided By Oklahoma Department of Transportation- Collision Analysis and Safety Branch.
A61: =Inputs!B37 -> Number of injured per injury crash on detour | B61: Number per Crash | C61: =Inputs!D37 -> 1.57 | D61: =Inputs!E37 -> Calculated from detour crash statistics 2014 to 2018 provided By Oklahoma Department of Transportation- Collision Analysis and Safety Branch.
A62: Damaged vehicles per PDO crash | B62: Number per Crash | C62: =DamagedVeh_PDOcrash -> 1.59 | D62: =Inputs!E38 -> California Department of Transportation, TASAS Unit, 2010 to 2013 average.
A63: =Inputs!B40 -> Crash Modification Factors - Widen Lane (add 2 ft. to both sides) - All crash type | B63: =Inputs!C40 -> CMF | C63: =Inputs!D40 -> 0.77 | D63: =Inputs!E40 -> CMF Clearinghouse, CMF ID 894. CMFs determined to mirror installation feature.
A65: Table 6
B66: In Constant Dollars | C66: Discounted at 7 Percent | D66: Discounted at 3 Percent
A68: Monetary Value of Safety Benefits | B68: =Results!D8 -> 61.79749411 | C68: =Results!E8 -> 17.72955107 | D68: =Results!F8 -> 34.35782218
A70: Table 7
A71: Data Item | B71: Unit | C71: Value | D71: Source and Comments
A72: Typical route
A73: Route length | B73: Miles | C73: =Inputs!D22 -> 5 | D73: =Inputs!E23 -> Calculated based on Google maps.
A74: Travel time | B74: Minutes | C74: =Inputs!D23 -> 5 | D74: =Inputs!E24 -> Calculated based on Google maps.
A75: Detour
A76: Full detour route length | B76: Miles | C76: =Inputs!D24 -> 11.5 | D76: =Inputs!E25 -> Calculated based on Google maps.
A77: Full detour travel time | B77: Minutes | C77: =Inputs!D25 -> 13 | D77: =Inputs!E26 -> Reasoned Assumption.
A78: Auto Traffic that would take detour | B78: % | C78: =Inputs!D26 -> 1 | D78: =Inputs!E26 -> Reasoned Assumption.
A79: =Inputs!B27 -> Truck Traffic that would be detoured | B79: =Inputs!C27 -> % | C79: =Inputs!D27 -> 1 | D79: =Inputs!E27 -> Reasoned Assumption.
A80: Timing/date when bridge would be closed to traffic under no-build | B80: - | C80: =Inputs!D11 -> 2021-01-01 | D80: Engineering assessment.
A81: =Inputs!B51 -> Vehicle Operating Costs
A82: Passenger Vehicles | B82: $ per mile | C82: =OperatingCost_Passenger -> 0.41 | D82: =Inputs!E52 -> US DOT, Benefit-Cost Analysis Guidance for Discretionary Grants Program, January 2020.
A83: Trucks | C83: =OperatingCost_Trucks -> 0.96 | D83: =Inputs!E53 -> US DOT, Benefit-Cost Analysis Guidance for Discretionary Grants Program, January 2020.
A86: Table 8
B87: In Constant Dollars | C87: Discounted at 7 Percent | D87: Discounted at 3 Percent
A89: Monetary Value of Travel Time Saving | B89: =Results!D6 -> 104.5824218 | C89: =Results!E6 -> 30.00444299 | D89: =Results!F6 -> 58.14514494
A90: Monetary Value of Vehicle Operating Cost Savings | B90: =Results!D7 -> 102.0713506 | C90: =Results!E7 -> 29.28402273 | D90: =Results!F7 -> 56.7490537
A91: Total | B91: =SUM(B89:B90) -> 206.6537724 | C91: =SUM(C89:C90) -> 59.28846572 | D91: =SUM(D89:D90) -> 114.8941986
A94: Table 9
A95: Variable Name | B95: Unit | C95: Value | D95: Source
A96: Nitrogen Oxides (NOx) | B96: $ per metric ton | C96: =Inputs!D57 -> 9480 | D96: =Inputs!E57 -> US DOT, Benefit-Cost Analysis Guidance for Discretionary Grants Program, January 2020.
A97: Fine Particulate Matter (PM2.5) | B97: $ per metric ton | C97: =Inputs!D58 -> 426925 | D97: =Inputs!E58 -> US DOT, Benefit-Cost Analysis Guidance for Discretionary Grants Program, January 2020.
A98: Sulfur Dioxide (SO2) | B98: $ per metric ton | C98: =Inputs!D59 -> 55226 | D98: =Inputs!E59 -> US DOT, Benefit-Cost Analysis Guidance for Discretionary Grants Program, January 2020.
A99: Volatile Organic Compounds (VOC) | B99: $ per metric ton | C99: =Inputs!D60 -> 2315 | D99: =Inputs!E60 -> US DOT, Benefit-Cost Analysis Guidance for Discretionary Grants Program, January 2020.
A100: Calculated Aggregate Emission Costs, 2019-2035
A101: Auto | B101: $/mile | C101: =EmissionCost_Auto1 -> 0.0025410191 | D101: Calculated by HDR for assumed average speed of 65mph.
A102: Truck | B102: $/mile | C102: =EmissionCost_Truck1 -> 0.0210333702 | D102: Calculated by HDR for assumed average speed of 65mph.
A103: Calculated Aggregate Emission Costs, 2036-2043
A104: Auto | B104: $/mile | C104: =EmissionCost_Auto1 -> 0.0025410191 | D104: Calculated by HDR for assumed average speed of 65mph.
A105: Truck | B105: $/mile | C105: =EmissionCost_Truck1 -> 0.0210333702 | D105: Calculated by HDR for assumed average speed of 65mph.
A107: Table 10
B108: In Constant Dollars | C108: Discounted at 7 Percent | D108: Discounted at 3 Percent
A110: Monetary Value of Environmental Benefits | B110: =Results!D9 -> 0.5689273255 | C110: =Results!E9 -> 0.2339242992 | D110: =Results!F9 -> 0.3754944588
A112: Table 11
A113: Variable Name | B113: Unit | C113: Value | D113: Source
A114: Annual Operating and Maintenance Cost in 2020 | B114: $ | C114: ='Project Costs'!C93 -> 46650 | D114: Oklahoma Department of Transportation
A115: Annual Operating and Maintenance Cost after Bridge Closure | B115: $ | C115: ='Project Costs'!C94 -> 93300 | D115: Oklahoma Department of Transportation
A117: Table 12
B118: In Constant Dollars | C118: Discounted at 7 Percent | D118: Discounted at 3 Percent
A120: Monetary Value of Agency Costs Savings | B120: =Results!D10 -> 3.00672023 | C120: =Results!E10 -> 1.111743299 | D120: =Results!F10 -> 1.853073072
A122: Table 13
A123: Project Evaluation Metric | B123: Undiscounted | C123: Present Value at 7% Discount Rate | D123: Present Value at 3% Discount Rate
A124: Total Discounted Benefits | B124: =Results!D17 -> 272.026914 | C124: =Results!E17 -> 78.36368439 | D124: =Results!F17 -> 151.4805883
A125: Total O&M Costs | B125: =Results!D18 -> 13.29554168 | C125: =Results!E18 -> 2.193847247 | D125: =Results!F18 -> 5.819984907
A126: Total Discounted Costs | B126: =Results!D19 -> 35.0214736 | C126: =Results!E19 -> 27.85843383 | D126: =Results!F19 -> 31.68012192
A127: Net Present Value | B127: =Results!D20 -> 223.7098988 | C127: =Results!E20 -> 48.31140331 | D127: =Results!F20 -> 113.9804815
A128: Benefit / Cost Ratio | B128: =Results!D22 -> 7.387792281 | C128: =Results!E22 -> 2.734175137 | D128: =Results!F22 -> 4.597854889
A129: Internal Rate of Return (%) | B129: =Results!D24 -> 0.1898060209
A131: Table 14
A132: Benefit Categories | B132: Over Project Lifecycle
B133: Undiscounted | C133: Present Value at 7% Discount Rate | D133: Present Value at 3% Discount Rate
A134: Travel Time Savings | B134: =Results!D6 -> 104.5824218 | C134: =Results!E6 -> 30.00444299 | D134: =Results!F6 -> 58.14514494 | E134: =C134/$C$139 -> 0.3828870888
A135: Vehicle Operating Cost Savings | B135: =Results!D7 -> 102.0713506 | C135: =Results!E7 -> 29.28402273 | D135: =Results!F7 -> 56.7490537 | E135: =C135/$C$139 -> 0.3736937966
A136: Reduction in Accident Costs | B136: =Results!D8 -> 61.79749411 | C136: =Results!E8 -> 17.72955107 | D136: =Results!F8 -> 34.35782218 | E136: 0.2262470328
A137: Environmental Cost Savings | B137: =Results!D9 -> 0.5689273255 | C137: =Results!E9 -> 0.2339242992 | D137: =Results!F9 -> 0.3754944588 | E137: 0.002985111038
A138: =Results!B10 -> Agency Cost Saving | B138: =Results!D10 -> 3.00672023 | C138: =Results!E10 -> 1.111743299 | D138: =Results!F10 -> 1.853073072 | E138: 0.01418697077
A139: Total Benefits | B139: =SUM(B134:B138) -> 272.026914 | C139: =SUM(C134:C138) -> 78.36368439 | D139: =SUM(D134:D138) -> 151.4805883
A141: Table 15
A142: Parameters | B142: Change in Parameter Value | C142: New NPV | D142: % Change in NPV | E142: New B/C Ratio
A143: Value of Travel Time | B143: Lower Bound of Range Recommended by US DOT (Auto $10.63 and Truck $23.58) | C143: 39.99198513 | D143: =(C143-Results!$E$13)/Results!$E$13 -> -0.1722040266 | E143: 2.435543196
B144: Upper Bound of Range Recommended by US DOT (Auto $18.17 and Truck $35.42) | C144: 54.20402675 | D144: =(C144-Results!$E$13)/Results!$E$13 -> 0.1219716886 | E144: 2.945695407
A145: Value of Statistical Life | B145: Lower Bound of Range Recommended by US DOT ($5.4 million) | C145: 42.81189457 | D145: =(C145-Results!$E$13)/Results!$E$13 -> -0.1138345889 | E145: 2.536766023
B146: Upper Bound of Range Recommended by US DOT ($13.4 million) | C146: 53.28329815 | D146: =(C146-Results!$E$13)/Results!$E$13 -> 0.1029134842 | E146: 2.912645142
A147: Capital Cost Estimate | B147: 25% Reduction | C147: 54.93574134 | D147: =(C147-Results!$E$13)/Results!$E$13 -> 0.1371174832 | E147: 3.587394028
B148: 25% Increase | C148: 41.68302156 | D148: =(C148-Results!$E$13)/Results!$E$13 -> -0.1372011842 | E148: 2.208736288
A149: Rate of Growth in Traffic | B149: Reduction from 1.98% to 1% Annually | C149: 36.8150594 | D149: =(C149-Results!$E$13)/Results!$E$13 -> -0.237963361 | E149: 2.321504993

Sheet Inputs
B2: General Inputs
B4: General Inputs | C4: Units | D4: Value | E4: Source/Comment
B5: Real Discount Factor | C5: % | D5: 0.07 | E5: US DOT, Benefit-Cost Analysis Guidance for Discretionary Grants Program, January 2020.
B6: Real Discount Factor - Sensitivity | C6: % | D6: 0.03 | E6: US DOT, Benefit-Cost Analysis Guidance for Discretionary Grants Program, January 2020.
B7: Base Year of Analysis | C7: - | D7: 2019 | E7: Reasoned Assumption.
B8: First Year of Benefits | C8: - | D8: 2024 | E8: Reasoned Assumption.
B9: Length of Analysis | C9: - | D9: 20 | E9: Reasoned Assumption.
B10: End Year of Analysis | C10: - | D10: =D9+(D8)-1 -> 2043 | E10: Reasoned Assumption.
B11: First Year of Bridge Closures under No-Build | C11: - | D11: 2021-01-01 | E11: Engineering assessment.
B12: National Bridge Inventory (NBI) Identifier (Bridge #) | C12: Number | D12: 40850000000000 | E12: NBI.
B13: Time/Data start construction | C13: - | D13: 2022-01-01 | E13: Engineering assessment.
B14: Time/Data end construction | C14: - | D14: 2023-07-25 | E14: Engineering assessment.
B15: GDP Deflator 2020 to 2018 | C15: Index | D15: ='Deflation Factors'!C95 -> 1.039521392 | E15: Office of Management and Budget- Table 10.1 Gross Domestic Product and Deflators used in the historical Tables: 1940-2025.
B17: Traffic Inputs | C17: Units | D17: Value | E17: Source/Comment
B18: Current traffic (2018) | C18: ADT | D18: 1800 | E18: Oklahoma Department of Transportation (ODOT), See tab "Traffic Projection".
B19: Future Traffic (2060) | C19: ADT | D19: 4100 | E19: ODOT, See tab "Traffic Projection".
B20: Traffic Rate of Growth | C20: % | D20: =(D19/D18)^(1/(2060-2018))-1-G20 -> 0.01979334859 | E20: Calculated from above. | G20: 0 | H20: <<< for sensitivity testing
B21: Percent of Truck Traffic | C21: % | D21: 0.21 | E21: Oklahoma Department of Transportation's Collision Analysis and Safety Branch.
B22: Typical Route Length | C22: Miles | D22: 5 | E22: Calculated based on Google maps.
B23: Typical Route Travel Time | C23: Minutes | D23: 5 | E23: Calculated based on Google maps.
B24: Detour Route Length | C24: Miles | D24: 11.5 | E24: Calculated based on Google maps.
B25: Detour Route Travel Time | C25: Minutes | D25: 13 | E25: Calculated based on Google maps.
B26: Auto Traffic that would be detoured | C26: % | D26: 1 | E26: Reasoned Assumption.
B27: Truck Traffic that would be detoured | C27: % | D27: 1 | E27: Reasoned Assumption.
B28: Crash Rate on Bridge | C28: Number per 100m VMT | D28: 124.82 | E28: Oklahoma Department of Transportation- Collision Analysis and Safety Branch .
B29: Fatal Accidents | C29: % of total | D29: 0 | E29: Calculated from ODOT collision Data for the bridge over period 2014-2018.
B30: Injury Accidents | C30: % of total | D30: 0 | E30: Calculated from ODOT collision Data for the bridge over period 2014-2018.
B31: PDO Accidents | C31: % of total | D31: 1 | E31: Calculated from ODOT collision Data for the bridge over period 2014-2018.
B32: Crash Rate on Detour Route | C32: Number per 100m VMT | D32: 64.51 | E32: Oklahoma Department of Transportation- Collision Analysis and Safety Branch.
B33: Fatal Accidents | C33: % of total | D33: 0.02058 | E33: Calculated from ODOT collision Data for the bridge over period 2013-2018.
B34: Injury Accidents | C34: % of total | D34: =14.815%+14.815% -> 0.2963 | E34: Calculated from ODOT collision Data for the bridge over period 2013-2018.
B35: PDO Accidents | C35: % of total | D35: =1-PercentFatal_Detour-D34 -> 0.68312 | E35: Calculated from ODOT collision Data for the bridge over period 2013-2018.
B36: Number of injured per injury crash on bridge | C36: Number per event | D36: 0 | E36: Calculated from bridge crash statistics 2013 to 2018 provided By Oklahoma Department of Transportation- Collision Analysis and Safety Branch.
B37: Number of injured per injury crash on detour | C37: Number per event | D37: 1.57 | E37: Calculated from detour crash statistics 2014 to 2018 provided By Oklahoma Department of Transportation- Collision Analysis and Safety Branch.
B38: Number of damaged vehicles per PDO crash | C38: Number per event | D38: 1.59 | E38: California Department of Transportation, TASAS Unit, 2010 to 2013 average.
B39: Average Vehicle Occupancy | C39: persons per vehicle | D39: 1.67 | E39: US DOT, Benefit-Cost Analysis Guidance for Discretionary Grants Program, January 2020.
B40: Crash Modification Factors - Widen Lane (add 2 ft. to both sides) - All crash type | C40: CMF | D40: 0.77 | E40: CMF Clearinghouse, CMF ID 894. CMFs determined to mirror installation feature.
B41: Annualization Factor | C41: Number | D41: 365
B43: Valuation Parameters | C43: Units | D43: Value | E43: Source/Comment | H43: Alternative Values
B44: Value of Time | H44: Low | I44: High
B45: Autos | C45: $/h | D45: =G45 -> 15.2 | E45: US DOT, Benefit-Cost Analysis Guidance for Discretionary Grants Program, January 2020. | G45: 15.2 | H45: 10.62764228 | I45: 18.16585366 | J45: <<< for sensiivity testing
B46: Trucks | C46: $/h | D46: =G46 -> 29.5 | E46: US DOT, Benefit-Cost Analysis Guidance for Discretionary Grants Program, January 2020. | G46: 29.5 | H46: 23.57677165 | I46: 35.42322835
B47: Accident Costs
B48: Fatality | C48: $/Victim | D48: =G48 -> 9600000 | E48: US DOT, Benefit-Cost Analysis Guidance for Discretionary Grants Program, January 2020. | G48: 9600000 | H48: 5400000 | I48: 13400000
B49: Injury | C49: $/Victim | D49: 174000 | E49: US DOT, Benefit-Cost Analysis Guidance for Discretionary Grants Program, January 2020.
B50: No Injury/ PDO | C50: $/vehicle | D50: 4400 | E50: US DOT, Benefit-Cost Analysis Guidance for Discretionary Grants Program, January 2020.
B51: Vehicle Operating Costs
B52: Passenger Vehicles | C52: $ per mile | D52: 0.41 | E52: US DOT, Benefit-Cost Analysis Guidance for Discretionary Grants Program, January 2020.
B53: Trucks | C53: $ per mile | D53: 0.96 | E53: US DOT, Benefit-Cost Analysis Guidance for Discretionary Grants Program, January 2020.
B55: Emissions Inputs | C55: Units | D55: Value | E55: Source/Comment
B56: Emission Cost
B57: NOX | C57: $/metric tonne | D57: 9480 | E57: US DOT, Benefit-Cost Analysis Guidance for Discretionary Grants Program, January 2020.
B58: PM | C58: $/metric tonne | D58: 426925 | E58: US DOT, Benefit-Cost Analysis Guidance for Discretionary Grants Program, January 2020.
B59: SOX | C59: $/metric tonne | D59: 55226 | E59: US DOT, Benefit-Cost Analysis Guidance for Discretionary Grants Program, January 2020.
B60: VOC | C60: $/metric tonne | D60: 2315 | E60: US DOT, Benefit-Cost Analysis Guidance for Discretionary Grants Program, January 2020.

Sheet Traffic
A1: Traffic Projections
I2: 1 | J2: =I2+1 -> 2 | K2: =J2+1 -> 3 | L2: 4 | M2: 5 | N2: 6 | O2: 7 | P2: 8 | Q2: 9 | R2: 10 | S2: 11 | T2: 12 | U2: 13 | V2: 14 | W2: 15 | X2: 16 | Y2: 17 | Z2: 18 | AA2: 19 | AB2: 20 | AC2: 21 | AD2: 22 | AE2: 23 | AF2: 24 | AG2: 25 | AH2: 26 | AI2: 27 | AJ2: 28 | AK2: 29 | AL2: 30
B3: Unit | C3: Value | D3: =2019 -> 2019 | E3: =D3+1 -> 2020 | F3: 2021 | G3: 2022 | H3: 2023 | I3: 2024 | J3: 2025 | K3: 2026 | L3: 2027 | M3: 2028 | N3: 2029 | O3: 2030 | P3: 2031 | Q3: 2032 | R3: 2033 | S3: 2034 | T3: 2035 | U3: 2036 | V3: 2037 | W3: 2038 | X3: 2039 | Y3: 2040 | Z3: 2041 | AA3: 2042 | AB3: 2043 | AC3: 2044 | AD3: 2045 | AE3: 2046 | AF3: 2047 | AG3: 2048 | AH3: 2049 | AI3: 2050 | AJ3: 2051 | AK3: 2052 | AL3: 2053
A5: Total Traffic | B5: ADT | D5: =Inputs!D18*(1+Inputs!$D$20) -> 1835.628027 | E5: =D5*(1+Inputs!$D$20) -> 1871.961253 | F5: =E5*(1+Inputs!$D$20) -> 1909.013635 | G5: =F5*(1+Inputs!$D$20) -> 1946.799407 | H5: =G5*(1+Inputs!$D$20) -> 1985.333086 | I5: =H5*(1+Inputs!$D$20) -> 2024.629476 | J5: =I5*(1+Inputs!$D$20) -> 2064.703673 | K5: =J5*(1+Inputs!$D$20) -> 2105.571073 | L5: =K5*(1+Inputs!$D$20) -> 2147.247375 | M5: =L5*(1+Inputs!$D$20) -> 2189.748591 | N5: =M5*(1+Inputs!$D$20) -> 2233.091048 | O5: =N5*(1+Inputs!$D$20) -> 2277.291397 | P5: =O5*(1+Inputs!$D$20) -> 2322.36662 | Q5: =P5*(1+Inputs!$D$20) -> 2368.334032 | R5: =Q5*(1+Inputs!$D$20) -> 2415.211293 | S5: =R5*(1+Inputs!$D$20) -> 2463.016412 | T5: =S5*(1+Inputs!$D$20) -> 2511.767754 | U5: =T5*(1+Inputs!$D$20) -> 2561.484049 | V5: =U5*(1+Inputs!$D$20) -> 2612.184396 | W5: =V5*(1+Inputs!$D$20) -> 2663.888272 | X5: =W5*(1+Inputs!$D$20) -> 2716.615541 | Y5: =X5*(1+Inputs!$D$20) -> 2770.38646 | Z5: =Y5*(1+Inputs!$D$20) -> 2825.221685 | AA5: =Z5*(1+Inputs!$D$20) -> 2881.142282 | AB5: =AA5*(1+Inputs!$D$20) -> 2938.169736 | AC5: =AB5*(1+Inputs!$D$20) -> 2996.325954 | AD5: =AC5*(1+Inputs!$D$20) -> 3055.633278 | AE5: =AD5*(1+Inputs!$D$20) -> 3116.114493 | AF5: =AE5*(1+Inputs!$D$20) -> 3177.792833 | AG5: =AF5*(1+Inputs!$D$20) -> 3240.691994 | AH5: =AG5*(1+Inputs!$D$20) -> 3304.836141 | AI5: =AH5*(1+Inputs!$D$20) -> 3370.249914 | AJ5: =AI5*(1+Inputs!$D$20) -> 3436.958446 | AK5: =AJ5*(1+Inputs!$D$20) -> 3504.987362 | AL5: =AK5*(1+Inputs!$D$20) -> 3574.362799
A6: Share of Traffic - Auto | B6: % | D6: =1-ShareTruck -> 0.79 | E6: =1-ShareTruck -> 0.79 | F6: 0.79 | G6: 0.79 | H6: 0.79 | I6: 0.79 | J6: 0.79 | K6: 0.79 | L6: 0.79 | M6: 0.79 | N6: 0.79 | O6: 0.79 | P6: 0.79 | Q6: 0.79 | R6: 0.79 | S6: 0.79 | T6: 0.79 | U6: 0.79 | V6: 0.79 | W6: 0.79 | X6: 0.79 | Y6: 0.79 | Z6: 0.79 | AA6: 0.79 | AB6: 0.79 | AC6: 0.79 | AD6: 0.79 | AE6: 0.79 | AF6: 0.79 | AG6: 0.79 | AH6: 0.79 | AI6: 0.79 | AJ6: 0.79 | AK6: 0.79 | AL6: 0.79
A7: Share of Traffic - Trucks | B7: % | D7: =Inputs!$D$21 -> 0.21 | E7: =Inputs!$D$21 -> 0.21 | F7: =Inputs!$D$21 -> 0.21 | G7: =Inputs!$D$21 -> 0.21 | H7: =Inputs!$D$21 -> 0.21 | I7: =Inputs!$D$21 -> 0.21 | J7: =Inputs!$D$21 -> 0.21 | K7: =Inputs!$D$21 -> 0.21 | L7: =Inputs!$D$21 -> 0.21 | M7: =Inputs!$D$21 -> 0.21 | N7: =Inputs!$D$21 -> 0.21 | O7: =Inputs!$D$21 -> 0.21 | P7: =Inputs!$D$21 -> 0.21 | Q7: =Inputs!$D$21 -> 0.21 | R7: =Inputs!$D$21 -> 0.21 | S7: =Inputs!$D$21 -> 0.21 | T7: =Inputs!$D$21 -> 0.21 | U7: =Inputs!$D$21 -> 0.21 | V7: =Inputs!$D$21 -> 0.21 | W7: =Inputs!$D$21 -> 0.21 | X7: =Inputs!$D$21 -> 0.21 | Y7: =Inputs!$D$21 -> 0.21 | Z7: =Inputs!$D$21 -> 0.21 | AA7: =Inputs!$D$21 -> 0.21 | AB7: =Inputs!$D$21 -> 0.21 | AC7: =Inputs!$D$21 -> 0.21 | AD7: =Inputs!$D$21 -> 0.21 | AE7: =Inputs!$D$21 -> 0.21 | AF7: =Inputs!$D$21 -> 0.21 | AG7: =Inputs!$D$21 -> 0.21 | AH7: =Inputs!$D$21 -> 0.21 | AI7: =Inputs!$D$21 -> 0.21 | AJ7: =Inputs!$D$21 -> 0.21 | AK7: =Inputs!$D$21 -> 0.21 | AL7: =Inputs!$D$21 -> 0.21
A9: Daily VMT with Bridge Detour | B9: Unit | C9: Value | D9: 2019 | E9: =D9+1 -> 2020 | F9: 2021 | G9: 2022 | H9: 2023 | I9: 2024 | J9: 2025 | K9: 2026 | L9: 2027 | M9: 2028 | N9: 2029 | O9: 2030 | P9: 2031 | Q9: 2032 | R9: 2033 | S9: 2034 | T9: 2035 | U9: 2036 | V9: 2037 | W9: 2038 | X9: 2039 | Y9: 2040 | Z9: 2041 | AA9: 2042 | AB9: 2043 | AC9: =AB9+1 -> 2044 | AD9: =AC9+1 -> 2045 | AE9: =AD9+1 -> 2046 | AF9: =AE9+1 -> 2047 | AG9: =AF9+1 -> 2048 | AH9: =AG9+1 -> 2049 | AI9: =AH9+1 -> 2050 | AJ9: =AI9+1 -> 2051 | AK9: =AJ9+1 -> 2052 | AL9: =AK9+1 -> 2053
A10: Total Daily VMT with Bridge Detour | B10: Daily VMT | D10: =D11+D12 -> 21109.72232 | E10: =E11+E12 -> 21527.55441 | F10: 21953.6568 | G10: 22388.19318 | H10: 22831.33049 | I10: 23283.23897 | J10: 23744.09224 | K10: 24214.06733 | L10: 24693.34481 | M10: 25182.10879 | N10: 25680.54705 | O10: 26188.85107 | P10: 26707.21613 | Q10: 27235.84137 | R10: 27774.92987 | S10: 28324.68874 | T10: 28885.32918 | U10: 29457.06657 | V10: 30040.12055 | W10: 30634.71513 | X10: 31241.07873 | Y10: 31859.44429 | Z10: 32490.04938 | AA10: 33133.13625 | AB10: =AB11+AB12 -> 33788.95196 | AC10: =AC11+AC12 -> 34457.74847 | AD10: 35139.7827 | AE10: 35835.31666 | AF10: 36544.61758 | AG10: 37267.95793 | AH10: 38005.61562 | AI10: 38757.87402 | AJ10: 39525.02213 | AK10: 40307.35467 | AL10: 41105.17219
A11: Auto Daily VMT with Bridge Detour | B11: Daily VMT | D11: =D5*(1-(D7))*DetourLength*AutoDetour -> 16676.68063 | E11: =E5*(1-(E7))*DetourLength*AutoDetour -> 17006.76798 | F11: 17343.38887 | G11: 17686.67261 | H11: 18036.75109 | I11: 18393.75879 | J11: 18757.83287 | K11: 19129.11319 | L11: 19507.7424 | M11: 19893.86595 | N11: 20287.63217 | O11: 20689.19234 | P11: 21098.70074 | Q11: 21516.31468 | R11: 21942.1946 | S11: 22376.5041 | T11: 22819.41005 | U11: 23271.08259 | V11: 23731.69524 | W11: 24201.42495 | X11: 24680.45219 | Y11: 25168.96099 | Z11: 25667.13901 | AA11: 26175.17764 | AB11: =AB5*(1-(AB7))*DetourLength*AutoDetour -> 26693.27205 | AC11: 27221.62129 | AD11: 27760.42833 | AE11: 28309.90016 | AF11: 28870.24789 | AG11: 29441.68677 | AH11: 30024.43634 | AI11: 30618.72047 | AJ11: 31224.76748 | AK11: 31842.81019 | AL11: 32473.08603
A12: Trucks Daily VMT with Bridge Detour | B12: Daily VMT | D12: =D5*D7*DetourLength*TruckDetour -> 4433.041686 | E12: 4520.786426 | F12: 4610.267927 | G12: 4701.520568 | H12: 4794.579403 | I12: 4889.480185 | J12: 4986.25937 | K12: 5084.95414 | L12: 5185.60241 | M12: 5288.242846 | N12: 5392.91488 | O12: 5499.658725 | P12: 5608.515387 | Q12: 5719.526687 | R12: 5832.735273 | S12: 5948.184635 | T12: 6065.919127 | U12: 6185.983979 | V12: 6308.425316 | W12: 6433.290177 | X12: 6560.626533 | Y12: 6690.483301 | Z12: 6822.910369 | AA12: 6957.958612 | AB12: =AB5*AB7*DetourLength*TruckDetour -> 7095.679912 | AC12: 7236.127178 | AD12: 7379.354366 | AE12: 7525.4165 | AF12: 7674.369692 | AG12: 7826.271166 | AH12: 7981.17928 | AI12: 8139.153543 | AJ12: 8300.254647 | AK12: 8464.54448 | AL12: 8632.08616
A14: Daily VMT with Bridge Operational | B14: Unit | C14: Value | D14: 2019 | E14: =D14+1 -> 2020 | F14: 2021 | G14: 2022 | H14: 2023 | I14: 2024 | J14: 2025 | K14: 2026 | L14: 2027 | M14: 2028 | N14: 2029 | O14: 2030 | P14: 2031 | Q14: 2032 | R14: 2033 | S14: 2034 | T14: 2035 | U14: 2036 | V14: 2037 | W14: 2038 | X14: 2039 | Y14: 2040 | Z14: 2041 | AA14: 2042 | AB14: 2043 | AC14: =AB14+1 -> 2044 | AD14: =AC14+1 -> 2045 | AE14: =AD14+1 -> 2046 | AF14: =AE14+1 -> 2047 | AG14: =AF14+1 -> 2048 | AH14: =AG14+1 -> 2049 | AI14: =AH14+1 -> 2050 | AJ14: =AI14+1 -> 2051 | AK14: =AJ14+1 -> 2052 | AL14: =AK14+1 -> 2053
A15: Total Daily VMT with Bridge | B15: Daily VMT | D15: =D16+D17 -> 9178.140137 | E15: =E16+E17 -> 9359.806265 | F15: 9545.068173 | G15: 9733.997034 | H15: 9926.665431 | I15: 10123.14738 | J15: 10323.51837 | K15: 10527.85536 | L15: 10736.23687 | M15: 10948.74295 | N15: 11165.45524 | O15: 11386.45699 | P15: 11611.8331 | Q15: 11841.67016 | R15: 12076.05646 | S15: 12315.08206 | T15: 12558.83877 | U15: 12807.42025 | V15: 13060.92198 | W15: 13319.44136 | X15: 13583.07771 | Y15: 13851.9323 | Z15: 14126.10842 | AA15: 14405.71141 | AB15: =AB16+AB17 -> 14690.84868 | AC15: =AC16+AC17 -> 14981.62977 | AD15: 15278.16639 | AE15: 15580.57246 | AF15: 15888.96416 | AG15: 16203.45997 | AH15: 16524.1807 | AI15: 16851.24957 | AJ15: 17184.79223 | AK15: 17524.93681 | AL15: 17871.814
A16: Auto Daily VMT with Bridge | B16: Daily VMT | D16: =D5*(1-D7)*BridgeLength -> 7250.730709 | E16: =E5*(1-E7)*BridgeLength -> 7394.246949 | F16: 7540.603856 | G16: 7689.857657 | H16: 7842.06569 | I16: 7997.28643 | J16: 8155.579508 | K16: 8317.005737 | L16: 8481.62713 | M16: 8649.506933 | N16: 8820.709639 | O16: 8995.30102 | P16: 9173.348148 | Q16: 9354.919426 | R16: 9540.084607 | S16: 9728.914827 | T16: 9921.48263 | U16: 10117.86199 | V16: 10318.12836 | W16: 10522.35868 | X16: 10730.63139 | Y16: 10943.02652 | Z16: 11159.62565 | AA16: 11380.51202 | AB16: =AB5*(1-AB7)*BridgeLength -> 11605.77046 | AC16: 11835.48752 | AD16: 12069.75145 | AE16: 12308.65225 | AF16: 12552.28169 | AG16: 12800.73338 | AH16: 13054.10276 | AI16: 13312.48716 | AJ16: 13575.98586 | AK16: 13844.70008 | AL16: 14118.73306
A17: Trucks Daily VMT with Bridge | B17: Daily VMT | D17: =D5*D7*BridgeLength -> 1927.409429 | E17: =E5*E7*BridgeLength -> 1965.559316 | F17: 2004.464316 | G17: 2044.139377 | H17: 2084.59974 | I17: 2125.86095 | J17: 2167.938857 | K17: 2210.849626 | L17: 2254.609744 | M17: 2299.23602 | N17: 2344.7456 | O17: 2391.155967 | P17: 2438.484951 | Q17: 2486.750733 | R17: 2535.971858 | S17: 2586.167233 | T17: 2637.356142 | U17: 2689.558252 | V17: 2742.793616 | W17: 2797.082686 | X17: 2852.446319 | Y17: 2908.905783 | Z17: 2966.482769 | AA17: 3025.199397 | AB17: =AB5*AB7*BridgeLength -> 3085.078223 | AC17: 3146.142252 | AD17: 3208.414942 | AE17: 3271.920217 | AF17: 3336.682475 | AG17: 3402.726594 | AH17: 3470.077948 | AI17: 3538.76241 | AJ17: 3608.806368 | AK17: 3680.236731 | AL17: 3753.080939
A19: Key Quantified Impacts
A20: Total Daily Auto VMT Avoided | B20: Daily VMT | D20: =(SUM(D11:D11)-SUM(D16:D16)) -> 9425.949921 | E20: 9612.521034 | F20: 9802.785013 | G20: 9996.814954 | H20: 10194.6854 | I20: 10396.47236 | J20: 10602.25336 | K20: 10812.10746 | L20: 11026.11527 | M20: 11244.35901 | N20: 11466.92253 | O20: 11693.89133 | P20: 11925.35259 | Q20: 12161.39525 | R20: 12402.10999 | S20: 12647.58928 | T20: 12897.92742 | U20: 13153.22059 | V20: 13413.56687 | W20: 13679.06628 | X20: 13949.82081 | Y20: 14225.93447 | Z20: 14507.51335 | AA20: 14794.66562 | AB20: =(SUM(AB11:AB11)-SUM(AB16:AB16)) -> 15087.50159 | AC20: =(SUM(AC11:AC11)-SUM(AC16:AC16)) -> 15386.13377 | AD20: 15690.67688 | AE20: 16001.24792 | AF20: 16317.9662 | AG20: 16640.95339 | AH20: 16970.33358 | AI20: 17306.23331 | AJ20: 17648.78162 | AK20: 17998.11011 | AL20: 18354.35297
A21: Total Daily Trucks VMT Avoided | B21: Daily VMT | D21: =D12-D17 -> 2505.632257 | E21: 2555.22711 | F21: 2605.803611 | G21: 2657.38119 | H21: 2709.979663 | I21: 2763.619235 | J21: 2818.320514 | K21: 2874.104514 | L21: 2930.992667 | M21: 2989.006826 | N21: 3048.16928 | O21: 3108.502757 | P21: 3170.030436 | Q21: 3232.775954 | R21: 3296.763415 | S21: 3362.017402 | T21: 3428.562985 | U21: 3496.425727 | V21: 3565.6317 | W21: 3636.207492 | X21: 3708.180214 | Y21: 3781.577518 | Z21: 3856.4276 | AA21: 3932.759216 | AB21: =AB12-AB17 -> 4010.60169 | AC21: =AC12-AC17 -> 4089.984927 | AD21: 4170.939424 | AE21: 4253.496282 | AF21: 4337.687217 | AG21: 4423.544572 | AH21: 4511.101332 | AI21: 4600.391133 | AJ21: 4691.448278 | AK21: 4784.30775 | AL21: 4879.005221

Sheet Calc-1
A1: Travel Time Saving due to Closure Avoidance
G2: 2022 - First Year of Construction under Build (Bridge Close)
F3: 2021 - First Year of Bridge Closured under No-Build
B4: Unit | C4: Value | D4: =BaseYear -> 2019 | E4: =D4+1 -> 2020 | F4: 2021 | G4: 2022 | H4: 2023 | I4: 2024 | J4: 2025 | K4: 2026 | L4: 2027 | M4: 2028 | N4: 2029 | O4: 2030 | P4: 2031 | Q4: 2032 | R4: 2033 | S4: 2034 | T4: 2035 | U4: 2036 | V4: 2037 | W4: 2038 | X4: 2039 | Y4: 2040 | Z4: 2041 | AA4: 2042 | AB4: 2043 | AC4: =AB4+1 -> 2044 | AD4: =AC4+1 -> 2045 | AE4: =AD4+1 -> 2046 | AF4: =AE4+1 -> 2047 | AG4: =AF4+1 -> 2048 | AH4: =AG4+1 -> 2049 | AI4: =AH4+1 -> 2050 | AJ4: =AI4+1 -> 2051 | AK4: =AJ4+1 -> 2052 | AL4: =AK4+1 -> 2053
A5: Benefits Index | B5: Number | D5: 0 | E5: 0 | F5: 0 | G5: 0 | H5: 0 | I5: 1 | J5: 2 | K5: 3 | L5: 4 | M5: 5 | N5: 6 | O5: 7 | P5: 8 | Q5: 9 | R5: 10 | S5: 11 | T5: 12 | U5: 13 | V5: 14 | W5: 15 | X5: 16 | Y5: 17 | Z5: 18 | AA5: 19 | AB5: 20 | AC5: 21 | AD5: 22 | AE5: 23 | AF5: 24 | AG5: 25 | AH5: 26 | AI5: 27 | AJ5: 28 | AK5: 29 | AL5: 30
A6: Discount Factor | B6: % | C6: 0.07 | D6: =1/(1+Inputs!$D$5)^(D4-$D$4) -> 1 | E6: =1/(1+Inputs!$D$5)^(E4-$D$4) -> 0.9345794393 | F6: =1/(1+Inputs!$D$5)^(F4-$D$4) -> 0.8734387283 | G6: =1/(1+Inputs!$D$5)^(G4-$D$4) -> 0.8162978769 | H6: =1/(1+Inputs!$D$5)^(H4-$D$4) -> 0.762895212 | I6: =1/(1+Inputs!$D$5)^(I4-$D$4) -> 0.7129861795 | J6: =1/(1+Inputs!$D$5)^(J4-$D$4) -> 0.6663422238 | K6: =1/(1+Inputs!$D$5)^(K4-$D$4) -> 0.6227497419 | L6: =1/(1+Inputs!$D$5)^(L4-$D$4) -> 0.5820091046 | M6: =1/(1+Inputs!$D$5)^(M4-$D$4) -> 0.5439337426 | N6: =1/(1+Inputs!$D$5)^(N4-$D$4) -> 0.5083492921 | O6: =1/(1+Inputs!$D$5)^(O4-$D$4) -> 0.4750927964 | P6: =1/(1+Inputs!$D$5)^(P4-$D$4) -> 0.4440119592 | Q6: =1/(1+Inputs!$D$5)^(Q4-$D$4) -> 0.4149644479 | R6: =1/(1+Inputs!$D$5)^(R4-$D$4) -> 0.387817241 | S6: =1/(1+Inputs!$D$5)^(S4-$D$4) -> 0.3624460196 | T6: =1/(1+Inputs!$D$5)^(T4-$D$4) -> 0.3387345978 | U6: =1/(1+Inputs!$D$5)^(U4-$D$4) -> 0.3165743905 | V6: =1/(1+Inputs!$D$5)^(V4-$D$4) -> 0.2958639163 | W6: =1/(1+Inputs!$D$5)^(W4-$D$4) -> 0.276508333 | X6: =1/(1+Inputs!$D$5)^(X4-$D$4) -> 0.2584190028 | Y6: =1/(1+Inputs!$D$5)^(Y4-$D$4) -> 0.2415130867 | Z6: =1/(1+Inputs!$D$5)^(Z4-$D$4) -> 0.2257131652 | AA6: =1/(1+Inputs!$D$5)^(AA4-$D$4) -> 0.2109468833 | AB6: =1/(1+Inputs!$D$5)^(AB4-$D$4) -> 0.1971466199 | AC6: =1/(1+Inputs!$D$5)^(AC4-$D$4) -> 0.1842491775 | AD6: =1/(1+Inputs!$D$5)^(AD4-$D$4) -> 0.172195493 | AE6: =1/(1+Inputs!$D$5)^(AE4-$D$4) -> 0.1609303673 | AF6: =1/(1+Inputs!$D$5)^(AF4-$D$4) -> 0.1504022124 | AG6: =1/(1+Inputs!$D$5)^(AG4-$D$4) -> 0.1405628154 | AH6: =1/(1+Inputs!$D$5)^(AH4-$D$4) -> 0.1313671172 | AI6: =1/(1+Inputs!$D$5)^(AI4-$D$4) -> 0.1227730067 | AJ6: =1/(1+Inputs!$D$5)^(AJ4-$D$4) -> 0.1147411277 | AK6: =1/(1+Inputs!$D$5)^(AK4-$D$4) -> 0.1072346988 | AL6: =1/(1+Inputs!$D$5)^(AL4-$D$4) -> 0.1002193447
A7: Discount Factor | B7: % | C7: 0.03 | D7: =1/(1+Inputs!$D$6)^(D4-$D$4) -> 1 | E7: =1/(1+Inputs!$D$6)^(E4-$D$4) -> 0.9708737864 | F7: =1/(1+Inputs!$D$6)^(F4-$D$4) -> 0.9425959091 | G7: =1/(1+Inputs!$D$6)^(G4-$D$4) -> 0.9151416594 | H7: =1/(1+Inputs!$D$6)^(H4-$D$4) -> 0.8884870479 | I7: =1/(1+Inputs!$D$6)^(I4-$D$4) -> 0.8626087844 | J7: =1/(1+Inputs!$D$6)^(J4-$D$4) -> 0.8374842567 | K7: =1/(1+Inputs!$D$6)^(K4-$D$4) -> 0.8130915113 | L7: =1/(1+Inputs!$D$6)^(L4-$D$4) -> 0.7894092343 | M7: =1/(1+Inputs!$D$6)^(M4-$D$4) -> 0.7664167323 | N7: =1/(1+Inputs!$D$6)^(N4-$D$4) -> 0.7440939149 | O7: =1/(1+Inputs!$D$6)^(O4-$D$4) -> 0.7224212766 | P7: =1/(1+Inputs!$D$6)^(P4-$D$4) -> 0.7013798802 | Q7: =1/(1+Inputs!$D$6)^(Q4-$D$4) -> 0.68095134 | R7: =1/(1+Inputs!$D$6)^(R4-$D$4) -> 0.6611178058 | S7: =1/(1+Inputs!$D$6)^(S4-$D$4) -> 0.6418619474 | T7: =1/(1+Inputs!$D$6)^(T4-$D$4) -> 0.6231669392 | U7: =1/(1+Inputs!$D$6)^(U4-$D$4) -> 0.6050164458 | V7: =1/(1+Inputs!$D$6)^(V4-$D$4) -> 0.5873946076 | W7: =1/(1+Inputs!$D$6)^(W4-$D$4) -> 0.5702860268 | X7: =1/(1+Inputs!$D$6)^(X4-$D$4) -> 0.5536757542 | Y7: =1/(1+Inputs!$D$6)^(Y4-$D$4) -> 0.5375492759 | Z7: =1/(1+Inputs!$D$6)^(Z4-$D$4) -> 0.5218925009 | AA7: =1/(1+Inputs!$D$6)^(AA4-$D$4) -> 0.5066917484 | AB7: =1/(1+Inputs!$D$6)^(AB4-$D$4) -> 0.4919337363 | AC7: =1/(1+Inputs!$D$6)^(AC4-$D$4) -> 0.4776055693 | AD7: =1/(1+Inputs!$D$6)^(AD4-$D$4) -> 0.4636947274 | AE7: =1/(1+Inputs!$D$6)^(AE4-$D$4) -> 0.4501890558 | AF7: =1/(1+Inputs!$D$6)^(AF4-$D$4) -> 0.4370767532 | AG7: =1/(1+Inputs!$D$6)^(AG4-$D$4) -> 0.4243463623 | AH7: =1/(1+Inputs!$D$6)^(AH4-$D$4) -> 0.4119867595 | AI7: =1/(1+Inputs!$D$6)^(AI4-$D$4) -> 0.3999871452 | AJ7: =1/(1+Inputs!$D$6)^(AJ4-$D$4) -> 0.3883370341 | AK7: =1/(1+Inputs!$D$6)^(AK4-$D$4) -> 0.3770262467 | AL7: =1/(1+Inputs!$D$6)^(AL4-$D$4) -> 0.3660448997
A9: =Traffic!A5 -> Total Traffic | B9: =Traffic!B5 -> ADT | C9: =Traffic!C5 -> 0 | D9: =Traffic!D5 -> 1835.628027 | E9: =Traffic!E5 -> 1871.961253 | F9: =Traffic!F5 -> 1909.013635 | G9: =Traffic!G5 -> 1946.799407 | H9: =Traffic!H5 -> 1985.333086 | I9: =Traffic!I5 -> 2024.629476 | J9: =Traffic!J5 -> 2064.703673 | K9: =Traffic!K5 -> 2105.571073 | L9: =Traffic!L5 -> 2147.247375 | M9: =Traffic!M5 -> 2189.748591 | N9: =Traffic!N5 -> 2233.091048 | O9: =Traffic!O5 -> 2277.291397 | P9: =Traffic!P5 -> 2322.36662 | Q9: =Traffic!Q5 -> 2368.334032 | R9: =Traffic!R5 -> 2415.211293 | S9: =Traffic!S5 -> 2463.016412 | T9: =Traffic!T5 -> 2511.767754 | U9: =Traffic!U5 -> 2561.484049 | V9: =Traffic!V5 -> 2612.184396 | W9: =Traffic!W5 -> 2663.888272 | X9: =Traffic!X5 -> 2716.615541 | Y9: =Traffic!Y5 -> 2770.38646 | Z9: =Traffic!Z5 -> 2825.221685 | AA9: =Traffic!AA5 -> 2881.142282 | AB9: =Traffic!AB5 -> 2938.169736 | AC9: =Traffic!AC5 -> 2996.325954 | AD9: =Traffic!AD5 -> 3055.633278 | AE9: =Traffic!AE5 -> 3116.114493 | AF9: =Traffic!AF5 -> 3177.792833 | AG9: =Traffic!AG5 -> 3240.691994 | AH9: =Traffic!AH5 -> 3304.836141 | AI9: =Traffic!AI5 -> 3370.249914 | AJ9: =Traffic!AJ5 -> 3436.958446 | AK9: =Traffic!AK5 -> 3504.987362 | AL9: =Traffic!AL5 -> 3574.362799
D10: =D9*0.21 -> 385.4818858
A11: Share of Traffic - Auto | B11: % | D11: =1-ShareTruck -> 0.79 | E11: 0.79 | F11: 0.79 | G11: 0.79 | H11: 0.79 | I11: 0.79 | J11: 0.79 | K11: 0.79 | L11: 0.79 | M11: 0.79 | N11: 0.79 | O11: 0.79 | P11: 0.79 | Q11: 0.79 | R11: 0.79 | S11: 0.79 | T11: 0.79 | U11: 0.79 | V11: 0.79 | W11: 0.79 | X11: 0.79 | Y11: 0.79 | Z11: 0.79 | AA11: 0.79 | AB11: 0.79 | AC11: 0.79 | AD11: 0.79 | AE11: 0.79 | AF11: 0.79 | AG11: 0.79 | AH11: 0.79 | AI11: 0.79 | AJ11: 0.79 | AK11: 0.79 | AL11: 0.79
A12: Share of Traffic - Trucks | B12: % | D12: =ShareTruck -> 0.21 | E12: 0.21 | F12: 0.21 | G12: 0.21 | H12: 0.21 | I12: 0.21 | J12: 0.21 | K12: 0.21 | L12: 0.21 | M12: 0.21 | N12: 0.21 | O12: 0.21 | P12: 0.21 | Q12: 0.21 | R12: 0.21 | S12: 0.21 | T12: 0.21 | U12: 0.21 | V12: 0.21 | W12: 0.21 | X12: 0.21 | Y12: 0.21 | Z12: 0.21 | AA12: 0.21 | AB12: 0.21 | AC12: 0.21 | AD12: 0.21 | AE12: 0.21 | AF12: 0.21 | AG12: 0.21 | AH12: 0.21 | AI12: 0.21 | AJ12: 0.21 | AK12: 0.21 | AL12: 0.21
A14: No Build Case Alternative | B14: Unit | C14: Value | D14: =BaseYear -> 2019 | E14: =D14+1 -> 2020 | F14: 2021 | G14: 2022 | H14: 2023 | I14: 2024 | J14: 2025 | K14: 2026 | L14: 2027 | M14: 2028 | N14: 2029 | O14: 2030 | P14: 2031 | Q14: 2032 | R14: 2033 | S14: 2034 | T14: 2035 | U14: 2036 | V14: 2037 | W14: 2038 | X14: 2039 | Y14: 2040 | Z14: 2041 | AA14: 2042 | AB14: 2043 | AC14: =AB14+1 -> 2044 | AD14: =AC14+1 -> 2045 | AE14: =AD14+1 -> 2046 | AF14: =AE14+1 -> 2047 | AG14: =AF14+1 -> 2048 | AH14: =AG14+1 -> 2049 | AI14: =AH14+1 -> 2050 | AJ14: =AI14+1 -> 2051 | AK14: =AJ14+1 -> 2052 | AL14: =AK14+1 -> 2053
A16: Auto Travel Time | B16: Hours | D16: =(D9*(1-(+ShareTruck))*(RouteTime/60)) -> 120.8455118 | E16: =(E9*(1-(+ShareTruck))*(RouteTime/60)) -> 123.2374491 | F16: =F9*(1-(ShareTruck))*AutoDetour*(DetourTime/60) -> 326.7595004 | G16: 333.2271651 | H16: 339.8228466 | I16: 346.5490786 | J16: 353.4084454 | K16: 360.4035819 | L16: 367.5371757 | M16: 374.8119671 | N16: 382.230751 | O16: 389.7963775 | P16: 397.5117531 | Q16: 405.3798418 | R16: 413.4036663 | S16: 421.5863092 | T16: 429.930914 | U16: 438.4406864 | V16: 447.1188958 | W16: 455.9688759 | X16: 464.9940268 | Y16: 474.1978157 | Z16: 483.5837784 | AA16: 493.1555207 | AB16: =AB9*(1-(ShareTruck))*AutoDetour*(DetourTime/60) -> 502.9167198 | AC16: 512.8711258 | AD16: 523.0225627 | AE16: 533.3749306 | AF16: 543.9322066 | AG16: 554.6984464 | AH16: 565.6777861 | AI16: 576.8744437 | AJ16: 588.2927206 | AK16: 599.9370035 | AL16: 611.8117658
A17: Truck Travel Time | B17: Hours | D17: =(D9*(ShareTruck)*(RouteTime/60)) -> 32.12349048 | E17: =(E9*(ShareTruck)*(RouteTime/60)) -> 32.75932193 | F17: =F9*ShareTruck*TruckDetour*(DetourTime/60) -> 86.86012037 | G17: 88.57937301 | H17: 90.33265542 | I17: 92.12064116 | J17: 93.94401712 | K17: 95.8034838 | L17: 97.69975555 | M17: 99.63356087 | N17: 101.6056427 | O17: 103.6167586 | P17: 105.6676812 | Q17: 107.7591985 | R17: 109.8921138 | S17: 112.0672467 | T17: 114.2854328 | U17: 116.5475242 | V17: 118.85439 | W17: 121.2069164 | X17: 123.6060071 | Y17: 126.0525839 | Z17: 128.5475867 | AA17: 131.0919739 | AB17: =AB9*ShareTruck*TruckDetour*(DetourTime/60) -> 133.686723 | AC17: 136.3328309 | AD17: 139.0313141 | AE17: 141.7832094 | AF17: 144.5895739 | AG17: 147.4514857 | AH17: 150.3700444 | AI17: 153.3463711 | AJ17: 156.3816093 | AK17: 159.476925 | AL17: 162.6335074
A19: Cost of Travel Time for Auto | B19: $/year | D19: =D16*timevalue_auto*Avg_Veh_Occ*Annualization_Factor -> 1119653.002 | E19: 1141814.684 | F19: 3027479.053 | G19: 3087403.001 | H19: 3148513.045 | I19: 3210832.662 | J19: 3274385.792 | K19: 3339196.851 | L19: 3405290.738 | M19: 3472692.845 | N19: 3541429.065 | O19: 3611525.805 | P19: 3683009.994 | Q19: 3755909.095 | R19: 3830251.113 | S19: 3906064.608 | T19: 3983378.707 | U19: 4062223.11 | V19: 4142628.108 | W19: 4224624.591 | X19: 4308244.058 | Y19: 4393518.634 | Z19: 4480481.08 | AA19: 4569164.804 | AB19: =AB16*timevalue_auto*Avg_Veh_Occ*Annualization_Factor -> 4659603.876 | AC19: 4751833.04 | AD19: 4845887.727 | AE19: 4941804.072 | AF19: 5039618.923 | AG19: 5139369.857 | AH19: 5241095.196 | AI19: 5344834.021 | AJ19: 5450626.184 | AK19: 5558512.328 | AL19: 5668533.9
A20: Cost of Travel Time for Trucks | B20: $/year | D20: =D17*TimeValue_truck*Annualization_Factor -> 345889.6838 | E20: 352735.9988 | F20: 935266.3461 | G20: 953778.3989 | H20: 972656.8672 | I20: 991909.0037 | J20: 1011542.204 | K20: 1031564.012 | L20: 1051982.118 | M20: 1072804.367 | N20: 1094038.757 | O20: 1115693.448 | P20: 1137776.757 | Q20: 1160297.169 | R20: 1183263.336 | S20: 1206684.079 | T20: 1230568.398 | U20: 1254925.467 | V20: 1279764.644 | W20: 1305095.472 | X20: 1330927.682 | Y20: 1357271.197 | Z20: 1384136.139 | AA20: 1411532.828 | AB20: =AB17*TimeValue_truck*Annualization_Factor -> 1439471.79 | AC20: 1467963.757 | AD20: 1497019.675 | AE20: 1526650.707 | AF20: 1556868.237 | AG20: 1587683.873 | AH20: 1619109.453 | AI20: 1651157.051 | AJ20: 1683838.978 | AK20: 1717167.79 | AL20: 1751156.29
A22: Total Travel Time | D22: =SUM(D19:D20) -> 1465542.686 | E22: 1494550.683 | F22: 3962745.399 | G22: 4041181.4 | H22: 4121169.913 | I22: 4202741.665 | J22: 4285927.996 | K22: 4370760.863 | L22: 4457272.856 | M22: 4545497.212 | N22: 4635467.823 | O22: 4727219.253 | P22: 4820786.752 | Q22: 4916206.264 | R22: 5013514.449 | S22: 5112748.688 | T22: 5213947.105 | U22: 5317148.577 | V22: 5422392.753 | W22: 5529720.063 | X22: 5639171.74 | Y22: 5750789.832 | Z22: 5864617.219 | AA22: 5980697.632 | AB22: =SUM(AB19:AB20) -> 6099075.666 | AC22: =SUM(AC19:AC20) -> 6219796.796 | AD22: 6342907.402 | AE22: 6468454.78 | AF22: 6596487.16 | AG22: 6727053.73 | AH22: 6860204.649 | AI22: 6995991.071 | AJ22: 7134465.161 | AK22: 7275680.117 | AL22: 7419690.19
A24: Build (Alternative Case) | B24: Unit | C24: Value | D24: =BaseYear -> 2019 | E24: =D24+1 -> 2020 | F24: 2021 | G24: 2022 | H24: 2023 | I24: 2024 | J24: 2025 | K24: 2026 | L24: 2027 | M24: 2028 | N24: 2029 | O24: 2030 | P24: 2031 | Q24: 2032 | R24: 2033 | S24: 2034 | T24: 2035 | U24: 2036 | V24: 2037 | W24: 2038 | X24: 2039 | Y24: 2040 | Z24: 2041 | AA24: 2042 | AB24: 2043 | AC24: =AB24+1 -> 2044 | AD24: =AC24+1 -> 2045 | AE24: =AD24+1 -> 2046 | AF24: =AE24+1 -> 2047 | AG24: =AF24+1 -> 2048 | AH24: =AG24+1 -> 2049 | AI24: =AH24+1 -> 2050 | AJ24: =AI24+1 -> 2051 | AK24: =AJ24+1 -> 2052 | AL24: =AK24+1 -> 2053
A26: Auto Travel Time | B26: Hours | D26: =(D9*(1-(+ShareTruck))*(RouteTime/60)) -> 120.8455118 | E26: =(E9*(1-(+ShareTruck))*(RouteTime/60)) -> 123.2374491 | F26: =F9*(1-(ShareTruck))*AutoDetour*(DetourTime/60) -> 326.7595004 | G26: =G9*(1-(ShareTruck))*AutoDetour*(DetourTime/60) -> 333.2271651 | H26: =H9*(1-(ShareTruck))*AutoDetour*(DetourTime/60) -> 339.8228466 | I26: =(I9*(1-(+ShareTruck))*(RouteTime/60)) -> 133.2881072 | J26: =(J9*(1-(+ShareTruck))*(RouteTime/60)) -> 135.9263251 | K26: 138.6167623 | L26: 141.3604522 | M26: 144.1584489 | N26: 147.0118273 | O26: 149.9216837 | P26: 152.8891358 | Q26: 155.9153238 | R26: 159.0014101 | S26: 162.1485805 | T26: 165.3580438 | U26: 168.6310332 | V26: 171.9688061 | W26: 175.3726446 | X26: 178.8438565 | Y26: 182.3837753 | Z26: 185.9937609 | AA26: 189.6752003 | AB26: =(AB9*(1-(+ShareTruck))*(RouteTime/60)) -> 193.4295076 | AC26: 197.2581253 | AD26: 201.1625241 | AE26: 205.1442041 | AF26: 209.2046948 | AG26: 213.3455563 | AH26: 217.5683793 | AI26: 221.874786 | AJ26: 226.266431 | AK26: 230.7450014 | AL26: 235.3122176
A27: Truck Travel Time | B27: Hours | D27: =(D9*(ShareTruck)*(RouteTime/60)) -> 32.12349048 | E27: =(E9*(ShareTruck)*(RouteTime/60)) -> 32.75932193 | F27: =F9*ShareTruck*TruckDetour*(DetourTime/60) -> 86.86012037 | G27: =G9*ShareTruck*TruckDetour*(DetourTime/60) -> 88.57937301 | H27: =H9*ShareTruck*TruckDetour*(DetourTime/60) -> 90.33265542 | I27: =I9*(ShareTruck)*(RouteTime/60) -> 35.43101583 | J27: 36.13231428 | K27: 36.84749377 | L27: 37.57682906 | M27: 38.32060034 | N27: 39.07909334 | O27: 39.85259945 | P27: 40.64141585 | Q27: 41.44584556 | R27: 42.26619763 | S27: 43.10278721 | T27: 43.9559357 | U27: 44.82597086 | V27: 45.71322693 | W27: 46.61804476 | X27: 47.54077198 | Y27: 48.48176305 | Z27: 49.44137948 | AA27: 50.41998994 | AB27: =AB9*(ShareTruck)*(RouteTime/60) -> 51.41797038 | AC27: 52.43570419 | AD27: 53.47358236 | AE27: 54.53200362 | AF27: 55.61137458 | AG27: 56.7121099 | AH27: 57.83463246 | AI27: 58.9793735 | AJ27: 60.1467728 | AK27: 61.33727884 | AL27: 62.55134898
A29: Cost of Travel Time for Auto | B29: $/year | D29: =D26*timevalue_auto*Avg_Veh_Occ*Annualization_Factor -> 1119653.002 | E29: 1141814.684 | F29: 3027479.053 | G29: 3087403.001 | H29: 3148513.045 | I29: 1234935.639 | J29: 1259379.151 | K29: 1284306.481 | L29: 1309727.207 | M29: 1335651.094 | N29: 1362088.102 | O29: 1389048.387 | P29: 1416542.305 | Q29: 1444580.421 | R29: 1473173.505 | S29: 1502332.542 | T29: 1532068.733 | U29: 1562393.504 | V29: 1593318.503 | W29: 1624855.612 | X29: 1657016.945 | Y29: 1689814.859 | Z29: 1723261.954 | AA29: 1757371.078 | AB29: =AB26*timevalue_auto*Avg_Veh_Occ*Annualization_Factor -> 1792155.337 | AC29: 1827628.092 | AD29: 1863802.972 | AE29: 1900693.874 | AF29: 1938314.97 | AG29: 1976680.714 | AH29: 2015805.845 | AI29: 2055705.393 | AJ29: 2096394.686 | AK29: 2137889.357 | AL29: 2180205.346
A30: Cost of Travel Time for Trucks | B30: $/year | D30: =D27*TimeValue_truck*Annualization_Factor -> 345889.6838 | E30: 352735.9988 | F30: 935266.3461 | G30: 953778.3989 | H30: 972656.8672 | I30: 381503.463 | J30: 389054.694 | K30: 396755.3892 | L30: 404608.5069 | M30: 412617.0641 | N30: 420784.1375 | O30: 429112.8646 | P30: 437606.4451 | Q30: 446268.142 | R30: 455101.2829 | S30: 464109.2613 | T30: 473295.5377 | U30: 482663.6412 | V30: 492217.171 | W30: 501959.797 | X30: 511895.2622 | Y30: 522027.3836 | Z30: 532360.0536 | AA30: 542897.2417 | AB30: =AB27*TimeValue_truck*Annualization_Factor -> 553642.9961 | AC30: 564601.4449 | AD30: 575776.7981 | AE30: 587173.349 | AF30: 598795.4758 | AG30: 610647.6433 | AH30: 622734.405 | AI30: 635060.4042 | AJ30: 647630.3761 | AK30: 660449.1499 | AL30: 673521.6502
A32: Total Travel Time | D32: =SUM(D29:D30) -> 1465542.686 | E32: 1494550.683 | F32: 3962745.399 | G32: 4041181.4 | H32: 4121169.913 | I32: 1616439.102 | J32: 1648433.845 | K32: 1681061.87 | L32: 1714335.714 | M32: 1748268.158 | N32: 1782872.239 | O32: 1818161.251 | P32: 1854148.751 | Q32: 1890848.563 | R32: 1928274.788 | S32: 1966441.803 | T32: 2005364.271 | U32: 2045057.145 | V32: 2085535.674 | W32: 2126815.409 | X32: 2168912.208 | Y32: 2211842.243 | Z32: 2255622.007 | AA32: 2300268.32 | AB32: =SUM(AB29:AB30) -> 2345798.333 | AC32: =SUM(AC29:AC30) -> 2392229.537 | AD32: 2439579.77 | AE32: 2487867.223 | AF32: 2537110.446 | AG32: 2587328.358 | AH32: 2638540.25 | AI32: 2690765.797 | AJ32: 2744025.062 | AK32: 2798338.507 | AL32: 2853726.996
A34: No Build Less Build | B34: Unit | C34: Value | D34: =BaseYear -> 2019 | E34: =D34+1 -> 2020 | F34: 2021 | G34: 2022 | H34: 2023 | I34: 2024 | J34: 2025 | K34: 2026 | L34: 2027 | M34: 2028 | N34: 2029 | O34: 2030 | P34: 2031 | Q34: 2032 | R34: 2033 | S34: 2034 | T34: 2035 | U34: 2036 | V34: 2037 | W34: 2038 | X34: 2039 | Y34: 2040 | Z34: 2041 | AA34: 2042 | AB34: 2043 | AC34: =AB34+1 -> 2044 | AD34: =AC34+1 -> 2045 | AE34: =AD34+1 -> 2046 | AF34: =AE34+1 -> 2047 | AG34: =AF34+1 -> 2048 | AH34: =AG34+1 -> 2049 | AI34: =AH34+1 -> 2050 | AJ34: =AI34+1 -> 2051 | AK34: =AJ34+1 -> 2052 | AL34: =AK34+1 -> 2053
A35: Undiscounted Impacts | D35: =D22-D32 -> 0 | E35: 0 | F35: 0 | G35: 0 | H35: 0 | I35: 2586302.563 | J35: 2637494.151 | K35: 2689698.993 | L35: 2742937.142 | M35: 2797229.053 | N35: 2852595.583 | O35: 2909058.002 | P35: 2966638.001 | Q35: 3025357.701 | R35: 3085239.661 | S35: 3146306.885 | T35: 3208582.834 | U35: 3272091.432 | V35: 3336857.079 | W35: 3402904.654 | X35: 3470259.532 | Y35: 3538947.589 | Z35: =Z22-Z32 -> 3608995.212 | AA35: =AA22-AA32 -> 3680429.312 | AB35: =AB22-AB32 -> 3753277.333 | AC35: =AC22-AC32 -> 3827567.259 | AD35: 3903327.632 | AE35: 3980587.557 | AF35: 4059376.714 | AG35: 4139725.372 | AH35: 4221664.4 | AI35: 4305225.275 | AJ35: 4390440.099 | AK35: 4477341.611 | AL35: 4565963.194
A36: Discounted Impacts, at 7% | D36: =D35*D6 -> 0 | E36: 0 | F36: 0 | G36: 0 | H36: 0 | I36: 1843997.984 | J36: 1757473.718 | K36: 1675009.353 | L36: 1596414.39 | M36: 1521507.268 | N36: 1450114.945 | O36: 1382072.501 | P36: 1317222.751 | Q36: 1255415.888 | R36: 1196509.133 | S36: 1140366.407 | T36: 1086858.016 | U36: 1035860.351 | V36: 987255.6035 | W36: 940931.4933 | X36: 896781.0078 | Y36: 854702.156 | Z36: 814597.7324 | AA36: 776375.0928 | AB36: =AB35*AB6 -> 739945.9399 | AC36: =AC35*AC6 -> 705226.1194 | AD36: 672135.426 | AE36: 640597.4176 | AF36: 610539.2389 | AG36: 581891.4531 | AH36: 554587.8818 | AI36: 528565.4514 | AJ36: 503764.0483 | AK36: 480126.3792 | AL36: 457597.8392
A37: Discounted Impacts, at 3% | D37: =D36*D7 -> 0 | E37: =E35*E7 -> 0 | F37: 0 | G37: 0 | H37: 0 | I37: 2230967.31 | J37: 2208859.829 | K37: 2186971.419 | L37: 2165299.909 | M37: 2143843.151 | N37: 2122599.015 | O37: 2101565.395 | P37: 2080740.206 | Q37: 2060121.381 | R37: 2039706.875 | S37: 2019494.664 | T37: 1999482.744 | U37: 1979669.129 | V37: 1960051.854 | W37: 1940628.975 | X37: 1921398.564 | Y37: 1902358.714 | Z37: 1883507.537 | AA37: 1864843.163 | AB37: =AB35*AB7 -> 1846363.742 | AC37: =AC35*AC7 -> 1828067.44 | AD37: 1809952.443 | AE37: 1792016.954 | AF37: 1774259.194 | AG37: 1756677.403 | AH37: 1739269.836 | AI37: 1722034.767 | AJ37: 1704970.487 | AK37: 1688075.303 | AL37: 1671347.54
A39: Key Quantified Impacts
A40: Total Travel Time Saving | D40: =D35 -> 0 | E40: 0 | F40: 0 | G40: 0 | H40: 0 | I40: 2586302.563 | J40: 2637494.151 | K40: 2689698.993 | L40: 2742937.142 | M40: 2797229.053 | N40: 2852595.583 | O40: 2909058.002 | P40: 2966638.001 | Q40: 3025357.701 | R40: 3085239.661 | S40: 3146306.885 | T40: 3208582.834 | U40: 3272091.432 | V40: 3336857.079 | W40: 3402904.654 | X40: 3470259.532 | Y40: 3538947.589 | Z40: 3608995.212 | AA40: =AA35 -> 3680429.312 | AB40: =AB35 -> 3753277.333 | AC40: =AC35 -> 3827567.259 | AD40: 3903327.632 | AE40: 3980587.557 | AF40: 4059376.714 | AG40: 4139725.372 | AH40: 4221664.4 | AI40: 4305225.275 | AJ40: 4390440.099 | AK40: 4477341.611 | AL40: 4565963.194

Sheet Calc-2
A1: Vehicle Operating Cost Savings due to Closure Avoidance
G2: 2022 - First Year of Construction under Build (Bridge Close)
F3: 2021 - First Year of Bridge Closured under No-Build
B4: Unit | C4: Value | D4: =BaseYear -> 2019 | E4: =D4+1 -> 2020 | F4: 2021 | G4: 2022 | H4: 2023 | I4: 2024 | J4: 2025 | K4: 2026 | L4: 2027 | M4: 2028 | N4: 2029 | O4: 2030 | P4: 2031 | Q4: 2032 | R4: 2033 | S4: 2034 | T4: =S4+1 -> 2035 | U4: 2036 | V4: 2037 | W4: 2038 | X4: 2039 | Y4: 2040 | Z4: 2041 | AA4: 2042 | AB4: 2043 | AC4: =AB4+1 -> 2044 | AD4: =AC4+1 -> 2045 | AE4: =AD4+1 -> 2046 | AF4: =AE4+1 -> 2047 | AG4: =AF4+1 -> 2048 | AH4: =AG4+1 -> 2049 | AI4: =AH4+1 -> 2050 | AJ4: =AI4+1 -> 2051 | AK4: =AJ4+1 -> 2052 | AL4: =AK4+1 -> 2053
A5: Benefits Index | B5: Number | D5: 0 | E5: 0 | F5: 0 | G5: 0 | H5: 0 | I5: 1 | J5: 2 | K5: 3 | L5: 4 | M5: 5 | N5: 6 | O5: 7 | P5: 8 | Q5: 9 | R5: 10 | S5: 11 | T5: 12 | U5: 13 | V5: 14 | W5: 15 | X5: 16 | Y5: 17 | Z5: 18 | AA5: 19 | AB5: 20 | AC5: 21 | AD5: 22 | AE5: 23 | AF5: 24 | AG5: 25 | AH5: 26 | AI5: 27 | AJ5: 28 | AK5: 29 | AL5: 30
A6: Discount Factor | B6: % | C6: 0.07 | D6: =1/(1+Inputs!$D$5)^(D4-$D$4) -> 1 | E6: =1/(1+Inputs!$D$5)^(E4-$D$4) -> 0.9345794393 | F6: =1/(1+Inputs!$D$5)^(F4-$D$4) -> 0.8734387283 | G6: =1/(1+Inputs!$D$5)^(G4-$D$4) -> 0.8162978769 | H6: =1/(1+Inputs!$D$5)^(H4-$D$4) -> 0.762895212 | I6: =1/(1+Inputs!$D$5)^(I4-$D$4) -> 0.7129861795 | J6: =1/(1+Inputs!$D$5)^(J4-$D$4) -> 0.6663422238 | K6: =1/(1+Inputs!$D$5)^(K4-$D$4) -> 0.6227497419 | L6: =1/(1+Inputs!$D$5)^(L4-$D$4) -> 0.5820091046 | M6: =1/(1+Inputs!$D$5)^(M4-$D$4) -> 0.5439337426 | N6: =1/(1+Inputs!$D$5)^(N4-$D$4) -> 0.5083492921 | O6: =1/(1+Inputs!$D$5)^(O4-$D$4) -> 0.4750927964 | P6: =1/(1+Inputs!$D$5)^(P4-$D$4) -> 0.4440119592 | Q6: =1/(1+Inputs!$D$5)^(Q4-$D$4) -> 0.4149644479 | R6: =1/(1+Inputs!$D$5)^(R4-$D$4) -> 0.387817241 | S6: =1/(1+Inputs!$D$5)^(S4-$D$4) -> 0.3624460196 | T6: =1/(1+Inputs!$D$5)^(T4-$D$4) -> 0.3387345978 | U6: =1/(1+Inputs!$D$5)^(U4-$D$4) -> 0.3165743905 | V6: =1/(1+Inputs!$D$5)^(V4-$D$4) -> 0.2958639163 | W6: =1/(1+Inputs!$D$5)^(W4-$D$4) -> 0.276508333 | X6: =1/(1+Inputs!$D$5)^(X4-$D$4) -> 0.2584190028 | Y6: =1/(1+Inputs!$D$5)^(Y4-$D$4) -> 0.2415130867 | Z6: =1/(1+Inputs!$D$5)^(Z4-$D$4) -> 0.2257131652 | AA6: =1/(1+Inputs!$D$5)^(AA4-$D$4) -> 0.2109468833 | AB6: =1/(1+Inputs!$D$5)^(AB4-$D$4) -> 0.1971466199 | AC6: =1/(1+Inputs!$D$5)^(AC4-$D$4) -> 0.1842491775 | AD6: =1/(1+Inputs!$D$5)^(AD4-$D$4) -> 0.172195493 | AE6: =1/(1+Inputs!$D$5)^(AE4-$D$4) -> 0.1609303673 | AF6: =1/(1+Inputs!$D$5)^(AF4-$D$4) -> 0.1504022124 | AG6: =1/(1+Inputs!$D$5)^(AG4-$D$4) -> 0.1405628154 | AH6: =1/(1+Inputs!$D$5)^(AH4-$D$4) -> 0.1313671172 | AI6: =1/(1+Inputs!$D$5)^(AI4-$D$4) -> 0.1227730067 | AJ6: =1/(1+Inputs!$D$5)^(AJ4-$D$4) -> 0.1147411277 | AK6: =1/(1+Inputs!$D$5)^(AK4-$D$4) -> 0.1072346988 | AL6: =1/(1+Inputs!$D$5)^(AL4-$D$4) -> 0.1002193447
A7: Discount Factor | B7: % | C7: 0.03 | D7: =1/(1+Inputs!$D$6)^(D4-$D$4) -> 1 | E7: =1/(1+Inputs!$D$6)^(E4-$D$4) -> 0.9708737864 | F7: =1/(1+Inputs!$D$6)^(F4-$D$4) -> 0.9425959091 | G7: =1/(1+Inputs!$D$6)^(G4-$D$4) -> 0.9151416594 | H7: =1/(1+Inputs!$D$6)^(H4-$D$4) -> 0.8884870479 | I7: =1/(1+Inputs!$D$6)^(I4-$D$4) -> 0.8626087844 | J7: =1/(1+Inputs!$D$6)^(J4-$D$4) -> 0.8374842567 | K7: =1/(1+Inputs!$D$6)^(K4-$D$4) -> 0.8130915113 | L7: =1/(1+Inputs!$D$6)^(L4-$D$4) -> 0.7894092343 | M7: =1/(1+Inputs!$D$6)^(M4-$D$4) -> 0.7664167323 | N7: =1/(1+Inputs!$D$6)^(N4-$D$4) -> 0.7440939149 | O7: =1/(1+Inputs!$D$6)^(O4-$D$4) -> 0.7224212766 | P7: =1/(1+Inputs!$D$6)^(P4-$D$4) -> 0.7013798802 | Q7: =1/(1+Inputs!$D$6)^(Q4-$D$4) -> 0.68095134 | R7: =1/(1+Inputs!$D$6)^(R4-$D$4) -> 0.6611178058 | S7: =1/(1+Inputs!$D$6)^(S4-$D$4) -> 0.6418619474 | T7: =1/(1+Inputs!$D$6)^(T4-$D$4) -> 0.6231669392 | U7: =1/(1+Inputs!$D$6)^(U4-$D$4) -> 0.6050164458 | V7: =1/(1+Inputs!$D$6)^(V4-$D$4) -> 0.5873946076 | W7: =1/(1+Inputs!$D$6)^(W4-$D$4) -> 0.5702860268 | X7: =1/(1+Inputs!$D$6)^(X4-$D$4) -> 0.5536757542 | Y7: =1/(1+Inputs!$D$6)^(Y4-$D$4) -> 0.5375492759 | Z7: =1/(1+Inputs!$D$6)^(Z4-$D$4) -> 0.5218925009 | AA7: =1/(1+Inputs!$D$6)^(AA4-$D$4) -> 0.5066917484 | AB7: =1/(1+Inputs!$D$6)^(AB4-$D$4) -> 0.4919337363 | AC7: =1/(1+Inputs!$D$6)^(AC4-$D$4) -> 0.4776055693 | AD7: =1/(1+Inputs!$D$6)^(AD4-$D$4) -> 0.4636947274 | AE7: =1/(1+Inputs!$D$6)^(AE4-$D$4) -> 0.4501890558 | AF7: =1/(1+Inputs!$D$6)^(AF4-$D$4) -> 0.4370767532 | AG7: =1/(1+Inputs!$D$6)^(AG4-$D$4) -> 0.4243463623 | AH7: =1/(1+Inputs!$D$6)^(AH4-$D$4) -> 0.4119867595 | AI7: =1/(1+Inputs!$D$6)^(AI4-$D$4) -> 0.3999871452 | AJ7: =1/(1+Inputs!$D$6)^(AJ4-$D$4) -> 0.3883370341 | AK7: =1/(1+Inputs!$D$6)^(AK4-$D$4) -> 0.3770262467 | AL7: =1/(1+Inputs!$D$6)^(AL4-$D$4) -> 0.3660448997
A9: Share of Traffic - Auto | B9: % | D9: =1-ShareTruck -> 0.79 | E9: 0.79 | F9: 0.79 | G9: 0.79 | H9: 0.79 | I9: 0.79 | J9: 0.79 | K9: 0.79 | L9: 0.79 | M9: 0.79 | N9: 0.79 | O9: 0.79 | P9: 0.79 | Q9: 0.79 | R9: 0.79 | S9: 0.79 | T9: 0.79 | U9: 0.79 | V9: 0.79 | W9: 0.79 | X9: 0.79 | Y9: 0.79 | Z9: 0.79 | AA9: 0.79 | AB9: 0.79 | AC9: 0.79 | AD9: 0.79 | AE9: 0.79 | AF9: 0.79 | AG9: 0.79 | AH9: 0.79 | AI9: 0.79 | AJ9: 0.79 | AK9: 0.79 | AL9: 0.79
A10: Share of Traffic - Trucks | B10: % | D10: =Inputs!$D$21 -> 0.21 | E10: =Inputs!$D$21 -> 0.21 | F10: =Inputs!$D$21 -> 0.21 | G10: =Inputs!$D$21 -> 0.21 | H10: =Inputs!$D$21 -> 0.21 | I10: =Inputs!$D$21 -> 0.21 | J10: =Inputs!$D$21 -> 0.21 | K10: =Inputs!$D$21 -> 0.21 | L10: =Inputs!$D$21 -> 0.21 | M10: =Inputs!$D$21 -> 0.21 | N10: =Inputs!$D$21 -> 0.21 | O10: =Inputs!$D$21 -> 0.21 | P10: =Inputs!$D$21 -> 0.21 | Q10: =Inputs!$D$21 -> 0.21 | R10: =Inputs!$D$21 -> 0.21 | S10: =Inputs!$D$21 -> 0.21 | T10: =Inputs!$D$21 -> 0.21 | U10: =Inputs!$D$21 -> 0.21 | V10: =Inputs!$D$21 -> 0.21 | W10: =Inputs!$D$21 -> 0.21 | X10: =Inputs!$D$21 -> 0.21 | Y10: =Inputs!$D$21 -> 0.21 | Z10: =Inputs!$D$21 -> 0.21 | AA10: =Inputs!$D$21 -> 0.21 | AB10: =Inputs!$D$21 -> 0.21 | AC10: =Inputs!$D$21 -> 0.21 | AD10: =Inputs!$D$21 -> 0.21 | AE10: =Inputs!$D$21 -> 0.21 | AF10: =Inputs!$D$21 -> 0.21 | AG10: =Inputs!$D$21 -> 0.21 | AH10: =Inputs!$D$21 -> 0.21 | AI10: =Inputs!$D$21 -> 0.21 | AJ10: =Inputs!$D$21 -> 0.21 | AK10: =Inputs!$D$21 -> 0.21 | AL10: =Inputs!$D$21 -> 0.21
A12: No Build Case Alternative | B12: Unit | C12: Value | D12: =BaseYear -> 2019 | E12: =D12+1 -> 2020 | F12: 2021 | G12: 2022 | H12: 2023 | I12: 2024 | J12: 2025 | K12: 2026 | L12: 2027 | M12: 2028 | N12: 2029 | O12: 2030 | P12: 2031 | Q12: 2032 | R12: 2033 | S12: 2034 | T12: 2035 | U12: 2036 | V12: 2037 | W12: 2038 | X12: 2039 | Y12: 2040 | Z12: 2041 | AA12: 2042 | AB12: 2043 | AC12: =AB12+1 -> 2044 | AD12: =AC12+1 -> 2045 | AE12: =AD12+1 -> 2046 | AF12: =AE12+1 -> 2047 | AG12: =AF12+1 -> 2048 | AH12: =AG12+1 -> 2049 | AI12: =AH12+1 -> 2050 | AJ12: =AI12+1 -> 2051 | AK12: =AJ12+1 -> 2052 | AL12: =AK12+1 -> 2053
A14: Auto Daily VMT | B14: =Traffic!B11 -> Daily VMT | D14: =Traffic!D16 -> 7250.730709 | E14: =Traffic!E16 -> 7394.246949 | F14: =Traffic!F11 -> 17343.38887 | G14: =Traffic!G11 -> 17686.67261 | H14: =Traffic!H11 -> 18036.75109 | I14: =Traffic!I11 -> 18393.75879 | J14: =Traffic!J11 -> 18757.83287 | K14: =Traffic!K11 -> 19129.11319 | L14: =Traffic!L11 -> 19507.7424 | M14: =Traffic!M11 -> 19893.86595 | N14: =Traffic!N11 -> 20287.63217 | O14: =Traffic!O11 -> 20689.19234 | P14: =Traffic!P11 -> 21098.70074 | Q14: =Traffic!Q11 -> 21516.31468 | R14: =Traffic!R11 -> 21942.1946 | S14: =Traffic!S11 -> 22376.5041 | T14: =Traffic!T11 -> 22819.41005 | U14: =Traffic!U11 -> 23271.08259 | V14: =Traffic!V11 -> 23731.69524 | W14: =Traffic!W11 -> 24201.42495 | X14: =Traffic!X11 -> 24680.45219 | Y14: =Traffic!Y11 -> 25168.96099 | Z14: =Traffic!Z11 -> 25667.13901 | AA14: =Traffic!AA11 -> 26175.17764 | AB14: =Traffic!AB11 -> 26693.27205 | AC14: =Traffic!AC11 -> 27221.62129 | AD14: =Traffic!AD11 -> 27760.42833 | AE14: =Traffic!AE11 -> 28309.90016 | AF14: =Traffic!AF11 -> 28870.24789 | AG14: =Traffic!AG11 -> 29441.68677 | AH14: =Traffic!AH11 -> 30024.43634 | AI14: =Traffic!AI11 -> 30618.72047 | AJ14: =Traffic!AJ11 -> 31224.76748 | AK14: =Traffic!AK11 -> 31842.81019 | AL14: =Traffic!AL11 -> 32473.08603
A15: Truck Daily VMT | B15: =Traffic!B12 -> Daily VMT | D15: =Traffic!D17 -> 1927.409429 | E15: =Traffic!E17 -> 1965.559316 | F15: =Traffic!F12 -> 4610.267927 | G15: =Traffic!G12 -> 4701.520568 | H15: =Traffic!H12 -> 4794.579403 | I15: =Traffic!I12 -> 4889.480185 | J15: =Traffic!J12 -> 4986.25937 | K15: =Traffic!K12 -> 5084.95414 | L15: =Traffic!L12 -> 5185.60241 | M15: =Traffic!M12 -> 5288.242846 | N15: =Traffic!N12 -> 5392.91488 | O15: =Traffic!O12 -> 5499.658725 | P15: =Traffic!P12 -> 5608.515387 | Q15: =Traffic!Q12 -> 5719.526687 | R15: =Traffic!R12 -> 5832.735273 | S15: =Traffic!S12 -> 5948.184635 | T15: =Traffic!T12 -> 6065.919127 | U15: =Traffic!U12 -> 6185.983979 | V15: =Traffic!V12 -> 6308.425316 | W15: =Traffic!W12 -> 6433.290177 | X15: =Traffic!X12 -> 6560.626533 | Y15: =Traffic!Y12 -> 6690.483301 | Z15: =Traffic!Z12 -> 6822.910369 | AA15: =Traffic!AA12 -> 6957.958612 | AB15: =Traffic!AB12 -> 7095.679912 | AC15: =Traffic!AC12 -> 7236.127178 | AD15: =Traffic!AD12 -> 7379.354366 | AE15: =Traffic!AE12 -> 7525.4165 | AF15: =Traffic!AF12 -> 7674.369692 | AG15: =Traffic!AG12 -> 7826.271166 | AH15: =Traffic!AH12 -> 7981.17928 | AI15: =Traffic!AI12 -> 8139.153543 | AJ15: =Traffic!AJ12 -> 8300.254647 | AK15: =Traffic!AK12 -> 8464.54448 | AL15: =Traffic!AL12 -> 8632.08616
A17: Operating Cost for Auto | B17: $/year | D17: =D14*Annualization_Factor*OperatingCost_Passenger -> 1085071.851 | E17: =E14*Annualization_Factor*OperatingCost_Passenger -> 1106549.056 | F17: 2595438.144 | G17: 2646810.556 | H17: 2699199.8 | I17: 2752626.003 | J17: 2807109.689 | K17: 2862671.79 | L17: 2919333.65 | M17: 2977117.039 | N17: 3036044.154 | O17: 3096137.634 | P17: 3157420.566 | Q17: 3219916.492 | R17: 3283649.421 | S17: 3348643.839 | T17: 3414924.714 | U17: 3482517.509 | V17: 3551448.192 | W17: 3621743.244 | X17: 3693429.671 | Y17: 3766535.012 | Z17: 3841087.352 | AA17: 3917115.333 | AB17: =AB14*Annualization_Factor*OperatingCost_Passenger -> 3994648.163 | AC17: 4073715.626 | AD17: 4154348.1 | AE17: 4236576.56 | AF17: 4320432.596 | AG17: 4405948.425 | AH17: 4493156.898 | AI17: 4582091.519 | AJ17: 4672786.453 | AK17: 4765276.545 | AL17: 4859597.324
A18: Operating Cost for Trucks | B18: $/year | D18: =D15*Annualization_Factor*OperatingCost_Trucks -> 675364.2639 | E18: =E15*Annualization_Factor*OperatingCost_Trucks -> 688731.9842 | F18: =F15*Annualization_Factor*OperatingCost_Trucks -> 1615437.882 | G18: =(G15*Annualization_Factor*OperatingCost_Trucks) -> 1647412.807 | H18: 1680020.623 | I18: 1713273.857 | J18: 1747185.283 | K18: 1781767.931 | L18: 1817035.085 | M18: 1853000.293 | N18: 1889677.374 | O18: 1927080.417 | P18: 1965223.792 | Q18: 2004122.151 | R18: 2043790.439 | S18: 2084243.896 | T18: 2125498.062 | U18: 2167568.786 | V18: 2210472.231 | W18: 2254224.878 | X18: 2298843.537 | Y18: 2344345.349 | Z18: 2390747.793 | AA18: 2438068.698 | AB18: =(AB15*Annualization_Factor*OperatingCost_Trucks) -> 2486326.241 | AC18: 2535538.963 | AD18: 2585725.77 | AE18: 2636905.941 | AF18: 2689099.14 | AG18: 2742325.417 | AH18: 2796605.22 | AI18: 2851959.402 | AJ18: 2908409.228 | AK18: 2965976.386 | AL18: 3024682.99
A20: Total Operating Cost | D20: =SUM(D17:D18) -> 1760436.114 | E20: 1795281.04 | F20: 4210876.026 | G20: 4294223.363 | H20: 4379220.423 | I20: 4465899.86 | J20: 4554294.972 | K20: 4644439.72 | L20: 4736368.735 | M20: 4830117.332 | N20: 4925721.528 | O20: 5023218.052 | P20: 5122644.357 | Q20: 5224038.643 | R20: 5327439.861 | S20: 5432887.735 | T20: 5540422.776 | U20: 5650086.295 | V20: 5761920.423 | W20: 5875968.122 | X20: 5992273.208 | Y20: 6110880.36 | Z20: 6231835.146 | AA20: 6355184.031 | AB20: =SUM(AB17:AB18) -> 6480974.404 | AC20: =SUM(AC17:AC18) -> 6609254.589 | AD20: 6740073.869 | AE20: 6873482.501 | AF20: 7009531.736 | AG20: 7148273.841 | AH20: 7289762.117 | AI20: 7434050.92 | AJ20: 7581195.682 | AK20: 7731252.93 | AL20: 7884280.315
A22: Build (Alternative Case) | B22: Unit | C22: Value | D22: =BaseYear -> 2019 | E22: =D22+1 -> 2020 | F22: 2021 | G22: 2022 | H22: 2023 | I22: 2024 | J22: 2025 | K22: 2026 | L22: 2027 | M22: 2028 | N22: 2029 | O22: 2030 | P22: 2031 | Q22: 2032 | R22: 2033 | S22: 2034 | T22: 2035 | U22: 2036 | V22: 2037 | W22: 2038 | X22: 2039 | Y22: 2040 | Z22: 2041 | AA22: 2042 | AB22: 2043 | AC22: =AB22+1 -> 2044 | AD22: =AC22+1 -> 2045 | AE22: =AD22+1 -> 2046 | AF22: =AE22+1 -> 2047 | AG22: =AF22+1 -> 2048 | AH22: =AG22+1 -> 2049 | AI22: =AH22+1 -> 2050 | AJ22: =AI22+1 -> 2051 | AK22: =AJ22+1 -> 2052 | AL22: =AK22+1 -> 2053
A24: Auto Daily VMT | B24: =Traffic!B16 -> Daily VMT | D24: =Traffic!D16 -> 7250.730709 | E24: =Traffic!E16 -> 7394.246949 | F24: =Traffic!F11 -> 17343.38887 | G24: =Traffic!G11 -> 17686.67261 | H24: =Traffic!H11 -> 18036.75109 | I24: =Traffic!I16 -> 7997.28643 | J24: =Traffic!J16 -> 8155.579508 | K24: =Traffic!K16 -> 8317.005737 | L24: =Traffic!L16 -> 8481.62713 | M24: =Traffic!M16 -> 8649.506933 | N24: =Traffic!N16 -> 8820.709639 | O24: =Traffic!O16 -> 8995.30102 | P24: =Traffic!P16 -> 9173.348148 | Q24: =Traffic!Q16 -> 9354.919426 | R24: =Traffic!R16 -> 9540.084607 | S24: =Traffic!S16 -> 9728.914827 | T24: =Traffic!T16 -> 9921.48263 | U24: =Traffic!U16 -> 10117.86199 | V24: =Traffic!V16 -> 10318.12836 | W24: =Traffic!W16 -> 10522.35868 | X24: =Traffic!X16 -> 10730.63139 | Y24: =Traffic!Y16 -> 10943.02652 | Z24: =Traffic!Z16 -> 11159.62565 | AA24: =Traffic!AA16 -> 11380.51202 | AB24: =Traffic!AB16 -> 11605.77046 | AC24: =Traffic!AC16 -> 11835.48752 | AD24: =Traffic!AD16 -> 12069.75145 | AE24: =Traffic!AE16 -> 12308.65225 | AF24: =Traffic!AF16 -> 12552.28169 | AG24: =Traffic!AG16 -> 12800.73338 | AH24: =Traffic!AH16 -> 13054.10276 | AI24: =Traffic!AI16 -> 13312.48716 | AJ24: =Traffic!AJ16 -> 13575.98586 | AK24: =Traffic!AK16 -> 13844.70008 | AL24: =Traffic!AL16 -> 14118.73306
A25: Truck Daily VMT | B25: =Traffic!B17 -> Daily VMT | D25: =Traffic!D17 -> 1927.409429 | E25: =Traffic!E17 -> 1965.559316 | F25: =Traffic!F12 -> 4610.267927 | G25: =Traffic!G12 -> 4701.520568 | H25: =Traffic!H12 -> 4794.579403 | I25: =Traffic!I17 -> 2125.86095 | J25: =Traffic!J17 -> 2167.938857 | K25: =Traffic!K17 -> 2210.849626 | L25: =Traffic!L17 -> 2254.609744 | M25: =Traffic!M17 -> 2299.23602 | N25: =Traffic!N17 -> 2344.7456 | O25: =Traffic!O17 -> 2391.155967 | P25: =Traffic!P17 -> 2438.484951 | Q25: =Traffic!Q17 -> 2486.750733 | R25: =Traffic!R17 -> 2535.971858 | S25: =Traffic!S17 -> 2586.167233 | T25: =Traffic!T17 -> 2637.356142 | U25: =Traffic!U17 -> 2689.558252 | V25: =Traffic!V17 -> 2742.793616 | W25: =Traffic!W17 -> 2797.082686 | X25: =Traffic!X17 -> 2852.446319 | Y25: =Traffic!Y17 -> 2908.905783 | Z25: =Traffic!Z17 -> 2966.482769 | AA25: =Traffic!AA17 -> 3025.199397 | AB25: =Traffic!AB17 -> 3085.078223 | AC25: =Traffic!AC17 -> 3146.142252 | AD25: =Traffic!AD17 -> 3208.414942 | AE25: =Traffic!AE17 -> 3271.920217 | AF25: =Traffic!AF17 -> 3336.682475 | AG25: =Traffic!AG17 -> 3402.726594 | AH25: =Traffic!AH17 -> 3470.077948 | AI25: =Traffic!AI17 -> 3538.76241 | AJ25: =Traffic!AJ17 -> 3608.806368 | AK25: =Traffic!AK17 -> 3680.236731 | AL25: =Traffic!AL17 -> 3753.080939
A27: Operating Cost for Auto | B27: $/year | D27: =(D24*Annualization_Factor*OperatingCost_Passenger) -> 1085071.851 | E27: =(E24*Annualization_Factor*OperatingCost_Passenger) -> 1106549.056 | F27: =(F24*Annualization_Factor*OperatingCost_Passenger) -> 2595438.144 | G27: =(G24*Annualization_Factor*OperatingCost_Passenger) -> 2646810.556 | H27: =H24*Annualization_Factor*OperatingCost_Passenger -> 2699199.8 | I27: 1196793.914 | J27: 1220482.473 | K27: 1244639.908 | L27: 1269275.5 | M27: 1294398.713 | N27: 1320019.197 | O27: 1346146.798 | P27: 1372791.55 | Q27: 1399963.692 | R27: 1427673.661 | S27: 1455932.104 | T27: 1484749.876 | U27: 1514138.047 | V27: 1544107.91 | W27: 1574670.976 | X27: 1605838.987 | Y27: 1637623.918 | Z27: 1670037.979 | AA27: 1703093.623 | AB27: =AB24*Annualization_Factor*OperatingCost_Passenger -> 1736803.549 | AC27: 1771180.707 | AD27: 1806238.304 | AE27: 1841989.809 | AF27: 1878448.955 | AG27: 1915629.75 | AH27: 1953546.477 | AI27: 1992213.704 | AJ27: 2031646.284 | AK27: 2071859.367 | AL27: 2112868.402
A28: Operating Cost for Trucks | B28: $/year | D28: =(D25*Annualization_Factor*OperatingCost_Trucks) -> 675364.2639 | E28: =(E25*Annualization_Factor*OperatingCost_Trucks) -> 688731.9842 | F28: =(F25*Annualization_Factor*OperatingCost_Trucks) -> 1615437.882 | G28: =(G25*Annualization_Factor*OperatingCost_Trucks) -> 1647412.807 | H28: =H25*Annualization_Factor*OperatingCost_Trucks -> 1680020.623 | I28: 744901.6768 | J28: 759645.7754 | K28: 774681.709 | L28: 790015.2541 | M28: 805652.3015 | N28: 821598.8583 | O28: 837861.0509 | P28: 854445.1268 | Q28: 871357.457 | R28: 888604.5389 | S28: 906192.9983 | T28: 924129.5922 | U28: 942421.2114 | V28: 961074.8829 | W28: 980097.7731 | X28: 999497.19 | Y28: 1019280.586 | Z28: 1039455.562 | AA28: 1060029.869 | AB28: =AB25*Annualization_Factor*OperatingCost_Trucks -> 1081011.409 | AC28: 1102408.245 | AD28: 1124228.596 | AE28: 1146480.844 | AF28: 1169173.539 | AG28: 1192315.399 | AH28: 1215915.313 | AI28: 1239982.348 | AJ28: 1264525.751 | AK28: 1289554.95 | AL28: 1315079.561
A30: Total Operating Cost | D30: =SUM(D27:D28) -> 1760436.114 | E30: 1795281.04 | F30: 4210876.026 | G30: 4294223.363 | H30: 4379220.423 | I30: 1941695.591 | J30: 1980128.249 | K30: 2019321.618 | L30: 2059290.754 | M30: 2100051.014 | N30: 2141618.056 | O30: 2184007.848 | P30: 2227236.677 | Q30: 2271321.149 | R30: 2316278.2 | S30: 2362125.102 | T30: 2408879.468 | U30: 2456559.259 | V30: 2505182.793 | W30: 2554768.749 | X30: 2605336.177 | Y30: 2656904.504 | Z30: 2709493.542 | AA30: 2763123.492 | AB30: =SUM(AB27:AB28) -> 2817814.958 | AC30: =SUM(AC27:AC28) -> 2873588.952 | AD30: 2930466.9 | AE30: 2988470.653 | AF30: 3047622.494 | AG30: 3107945.148 | AH30: 3169461.79 | AI30: 3232196.052 | AJ30: 3296172.035 | AK30: 3361414.318 | AL30: 3427947.963
A32: No Build Less Build | B32: Unit | C32: Value | D32: =BaseYear -> 2019 | E32: =D32+1 -> 2020 | F32: 2021 | G32: 2022 | H32: 2023 | I32: 2024 | J32: 2025 | K32: 2026 | L32: 2027 | M32: 2028 | N32: 2029 | O32: 2030 | P32: 2031 | Q32: 2032 | R32: 2033 | S32: 2034 | T32: 2035 | U32: 2036 | V32: 2037 | W32: 2038 | X32: 2039 | Y32: 2040 | Z32: 2041 | AA32: 2042 | AB32: 2043 | AC32: =AB32+1 -> 2044 | AD32: =AC32+1 -> 2045 | AE32: =AD32+1 -> 2046 | AF32: =AE32+1 -> 2047 | AG32: =AF32+1 -> 2048 | AH32: =AG32+1 -> 2049 | AI32: =AH32+1 -> 2050 | AJ32: =AI32+1 -> 2051 | AK32: =AJ32+1 -> 2052 | AL32: =AK32+1 -> 2053
A33: Undiscounted Impacts | D33: =D20-D30 -> 0 | E33: 0 | F33: 0 | G33: 0 | H33: 0 | I33: 2524204.268 | J33: 2574166.723 | K33: 2625118.103 | L33: 2677077.98 | M33: 2730066.318 | N33: 2784103.472 | O33: 2839210.203 | P33: 2895407.68 | Q33: 2952717.494 | R33: 3011161.66 | S33: 3070762.633 | T33: 3131543.308 | U33: 3193527.036 | V33: 3256737.63 | W33: 3321199.374 | X33: 3386937.031 | Y33: 3453975.856 | Z33: 3522341.604 | AA33: 3592060.539 | AB33: =AB20-AB30 -> 3663159.446 | AC33: =AC20-AC30 -> 3735665.638 | AD33: 3809606.97 | AE33: 3885011.848 | AF33: 3961909.242 | AG33: 4040328.693 | AH33: 4120300.327 | AI33: 4201854.868 | AJ33: 4285023.646 | AK33: 4369838.613 | AL33: 4456332.352
A34: Discounted Impacts, at 7% | D34: =D33*D6 -> 0 | E34: 0 | F34: 0 | G34: 0 | H34: 0 | I34: 1799722.758 | J34: 1715275.979 | K34: 1634791.621 | L34: 1558083.758 | M34: 1484975.19 | N34: 1415297.029 | O34: 1348888.315 | P34: 1285595.637 | Q34: 1225272.785 | R34: 1167780.407 | S34: 1112985.694 | T34: 1060762.063 | U34: 1010988.875 | V34: 963551.1498 | W34: 918339.3024 | X34: 875248.89 | Y34: 834180.3705 | Z34: 795038.8723 | AA34: 757733.9755 | AB34: =AB33*AB6 -> 722179.503 | AC34: =AC33*AC6 -> 688293.3212 | AD34: 655997.1503 | AE34: 625216.3837 | AF34: 595879.9155 | AG34: 567919.976 | AH34: 541271.9758 | AI34: 515874.3558 | AJ34: 491668.4456 | AK34: 468598.3276 | AL34: 446610.7081
A35: Discounted Impacts, at 3% | D35: =D33*D7 -> 0 | E35: 0 | F35: 0 | G35: 0 | H35: 0 | I35: 2177400.776 | J35: 2155824.105 | K35: 2134461.246 | L35: 2113310.079 | M35: 2092368.507 | N35: 2071634.452 | O35: 2051105.859 | P35: 2030780.692 | Q35: 2010656.934 | R35: 1990732.59 | S35: 1971005.684 | T35: 1951474.258 | U35: 1932136.377 | V35: 1912990.123 | W35: 1894033.595 | X35: 1875264.915 | Y35: 1856682.22 | Z35: 1838283.669 | AA35: 1820067.435 | AB35: =AB33*AB7 -> 1802031.713 | AC35: =AC33*AC7 -> 1784174.713 | AD35: 1766494.665 | AE35: 1748989.816 | AF35: 1731658.428 | AG35: 1714498.783 | AH35: 1697509.18 | AI35: 1680687.933 | AJ35: 1664033.374 | AK35: 1647543.851 | AL35: 1631217.729
A37: Key Quantified Impacts
A38: Total Operating Cost Saving | D38: =D33 -> 0 | E38: 0 | F38: 0 | G38: 0 | H38: 0 | I38: 2524204.268 | J38: 2574166.723 | K38: 2625118.103 | L38: 2677077.98 | M38: 2730066.318 | N38: 2784103.472 | O38: 2839210.203 | P38: 2895407.68 | Q38: 2952717.494 | R38: 3011161.66 | S38: 3070762.633 | T38: 3131543.308 | U38: 3193527.036 | V38: 3256737.63 | W38: 3321199.374 | X38: 3386937.031 | Y38: 3453975.856 | Z38: 3522341.604 | AA38: =AA33 -> 3592060.539 | AB38: =AB33 -> 3663159.446 | AC38: =AC33 -> 3735665.638 | AD38: 3809606.97 | AE38: 3885011.848 | AF38: 3961909.242 | AG38: 4040328.693 | AH38: 4120300.327 | AI38: 4201854.868 | AJ38: 4285023.646 | AK38: 4369838.613 | AL38: 4456332.352

Sheet Calc-3
A1: Accident Impact due to Detour
G2: 2022 - First Year of Construction under Build (Bridge Close)
F3: 2021 - First Year of Bridge Closured under No-Build
B4: Unit | C4: Value | D4: =BaseYear -> 2019 | E4: =D4+1 -> 2020 | F4: 2021 | G4: 2022 | H4: 2023 | I4: 2024 | J4: 2025 | K4: 2026 | L4: 2027 | M4: 2028 | N4: 2029 | O4: 2030 | P4: 2031 | Q4: 2032 | R4: 2033 | S4: 2034 | T4: =S4+1 -> 2035 | U4: 2036 | V4: 2037 | W4: 2038 | X4: 2039 | Y4: 2040 | Z4: 2041 | AA4: =Z4+1 -> 2042 | AB4: =AA4+1 -> 2043 | AC4: =AB4+1 -> 2044 | AD4: 2045 | AE4: 2046 | AF4: 2047 | AG4: 2048 | AH4: 2049 | AI4: 2050 | AJ4: 2051 | AK4: 2052 | AL4: 2053
A5: Benefits Index | B5: Number | D5: 0 | E5: 0 | F5: 0 | G5: 0 | H5: 0 | I5: 1 | J5: 2 | K5: 3 | L5: 4 | M5: 5 | N5: 6 | O5: 7 | P5: 8 | Q5: 9 | R5: 10 | S5: 11 | T5: 12 | U5: 13 | V5: 14 | W5: 15 | X5: 16 | Y5: 17 | Z5: 18 | AA5: =Z5+1 -> 19 | AB5: =AA5+1 -> 20 | AC5: =AB5+1 -> 21 | AD5: 22 | AE5: 23 | AF5: 24 | AG5: 25 | AH5: 26 | AI5: 27 | AJ5: 28 | AK5: 29 | AL5: 30
A6: Discount Factor | B6: % | C6: 0.07 | D6: =1/(1+Inputs!$D$5)^(D4-$D$4) -> 1 | E6: =1/(1+Inputs!$D$5)^(E4-$D$4) -> 0.9345794393 | F6: =1/(1+Inputs!$D$5)^(F4-$D$4) -> 0.8734387283 | G6: =1/(1+Inputs!$D$5)^(G4-$D$4) -> 0.8162978769 | H6: =1/(1+Inputs!$D$5)^(H4-$D$4) -> 0.762895212 | I6: =1/(1+Inputs!$D$5)^(I4-$D$4) -> 0.7129861795 | J6: =1/(1+Inputs!$D$5)^(J4-$D$4) -> 0.6663422238 | K6: =1/(1+Inputs!$D$5)^(K4-$D$4) -> 0.6227497419 | L6: =1/(1+Inputs!$D$5)^(L4-$D$4) -> 0.5820091046 | M6: =1/(1+Inputs!$D$5)^(M4-$D$4) -> 0.5439337426 | N6: =1/(1+Inputs!$D$5)^(N4-$D$4) -> 0.5083492921 | O6: =1/(1+Inputs!$D$5)^(O4-$D$4) -> 0.4750927964 | P6: =1/(1+Inputs!$D$5)^(P4-$D$4) -> 0.4440119592 | Q6: =1/(1+Inputs!$D$5)^(Q4-$D$4) -> 0.4149644479 | R6: =1/(1+Inputs!$D$5)^(R4-$D$4) -> 0.387817241 | S6: =1/(1+Inputs!$D$5)^(S4-$D$4) -> 0.3624460196 | T6: =1/(1+Inputs!$D$5)^(T4-$D$4) -> 0.3387345978 | U6: =1/(1+Inputs!$D$5)^(U4-$D$4) -> 0.3165743905 | V6: =1/(1+Inputs!$D$5)^(V4-$D$4) -> 0.2958639163 | W6: =1/(1+Inputs!$D$5)^(W4-$D$4) -> 0.276508333 | X6: =1/(1+Inputs!$D$5)^(X4-$D$4) -> 0.2584190028 | Y6: =1/(1+Inputs!$D$5)^(Y4-$D$4) -> 0.2415130867 | Z6: =1/(1+Inputs!$D$5)^(Z4-$D$4) -> 0.2257131652 | AA6: =1/(1+Inputs!$D$5)^(AA4-$D$4) -> 0.2109468833 | AB6: =1/(1+Inputs!$D$5)^(AB4-$D$4) -> 0.1971466199 | AC6: =1/(1+Inputs!$D$5)^(AC4-$D$4) -> 0.1842491775 | AD6: =1/(1+Inputs!$D$5)^(AD4-$D$4) -> 0.172195493 | AE6: =1/(1+Inputs!$D$5)^(AE4-$D$4) -> 0.1609303673 | AF6: =1/(1+Inputs!$D$5)^(AF4-$D$4) -> 0.1504022124 | AG6: =1/(1+Inputs!$D$5)^(AG4-$D$4) -> 0.1405628154 | AH6: =1/(1+Inputs!$D$5)^(AH4-$D$4) -> 0.1313671172 | AI6: =1/(1+Inputs!$D$5)^(AI4-$D$4) -> 0.1227730067 | AJ6: =1/(1+Inputs!$D$5)^(AJ4-$D$4) -> 0.1147411277 | AK6: =1/(1+Inputs!$D$5)^(AK4-$D$4) -> 0.1072346988 | AL6: =1/(1+Inputs!$D$5)^(AL4-$D$4) -> 0.1002193447
A7: Discount Factor | B7: % | C7: 0.03 | D7: =1/(1+Inputs!$D$6)^(D4-$D$4) -> 1 | E7: =1/(1+Inputs!$D$6)^(E4-$D$4) -> 0.9708737864 | F7: =1/(1+Inputs!$D$6)^(F4-$D$4) -> 0.9425959091 | G7: =1/(1+Inputs!$D$6)^(G4-$D$4) -> 0.9151416594 | H7: =1/(1+Inputs!$D$6)^(H4-$D$4) -> 0.8884870479 | I7: =1/(1+Inputs!$D$6)^(I4-$D$4) -> 0.8626087844 | J7: =1/(1+Inputs!$D$6)^(J4-$D$4) -> 0.8374842567 | K7: =1/(1+Inputs!$D$6)^(K4-$D$4) -> 0.8130915113 | L7: =1/(1+Inputs!$D$6)^(L4-$D$4) -> 0.7894092343 | M7: =1/(1+Inputs!$D$6)^(M4-$D$4) -> 0.7664167323 | N7: =1/(1+Inputs!$D$6)^(N4-$D$4) -> 0.7440939149 | O7: =1/(1+Inputs!$D$6)^(O4-$D$4) -> 0.7224212766 | P7: =1/(1+Inputs!$D$6)^(P4-$D$4) -> 0.7013798802 | Q7: =1/(1+Inputs!$D$6)^(Q4-$D$4) -> 0.68095134 | R7: =1/(1+Inputs!$D$6)^(R4-$D$4) -> 0.6611178058 | S7: =1/(1+Inputs!$D$6)^(S4-$D$4) -> 0.6418619474 | T7: =1/(1+Inputs!$D$6)^(T4-$D$4) -> 0.6231669392 | U7: =1/(1+Inputs!$D$6)^(U4-$D$4) -> 0.6050164458 | V7: =1/(1+Inputs!$D$6)^(V4-$D$4) -> 0.5873946076 | W7: =1/(1+Inputs!$D$6)^(W4-$D$4) -> 0.5702860268 | X7: =1/(1+Inputs!$D$6)^(X4-$D$4) -> 0.5536757542 | Y7: =1/(1+Inputs!$D$6)^(Y4-$D$4) -> 0.5375492759 | Z7: =1/(1+Inputs!$D$6)^(Z4-$D$4) -> 0.5218925009 | AA7: =1/(1+Inputs!$D$6)^(AA4-$D$4) -> 0.5066917484 | AB7: =1/(1+Inputs!$D$6)^(AB4-$D$4) -> 0.4919337363 | AC7: =1/(1+Inputs!$D$6)^(AC4-$D$4) -> 0.4776055693 | AD7: =1/(1+Inputs!$D$6)^(AD4-$D$4) -> 0.4636947274 | AE7: =1/(1+Inputs!$D$6)^(AE4-$D$4) -> 0.4501890558 | AF7: =1/(1+Inputs!$D$6)^(AF4-$D$4) -> 0.4370767532 | AG7: =1/(1+Inputs!$D$6)^(AG4-$D$4) -> 0.4243463623 | AH7: =1/(1+Inputs!$D$6)^(AH4-$D$4) -> 0.4119867595 | AI7: =1/(1+Inputs!$D$6)^(AI4-$D$4) -> 0.3999871452 | AJ7: =1/(1+Inputs!$D$6)^(AJ4-$D$4) -> 0.3883370341 | AK7: =1/(1+Inputs!$D$6)^(AK4-$D$4) -> 0.3770262467 | AL7: =1/(1+Inputs!$D$6)^(AL4-$D$4) -> 0.3660448997
A9: Share of Traffic - Auto | B9: % | D9: =1-ShareTruck -> 0.79 | E9: 0.79 | F9: 0.79 | G9: 0.79 | H9: 0.79 | I9: 0.79 | J9: 0.79 | K9: 0.79 | L9: 0.79 | M9: 0.79 | N9: 0.79 | O9: 0.79 | P9: 0.79 | Q9: 0.79 | R9: 0.79 | S9: 0.79 | T9: 0.79 | U9: 0.79 | V9: 0.79 | W9: 0.79 | X9: 0.79 | Y9: 0.79 | Z9: 0.79 | AA9: 0.79 | AB9: 0.79 | AC9: 0.79 | AD9: 0.79 | AE9: 0.79 | AF9: 0.79 | AG9: 0.79 | AH9: 0.79 | AI9: 0.79 | AJ9: 0.79 | AK9: 0.79 | AL9: 0.79
A10: Share of Traffic - Trucks | B10: % | D10: =Inputs!$D$21 -> 0.21 | E10: =Inputs!$D$21 -> 0.21 | F10: =Inputs!$D$21 -> 0.21 | G10: =Inputs!$D$21 -> 0.21 | H10: =Inputs!$D$21 -> 0.21 | I10: =Inputs!$D$21 -> 0.21 | J10: =Inputs!$D$21 -> 0.21 | K10: =Inputs!$D$21 -> 0.21 | L10: =Inputs!$D$21 -> 0.21 | M10: =Inputs!$D$21 -> 0.21 | N10: =Inputs!$D$21 -> 0.21 | O10: =Inputs!$D$21 -> 0.21 | P10: =Inputs!$D$21 -> 0.21 | Q10: =Inputs!$D$21 -> 0.21 | R10: =Inputs!$D$21 -> 0.21 | S10: =Inputs!$D$21 -> 0.21 | T10: =Inputs!$D$21 -> 0.21 | U10: =Inputs!$D$21 -> 0.21 | V10: =Inputs!$D$21 -> 0.21 | W10: =Inputs!$D$21 -> 0.21 | X10: =Inputs!$D$21 -> 0.21 | Y10: =Inputs!$D$21 -> 0.21 | Z10: =Inputs!$D$21 -> 0.21 | AA10: =Inputs!$D$21 -> 0.21 | AB10: =Inputs!$D$21 -> 0.21 | AC10: =Inputs!$D$21 -> 0.21 | AD10: =Inputs!$D$21 -> 0.21 | AE10: =Inputs!$D$21 -> 0.21 | AF10: =Inputs!$D$21 -> 0.21 | AG10: =Inputs!$D$21 -> 0.21 | AH10: =Inputs!$D$21 -> 0.21 | AI10: =Inputs!$D$21 -> 0.21 | AJ10: =Inputs!$D$21 -> 0.21 | AK10: =Inputs!$D$21 -> 0.21 | AL10: =Inputs!$D$21 -> 0.21
A12: No Build Case Alternative | B12: Unit | C12: Value | D12: =BaseYear -> 2019 | E12: =D12+1 -> 2020 | F12: 2021 | G12: 2022 | H12: 2023 | I12: 2024 | J12: 2025 | K12: 2026 | L12: 2027 | M12: 2028 | N12: 2029 | O12: 2030 | P12: 2031 | Q12: 2032 | R12: 2033 | S12: 2034 | T12: 2035 | U12: 2036 | V12: 2037 | W12: 2038 | X12: 2039 | Y12: 2040 | Z12: 2041 | AA12: =Z12+1 -> 2042 | AB12: =AA12+1 -> 2043 | AC12: =AB12+1 -> 2044 | AD12: 2045 | AE12: 2046 | AF12: 2047 | AG12: 2048 | AH12: 2049 | AI12: 2050 | AJ12: 2051 | AK12: 2052 | AL12: 2053
A14: Total Daily VMT | B14: =Traffic!B10 -> Daily VMT | D14: =Traffic!D15 -> 9178.140137 | E14: =Traffic!E15 -> 9359.806265 | F14: =Traffic!F10 -> 21953.6568 | G14: =Traffic!G10 -> 22388.19318 | H14: =Traffic!H10 -> 22831.33049 | I14: =Traffic!I10 -> 23283.23897 | J14: =Traffic!J10 -> 23744.09224 | K14: =Traffic!K10 -> 24214.06733 | L14: =Traffic!L10 -> 24693.34481 | M14: =Traffic!M10 -> 25182.10879 | N14: =Traffic!N10 -> 25680.54705 | O14: =Traffic!O10 -> 26188.85107 | P14: =Traffic!P10 -> 26707.21613 | Q14: =Traffic!Q10 -> 27235.84137 | R14: =Traffic!R10 -> 27774.92987 | S14: =Traffic!S10 -> 28324.68874 | T14: =Traffic!T10 -> 28885.32918 | U14: =Traffic!U10 -> 29457.06657 | V14: =Traffic!V10 -> 30040.12055 | W14: =Traffic!W10 -> 30634.71513 | X14: =Traffic!X10 -> 31241.07873 | Y14: =Traffic!Y10 -> 31859.44429 | Z14: =Traffic!Z10 -> 32490.04938 | AA14: =Traffic!AA10 -> 33133.13625 | AB14: =Traffic!AB10 -> 33788.95196 | AC14: =Traffic!AC10 -> 34457.74847 | AD14: =Traffic!AD10 -> 35139.7827 | AE14: =Traffic!AE10 -> 35835.31666 | AF14: =Traffic!AF10 -> 36544.61758 | AG14: =Traffic!AG10 -> 37267.95793 | AH14: =Traffic!AH10 -> 38005.61562 | AI14: =Traffic!AI10 -> 38757.87402 | AJ14: =Traffic!AJ10 -> 39525.02213 | AK14: =Traffic!AK10 -> 40307.35467 | AL14: =Traffic!AL10 -> 41105.17219
A16: Fatalities | B16: fatalities/year | D16: =(D14/100000000)*Annualization_Factor*CrashRate_Bridge*PercentFatal_Bridge -> 0 | E16: =(E14/100000000)*Annualization_Factor*CrashRate_Bridge*PercentFatal_Bridge -> 0 | F16: =(F14/100000000)*Annualization_Factor*CrashRate_Detour*PercentFatal_Detour -> 0.106382979 | G16: 0.1084886543 | H16: 0.1106360081 | I16: 0.1128258652 | J16: 0.1150590669 | K16: 0.1173364711 | L16: 0.1196589527 | M16: 0.1220274041 | N16: 0.1244427351 | O16: 0.1269058735 | P16: 0.1294177657 | Q16: 0.1319793766 | R16: 0.1345916904 | S16: 0.1372557107 | T16: 0.1399724608 | U16: 0.1427429845 | V16: 0.1455683462 | W16: 0.1484496312 | X16: 0.1513879465 | Y16: 0.1543844209 | Z16: 0.1574402056 | AA16: =(AA14/100000000)*Annualization_Factor*CrashRate_Detour*PercentFatal_Detour -> 0.1605564744 | AB16: 0.1637344247 | AC16: 0.1669752772 | AD16: 0.1702802771 | AE16: 0.173650694 | AF16: 0.1770878227 | AG16: 0.1805929837 | AH16: 0.1841675236 | AI16: 0.1878128156 | AJ16: 0.1915302601 | AK16: 0.1953212853 | AL16: 0.1991873476
A17: Injuries | B17: injuries/year | D17: =(D14/100000000)*Annualization_Factor*CrashRate_Bridge*PercentInjury_Bridge*NumberInjuryperCrash_Bridge -> 0 | E17: =(E14/100000000)*Annualization_Factor*CrashRate_Bridge*PercentInjury_Bridge*NumberInjuryperCrash_Bridge -> 0 | F17: =(F14/100000000)*Annualization_Factor*CrashRate_Detour*PercentInjury_Detour*NumberInjuryperCrash_Detour -> 2.404684371 | G17: 2.452281127 | H17: 2.500819983 | I17: 2.550319584 | J17: 2.600798949 | K17: 2.652277469 | L17: 2.704774922 | M17: 2.758311475 | N17: 2.812907695 | O17: 2.868584558 | P17: 2.925363452 | Q17: 2.98326619 | R17: 3.042315018 | S17: 3.10253262 | T17: 3.163942129 | U17: 3.226567139 | V17: 3.290431707 | W17: 3.355560369 | X17: 3.421978145 | Y17: 3.489710551 | Z17: 3.558783609 | AA17: =(AA14/100000000)*Annualization_Factor*CrashRate_Detour*PercentInjury_Detour*NumberInjuryperCrash_Detour -> 3.629223853 | AB17: 3.701058346 | AC17: 3.774314684 | AD17: 3.84902101 | AE17: 3.925206025 | AF17: 4.002898996 | AG17: 4.082129771 | AH17: 4.162928789 | AI17: 4.245327089 | AJ17: 4.329356328 | AK17: 4.415048787 | AL17: 4.502437387
A18: PDO | B18: PDO vehicles/year | D18: =(D14/100000000)*Annualization_Factor*CrashRate_Bridge*PercentPDO_Bridge*DamagedVeh_PDOcrash -> 6.648579275 | E18: =(E14/100000000)*Annualization_Factor*CrashRate_Bridge*PercentPDO_Bridge*DamagedVeh_PDOcrash -> 6.780176923 | F18: =(F14/100000000)*Annualization_Factor*CrashRate_Detour*PercentPDO_Detour*DamagedVeh_PDOcrash -> 5.614626896 | G18: =(G14/100000000)*Annualization_Factor*CrashRate_Detour*PercentPDO_Detour*DamagedVeh_PDOcrash -> 5.725759164 | H18: 5.839091111 | I18: 5.954666277 | J18: 6.072529062 | K18: 6.192724747 | L18: 6.315299506 | M18: 6.440300431 | N18: 6.567775542 | O18: 6.697773813 | P18: 6.830345185 | Q18: 6.965540588 | R18: 7.103411961 | S18: 7.244012271 | T18: 7.387395531 | U18: 7.533616826 | V18: 7.68273233 | W18: 7.834799329 | X18: 7.989876243 | Y18: 8.148022649 | Z18: 8.309299301 | AA18: =(AA14/100000000)*Annualization_Factor*CrashRate_Detour*PercentPDO_Detour*DamagedVeh_PDOcrash -> 8.473768159 | AB18: 8.641492406 | AC18: 8.812536478 | AD18: 8.986966084 | AE18: 9.164848237 | AF18: 9.346251273 | AG18: 9.531244882 | AH18: 9.719900135 | AI18: 9.912289506 | AJ18: 10.10848691 | AK18: 10.30856771 | AL18: 10.51260879
A20: Cost of Fatalities | B20: $/year | D20: =(D16*AccidentCost_Fatality) -> 0 | E20: =(E16*AccidentCost_Fatality) -> 0 | F20: =(F16*AccidentCost_Fatality) -> 1021276.598 | G20: =(G16*AccidentCost_Fatality) -> 1041491.082 | H20: 1062105.678 | I20: 1083128.306 | J20: 1104567.042 | K20: 1126430.122 | L20: 1148725.946 | M20: 1171463.079 | N20: 1194650.257 | O20: 1218296.386 | P20: 1242410.551 | Q20: 1267002.016 | R20: 1292080.228 | S20: 1317654.823 | T20: 1343735.624 | U20: 1370332.651 | V20: 1397456.123 | W20: 1425116.46 | X20: 1453324.286 | Y20: 1482090.441 | Z20: 1511425.973 | AA20: =(AA16*AccidentCost_Fatality) -> 1541342.155 | AB20: 1571850.477 | AC20: 1602962.662 | AD20: 1634690.66 | AE20: 1667046.662 | AF20: 1700043.098 | AG20: 1733692.644 | AH20: 1768008.227 | AI20: 1803003.03 | AJ20: 1838690.497 | AK20: 1875084.339 | AL20: 1912198.537
A21: Cost Injuries | B21: $/year | D21: =D17*AccidentCost_Injury -> 0 | E21: =E17*AccidentCost_Injury -> 0 | F21: =F17*AccidentCost_Injury -> 418415.0806 | G21: =G17*AccidentCost_Injury -> 426696.9162 | H21: 435142.677 | I21: 443755.6077 | J21: 452539.0171 | K21: 461496.2796 | L21: 470630.8364 | M21: 479946.1966 | N21: 489445.9389 | O21: 499133.713 | P21: 509013.2406 | Q21: 519088.3171 | R21: 529362.8131 | S21: 539840.6758 | T21: 550525.9305 | U21: 561422.6822 | V21: 572535.117 | W21: 583867.5042 | X21: 595424.1972 | Y21: 607209.6359 | Z21: 619228.3479 | AA21: =AA17*AccidentCost_Injury -> 631484.9504 | AB21: 643984.1522 | AC21: 656730.755 | AD21: 669729.6558 | AE21: 682985.8483 | AF21: 696504.4253 | AG21: 710290.5802 | AH21: 724349.6092 | AI21: 738686.9136 | AJ21: 753308.0011 | AK21: 768218.489 | AL21: 783424.1054
A22: Cost PDO Accidents | B22: $/year | D22: =D18*AccidentCost_PDO -> 29253.74881 | E22: =E18*AccidentCost_PDO -> 29832.77846 | F22: =F18*AccidentCost_PDO -> 24704.35834 | G22: =G18*AccidentCost_PDO -> 25193.34032 | H22: 25692.00089 | I22: 26200.53162 | J22: 26719.12787 | K22: 27247.98889 | L22: 27787.31783 | M22: 28337.3219 | N22: 28898.21239 | O22: 29470.20478 | P22: 30053.51881 | Q22: 30648.37859 | R22: 31255.01263 | S22: 31873.65399 | T22: 32504.54034 | U22: 33147.91403 | V22: 33804.02225 | W22: 34473.11705 | X22: 35155.45547 | Y22: 35851.29965 | Z22: 36560.91693 | AA22: =AA18*AccidentCost_PDO -> 37284.5799 | AB22: 38022.56659 | AC22: 38775.1605 | AD22: 39542.65077 | AE22: 40325.33224 | AF22: 41123.5056 | AG22: 41937.47748 | AH22: 42767.56059 | AI22: 43614.07383 | AJ22: 44477.34239 | AK22: 45357.69794 | AL22: 46255.47866
A24: Total Accident Cost | D24: =SUM(D20:D22) -> 29253.74881 | E24: =SUM(E20:E22) -> 29832.77846 | F24: =SUM(F20:F22) -> 1464396.037 | G24: =SUM(G20:G22) -> 1493381.338 | H24: =SUM(H20:H22) -> 1522940.356 | I24: 1553084.445 | J24: 1583825.187 | K24: 1615174.391 | L24: 1647144.101 | M24: 1679746.598 | N24: 1712994.408 | O24: 1746900.303 | P24: 1781477.31 | Q24: 1816738.711 | R24: 1852698.054 | S24: 1889369.152 | T24: 1926766.095 | U24: 1964903.248 | V24: 2003795.263 | W24: 2043457.081 | X24: 2083903.939 | Y24: 2125151.376 | Z24: 2167215.238 | AA24: =SUM(AA20:AA22) -> 2210111.685 | AB24: =SUM(AB20:AB22) -> 2253857.196 | AC24: =SUM(AC20:AC22) -> 2298468.577 | AD24: 2343962.967 | AE24: 2390357.843 | AF24: 2437671.029 | AG24: 2485920.701 | AH24: 2535125.396 | AI24: 2585304.017 | AJ24: 2636475.841 | AK24: 2688660.526 | AL24: 2741878.121
A26: Build (Alternative Case) | B26: Unit | C26: Value | D26: =BaseYear -> 2019 | E26: =D26+1 -> 2020 | F26: 2021 | G26: 2022 | H26: 2023 | I26: 2024 | J26: 2025 | K26: 2026 | L26: 2027 | M26: 2028 | N26: 2029 | O26: 2030 | P26: 2031 | Q26: 2032 | R26: 2033 | S26: 2034 | T26: 2035 | U26: 2036 | V26: 2037 | W26: 2038 | X26: 2039 | Y26: 2040 | Z26: 2041 | AA26: =Z26+1 -> 2042 | AB26: =AA26+1 -> 2043 | AC26: =AB26+1 -> 2044 | AD26: 2045 | AE26: 2046 | AF26: 2047 | AG26: 2048 | AH26: 2049 | AI26: 2050 | AJ26: 2051 | AK26: 2052 | AL26: 2053
A28: Total Daily VMT | B28: =Traffic!B15 -> Daily VMT | D28: =Traffic!D15 -> 9178.140137 | E28: =Traffic!E15 -> 9359.806265 | F28: =Traffic!F10 -> 21953.6568 | G28: =Traffic!G10 -> 22388.19318 | H28: =Traffic!H10 -> 22831.33049 | I28: =Traffic!I15 -> 10123.14738 | J28: =Traffic!J15 -> 10323.51837 | K28: =Traffic!K15 -> 10527.85536 | L28: =Traffic!L15 -> 10736.23687 | M28: =Traffic!M15 -> 10948.74295 | N28: =Traffic!N15 -> 11165.45524 | O28: =Traffic!O15 -> 11386.45699 | P28: =Traffic!P15 -> 11611.8331 | Q28: =Traffic!Q15 -> 11841.67016 | R28: =Traffic!R15 -> 12076.05646 | S28: =Traffic!S15 -> 12315.08206 | T28: =Traffic!T15 -> 12558.83877 | U28: =Traffic!U15 -> 12807.42025 | V28: =Traffic!V15 -> 13060.92198 | W28: =Traffic!W15 -> 13319.44136 | X28: =Traffic!X15 -> 13583.07771 | Y28: =Traffic!Y15 -> 13851.9323 | Z28: =Traffic!Z15 -> 14126.10842 | AA28: =Traffic!AA15 -> 14405.71141 | AB28: =Traffic!AB15 -> 14690.84868 | AC28: =Traffic!AC15 -> 14981.62977 | AD28: =Traffic!AD15 -> 15278.16639 | AE28: =Traffic!AE15 -> 15580.57246 | AF28: =Traffic!AF15 -> 15888.96416 | AG28: =Traffic!AG15 -> 16203.45997 | AH28: =Traffic!AH15 -> 16524.1807 | AI28: =Traffic!AI15 -> 16851.24957 | AJ28: =Traffic!AJ15 -> 17184.79223 | AK28: =Traffic!AK15 -> 17524.93681 | AL28: =Traffic!AL15 -> 17871.814
A30: Fatalities | B30: fatalities/year | D30: =(D28/100000000)*Annualization_Factor*CrashRate_Bridge*PercentFatal_Bridge -> 0 | E30: =(E28/100000000)*Annualization_Factor*CrashRate_Bridge*PercentFatal_Bridge -> 0 | F30: =(F28/100000000)*Annualization_Factor*CrashRate_Detour*PercentFatal_Detour -> 0.106382979 | G30: =(G28/100000000)*Annualization_Factor*CrashRate_Detour*PercentFatal_Detour -> 0.1084886543 | H30: =(H28/100000000)*Annualization_Factor*CrashRate_Detour*PercentFatal_Detour -> 0.1106360081 | I30: =((I28/100000000)*Annualization_Factor*CrashRate_Bridge*PercentFatal_Bridge)*CMF_WidenLane -> 0 | J30: 0 | K30: 0 | L30: 0 | M30: 0 | N30: 0 | O30: 0 | P30: 0 | Q30: 0 | R30: 0 | S30: 0 | T30: 0 | U30: 0 | V30: 0 | W30: 0 | X30: 0 | Y30: 0 | Z30: 0 | AA30: 0 | AB30: 0 | AC30: =((AC28/100000000)*Annualization_Factor*CrashRate_Bridge*PercentFatal_Bridge)*CMF_WidenLane -> 0 | AD30: 0 | AE30: 0 | AF30: 0 | AG30: 0 | AH30: 0 | AI30: 0 | AJ30: 0 | AK30: 0 | AL30: 0
A31: Injuries | B31: injuries/year | D31: =(D28/100000000)*Annualization_Factor*CrashRate_Bridge*PercentInjury_Bridge*NumberInjuryperCrash_Bridge -> 0 | E31: =(E28/100000000)*Annualization_Factor*CrashRate_Bridge*PercentInjury_Bridge*NumberInjuryperCrash_Bridge -> 0 | F31: =(F28/100000000)*Annualization_Factor*CrashRate_Detour*PercentInjury_Detour*NumberInjuryperCrash_Detour -> 2.404684371 | G31: =(G28/100000000)*Annualization_Factor*CrashRate_Detour*PercentInjury_Detour*NumberInjuryperCrash_Detour -> 2.452281127 | H31: =(H28/100000000)*Annualization_Factor*CrashRate_Detour*PercentInjury_Detour*NumberInjuryperCrash_Detour -> 2.500819983 | I31: =((I28/100000000)*Annualization_Factor*CrashRate_Bridge*PercentInjury_Bridge*NumberInjuryperCrash_Bridge)*CMF_WidenLane -> 0 | J31: 0 | K31: 0 | L31: 0 | M31: 0 | N31: 0 | O31: 0 | P31: 0 | Q31: 0 | R31: 0 | S31: 0 | T31: 0 | U31: 0 | V31: 0 | W31: 0 | X31: 0 | Y31: 0 | Z31: 0 | AA31: 0 | AB31: 0 | AC31: =((AC28/100000000)*Annualization_Factor*CrashRate_Bridge*PercentInjury_Bridge*NumberInjuryperCrash_Bridge)*CMF_WidenLane -> 0 | AD31: 0 | AE31: 0 | AF31: 0 | AG31: 0 | AH31: 0 | AI31: 0 | AJ31: 0 | AK31: 0 | AL31: 0
A32: PDO | B32: PDO vehicles/year | D32: =(D28/100000000)*Annualization_Factor*CrashRate_Bridge*PercentPDO_Bridge*DamagedVeh_PDOcrash -> 6.648579275 | E32: =(E28/100000000)*Annualization_Factor*CrashRate_Bridge*PercentPDO_Bridge*DamagedVeh_PDOcrash -> 6.780176923 | F32: =(F28/100000000)*Annualization_Factor*CrashRate_Detour*PercentPDO_Detour*DamagedVeh_PDOcrash -> 5.614626896 | G32: =(G28/100000000)*Annualization_Factor*CrashRate_Detour*PercentPDO_Detour*DamagedVeh_PDOcrash -> 5.725759164 | H32: =(H28/100000000)*Annualization_Factor*CrashRate_Detour*PercentPDO_Detour*DamagedVeh_PDOcrash -> 5.839091111 | I32: =(((I28/100000000)*Annualization_Factor*CrashRate_Bridge*PercentPDO_Bridge*DamagedVeh_PDOcrash))*CMF_WidenLane -> 5.646514554 | J32: 5.758277985 | K32: 5.872253588 | L32: 5.98848515 | M32: 6.107017325 | N32: 6.227895647 | O32: 6.351166557 | P32: 6.476877411 | Q32: 6.605076503 | R32: 6.735813085 | S32: 6.869137381 | T32: 7.005100612 | U32: 7.14375501 | V32: 7.285153843 | W32: 7.429351433 | X32: 7.576403176 | Y32: 7.726365565 | Z32: 7.879296212 | AA32: 8.035253868 | AB32: 8.194298449 | AC32: =(((AC28/100000000)*Annualization_Factor*CrashRate_Bridge*PercentPDO_Bridge*DamagedVeh_PDOcrash))*CMF_WidenLane -> 8.356491055 | AD32: 8.521893995 | AE32: 8.690570814 | AF32: 8.862586312 | AG32: 9.038006572 | AH32: 9.216898987 | AI32: 9.399332281 | AJ32: 9.585376542 | AK32: 9.775103241 | AL32: 9.968585267
A33: CMF (All crashes) | B33: =CMF_WidenLane -> 0.77
A35: Cost of Fatalities | B35: $/year | D35: =(D30*AccidentCost_Fatality) -> 0 | E35: =(E30*AccidentCost_Fatality) -> 0 | F35: =(F30*AccidentCost_Fatality) -> 1021276.598 | G35: =G30*AccidentCost_Fatality -> 1041491.082 | H35: =H30*AccidentCost_Fatality -> 1062105.678 | I35: =I30*AccidentCost_Fatality -> 0 | J35: 0 | K35: 0 | L35: 0 | M35: 0 | N35: 0 | O35: 0 | P35: 0 | Q35: 0 | R35: 0 | S35: 0 | T35: 0 | U35: 0 | V35: 0 | W35: 0 | X35: 0 | Y35: 0 | Z35: 0 | AA35: =AA30*AccidentCost_Fatality -> 0 | AB35: 0 | AC35: 0 | AD35: 0 | AE35: 0 | AF35: 0 | AG35: 0 | AH35: 0 | AI35: 0 | AJ35: 0 | AK35: 0 | AL35: 0
A36: Cost Injuries | B36: $/year | D36: =D31*AccidentCost_Injury -> 0 | E36: =E31*AccidentCost_Injury -> 0 | F36: =F31*AccidentCost_Injury -> 418415.0806 | G36: =G31*AccidentCost_Injury -> 426696.9162 | H36: =H31*AccidentCost_Injury -> 435142.677 | I36: =I31*AccidentCost_Injury -> 0 | J36: 0 | K36: 0 | L36: 0 | M36: 0 | N36: 0 | O36: 0 | P36: 0 | Q36: 0 | R36: 0 | S36: 0 | T36: 0 | U36: 0 | V36: 0 | W36: 0 | X36: 0 | Y36: 0 | Z36: 0 | AA36: =AA31*AccidentCost_Injury -> 0 | AB36: 0 | AC36: 0 | AD36: 0 | AE36: 0 | AF36: 0 | AG36: 0 | AH36: 0 | AI36: 0 | AJ36: 0 | AK36: 0 | AL36: 0
A37: Cost PDO Accidents | B37: $/year | D37: =D32*AccidentCost_PDO -> 29253.74881 | E37: =E32*AccidentCost_PDO -> 29832.77846 | F37: =F32*AccidentCost_PDO -> 24704.35834 | G37: =G32*AccidentCost_PDO -> 25193.34032 | H37: =H32*AccidentCost_PDO -> 25692.00089 | I37: =I32*AccidentCost_PDO -> 24844.66404 | J37: 25336.42313 | K37: 25837.91579 | L37: 26349.33466 | M37: 26870.87623 | N37: 27402.74085 | O37: 27945.13285 | P37: 28498.26061 | Q37: 29062.33661 | R37: 29637.57757 | S37: 30224.20448 | T37: 30822.44269 | U37: 31432.52204 | V37: 32054.67691 | W37: 32689.1463 | X37: 33336.17397 | Y37: 33996.00849 | Z37: 34668.90333 | AA37: =AA32*AccidentCost_PDO -> 35355.11702 | AB37: 36054.91318 | AC37: 36768.56064 | AD37: 37496.33358 | AE37: 38238.51158 | AF37: 38995.37977 | AG37: 39767.22892 | AH37: 40554.35554 | AI37: 41357.06204 | AJ37: 42175.65678 | AK37: 43010.45426 | AL37: 43861.77517
A39: Total Accident Cost | D39: =SUM(D35:D37) -> 29253.74881 | E39: =SUM(E35:E37) -> 29832.77846 | F39: =SUM(F35:F37) -> 1464396.037 | G39: =SUM(G35:G37) -> 1493381.338 | H39: =SUM(H35:H37) -> 1522940.356 | I39: 24844.66404 | J39: 25336.42313 | K39: 25837.91579 | L39: 26349.33466 | M39: 26870.87623 | N39: 27402.74085 | O39: 27945.13285 | P39: 28498.26061 | Q39: 29062.33661 | R39: 29637.57757 | S39: 30224.20448 | T39: 30822.44269 | U39: 31432.52204 | V39: 32054.67691 | W39: 32689.1463 | X39: 33336.17397 | Y39: 33996.00849 | Z39: 34668.90333 | AA39: =SUM(AA35:AA37) -> 35355.11702 | AB39: =SUM(AB35:AB37) -> 36054.91318 | AC39: =SUM(AC35:AC37) -> 36768.56064 | AD39: 37496.33358 | AE39: 38238.51158 | AF39: 38995.37977 | AG39: 39767.22892 | AH39: 40554.35554 | AI39: 41357.06204 | AJ39: 42175.65678 | AK39: 43010.45426 | AL39: 43861.77517
A41: No Build Less Build | B41: Unit | C41: Value | D41: =BaseYear -> 2019 | E41: =D41+1 -> 2020 | F41: 2021 | G41: 2022 | H41: 2023 | I41: 2024 | J41: 2025 | K41: 2026 | L41: 2027 | M41: 2028 | N41: 2029 | O41: 2030 | P41: 2031 | Q41: 2032 | R41: 2033 | S41: 2034 | T41: 2035 | U41: 2036 | V41: 2037 | W41: 2038 | X41: 2039 | Y41: 2040 | Z41: 2041 | AA41: =Z41+1 -> 2042 | AB41: =AA41+1 -> 2043 | AC41: =AB41+1 -> 2044 | AD41: 2045 | AE41: 2046 | AF41: 2047 | AG41: 2048 | AH41: 2049 | AI41: 2050 | AJ41: 2051 | AK41: 2052 | AL41: 2053
A42: Undiscounted Impacts | D42: =D24-D39 -> 0 | E42: 0 | F42: 0 | G42: 0 | H42: 0 | I42: 1528239.781 | J42: 1558488.764 | K42: 1589336.475 | L42: 1620794.766 | M42: 1652875.722 | N42: 1685591.667 | O42: 1718955.17 | P42: 1752979.049 | Q42: 1787676.375 | R42: 1823060.476 | S42: 1859144.948 | T42: 1895943.652 | U42: 1933470.726 | V42: 1971740.586 | W42: 2010767.934 | X42: 2050567.765 | Y42: 2091155.368 | Z42: 2132546.335 | AA42: =AA24-AA39 -> 2174756.568 | AB42: =AB24-AB39 -> 2217802.283 | AC42: =AC24-AC39 -> 2261700.016 | AD42: 2306466.633 | AE42: 2352119.331 | AF42: 2398675.649 | AG42: 2446153.472 | AH42: 2494571.041 | AI42: 2543946.955 | AJ42: 2594300.184 | AK42: 2645650.072 | AL42: 2698016.346
A43: Discounted Impacts, at 7% | D43: =D42*D6 -> 0 | E43: 0 | F43: 0 | G43: 0 | H43: 0 | I43: 1089613.843 | J43: 1038486.869 | K43: 989758.8796 | L43: 943317.3104 | M43: 899054.8773 | N43: 856869.3308 | O43: 816663.2188 | P43: 778343.6622 | Q43: 741822.1399 | R43: 707014.2842 | S43: 673839.6863 | T43: 642221.7104 | U43: 612087.3164 | V43: 583366.8917 | W43: 555994.0896 | X43: 529905.6771 | Y43: 505041.3877 | Z43: 481343.7831 | AA43: =AA42*AA6 -> 458758.12 | AB43: =AB42*AB6 -> 437232.2238 | AC43: =AC42*AC6 -> 416716.3678 | AD43: 397163.159 | AE43: 378527.4279 | AF43: 360766.1245 | AG43: 343838.2189 | AH43: 327704.6062 | AI43: 312328.0165 | AJ43: 297672.9288 | AK43: 283705.4887 | AL43: 270393.4302
A44: Discounted Impacts, at 3% | D44: =D42*D7 -> 0 | E44: 0 | F44: 0 | G44: 0 | H44: 0 | I44: 1318273.06 | J44: 1305209.804 | K44: 1292275.996 | L44: 1279470.355 | M44: 1266791.61 | N44: 1254238.502 | O44: 1241809.789 | P44: 1229504.236 | Q44: 1217320.623 | R44: 1205257.742 | S44: 1193314.397 | T44: 1181489.403 | U44: 1169781.587 | V44: 1158189.788 | W44: 1146712.856 | X44: 1135349.654 | Y44: 1124099.054 | Z44: 1112959.94 | AA44: =AA42*AA7 -> 1101931.208 | AB44: =AB42*AB7 -> 1091011.763 | AC44: =AC42*AC7 -> 1080200.524 | AD44: 1069496.417 | AE44: 1058898.381 | AF44: 1048405.365 | AG44: 1038016.328 | AH44: 1027730.24 | AI44: 1017546.08 | AJ44: 1007462.839 | AK44: 997479.5168 | AL44: 987595.1229
A46: Key Quantified Impacts
A47: Total Accident Cost Saving | D47: =D42 -> 0 | E47: 0 | F47: 0 | G47: 0 | H47: 0 | I47: 1528239.781 | J47: 1558488.764 | K47: 1589336.475 | L47: 1620794.766 | M47: 1652875.722 | N47: 1685591.667 | O47: 1718955.17 | P47: 1752979.049 | Q47: 1787676.375 | R47: 1823060.476 | S47: 1859144.948 | T47: 1895943.652 | U47: 1933470.726 | V47: 1971740.586 | W47: 2010767.934 | X47: 2050567.765 | Y47: 2091155.368 | Z47: 2132546.335 | AA47: =AA42 -> 2174756.568 | AB47: =AB42 -> 2217802.283 | AC47: =AC42 -> 2261700.016 | AD47: 2306466.633 | AE47: 2352119.331 | AF47: 2398675.649 | AG47: 2446153.472 | AH47: 2494571.041 | AI47: 2543946.955 | AJ47: 2594300.184 | AK47: 2645650.072 | AL47: 2698016.346

Sheet Cal-4
A1: Environmental Costs Due To Additional VMT After Closure
G2: 2022 - First Year of Construction under Build (Bridge Close)
F3: 2021 - First Year of Bridge Closured under No-Build
B4: Unit | C4: Value | D4: =BaseYear -> 2019 | E4: =D4+1 -> 2020 | F4: 2021 | G4: 2022 | H4: 2023 | I4: 2024 | J4: 2025 | K4: 2026 | L4: 2027 | M4: 2028 | N4: 2029 | O4: 2030 | P4: 2031 | Q4: 2032 | R4: 2033 | S4: 2034 | T4: =S4+1 -> 2035 | U4: 2036 | V4: 2037 | W4: 2038 | X4: 2039 | Y4: 2040 | Z4: 2041 | AA4: 2042 | AB4: 2043 | AC4: =AB4+1 -> 2044 | AD4: =AC4+1 -> 2045 | AE4: =AD4+1 -> 2046 | AF4: =AE4+1 -> 2047 | AG4: =AF4+1 -> 2048 | AH4: =AG4+1 -> 2049 | AI4: =AH4+1 -> 2050 | AJ4: =AI4+1 -> 2051 | AK4: =AJ4+1 -> 2052 | AL4: =AK4+1 -> 2053
A5: Benefits Index | B5: Number | D5: 0 | E5: 0 | F5: 0 | G5: 0 | H5: 0 | I5: 1 | J5: 2 | K5: 3 | L5: 4 | M5: 5 | N5: 6 | O5: 7 | P5: 8 | Q5: 9 | R5: 10 | S5: 11 | T5: 12 | U5: 13 | V5: 14 | W5: 15 | X5: 16 | Y5: 17 | Z5: 18 | AA5: 19 | AB5: 20 | AC5: 21 | AD5: 22 | AE5: 23 | AF5: 24 | AG5: 25 | AH5: 26 | AI5: 27 | AJ5: 28 | AK5: 29 | AL5: 30
A6: Discount Factor | B6: % | C6: 0.07 | D6: =1/(1+Inputs!$D$5)^(D4-$D$4) -> 1 | E6: =1/(1+Inputs!$D$5)^(E4-$D$4) -> 0.9345794393 | F6: =1/(1+Inputs!$D$5)^(F4-$D$4) -> 0.8734387283 | G6: =1/(1+Inputs!$D$5)^(G4-$D$4) -> 0.8162978769 | H6: =1/(1+Inputs!$D$5)^(H4-$D$4) -> 0.762895212 | I6: =1/(1+Inputs!$D$5)^(I4-$D$4) -> 0.7129861795 | J6: =1/(1+Inputs!$D$5)^(J4-$D$4) -> 0.6663422238 | K6: =1/(1+Inputs!$D$5)^(K4-$D$4) -> 0.6227497419 | L6: =1/(1+Inputs!$D$5)^(L4-$D$4) -> 0.5820091046 | M6: =1/(1+Inputs!$D$5)^(M4-$D$4) -> 0.5439337426 | N6: =1/(1+Inputs!$D$5)^(N4-$D$4) -> 0.5083492921 | O6: =1/(1+Inputs!$D$5)^(O4-$D$4) -> 0.4750927964 | P6: =1/(1+Inputs!$D$5)^(P4-$D$4) -> 0.4440119592 | Q6: =1/(1+Inputs!$D$5)^(Q4-$D$4) -> 0.4149644479 | R6: =1/(1+Inputs!$D$5)^(R4-$D$4) -> 0.387817241 | S6: =1/(1+Inputs!$D$5)^(S4-$D$4) -> 0.3624460196 | T6: =1/(1+Inputs!$D$5)^(T4-$D$4) -> 0.3387345978 | U6: =1/(1+Inputs!$D$5)^(U4-$D$4) -> 0.3165743905 | V6: =1/(1+Inputs!$D$5)^(V4-$D$4) -> 0.2958639163 | W6: =1/(1+Inputs!$D$5)^(W4-$D$4) -> 0.276508333 | X6: =1/(1+Inputs!$D$5)^(X4-$D$4) -> 0.2584190028 | Y6: =1/(1+Inputs!$D$5)^(Y4-$D$4) -> 0.2415130867 | Z6: =1/(1+Inputs!$D$5)^(Z4-$D$4) -> 0.2257131652 | AA6: =1/(1+Inputs!$D$5)^(AA4-$D$4) -> 0.2109468833 | AB6: =1/(1+Inputs!$D$5)^(AB4-$D$4) -> 0.1971466199 | AC6: =1/(1+Inputs!$D$5)^(AC4-$D$4) -> 0.1842491775 | AD6: =1/(1+Inputs!$D$5)^(AD4-$D$4) -> 0.172195493 | AE6: =1/(1+Inputs!$D$5)^(AE4-$D$4) -> 0.1609303673 | AF6: =1/(1+Inputs!$D$5)^(AF4-$D$4) -> 0.1504022124 | AG6: =1/(1+Inputs!$D$5)^(AG4-$D$4) -> 0.1405628154 | AH6: =1/(1+Inputs!$D$5)^(AH4-$D$4) -> 0.1313671172 | AI6: =1/(1+Inputs!$D$5)^(AI4-$D$4) -> 0.1227730067 | AJ6: =1/(1+Inputs!$D$5)^(AJ4-$D$4) -> 0.1147411277 | AK6: =1/(1+Inputs!$D$5)^(AK4-$D$4) -> 0.1072346988 | AL6: =1/(1+Inputs!$D$5)^(AL4-$D$4) -> 0.1002193447
A7: Discount Factor | B7: % | C7: 0.03 | D7: =1/(1+Inputs!$D$6)^(D4-$D$4) -> 1 | E7: =1/(1+Inputs!$D$6)^(E4-$D$4) -> 0.9708737864 | F7: =1/(1+Inputs!$D$6)^(F4-$D$4) -> 0.9425959091 | G7: =1/(1+Inputs!$D$6)^(G4-$D$4) -> 0.9151416594 | H7: =1/(1+Inputs!$D$6)^(H4-$D$4) -> 0.8884870479 | I7: =1/(1+Inputs!$D$6)^(I4-$D$4) -> 0.8626087844 | J7: =1/(1+Inputs!$D$6)^(J4-$D$4) -> 0.8374842567 | K7: =1/(1+Inputs!$D$6)^(K4-$D$4) -> 0.8130915113 | L7: =1/(1+Inputs!$D$6)^(L4-$D$4) -> 0.7894092343 | M7: =1/(1+Inputs!$D$6)^(M4-$D$4) -> 0.7664167323 | N7: =1/(1+Inputs!$D$6)^(N4-$D$4) -> 0.7440939149 | O7: =1/(1+Inputs!$D$6)^(O4-$D$4) -> 0.7224212766 | P7: =1/(1+Inputs!$D$6)^(P4-$D$4) -> 0.7013798802 | Q7: =1/(1+Inputs!$D$6)^(Q4-$D$4) -> 0.68095134 | R7: =1/(1+Inputs!$D$6)^(R4-$D$4) -> 0.6611178058 | S7: =1/(1+Inputs!$D$6)^(S4-$D$4) -> 0.6418619474 | T7: =1/(1+Inputs!$D$6)^(T4-$D$4) -> 0.6231669392 | U7: =1/(1+Inputs!$D$6)^(U4-$D$4) -> 0.6050164458 | V7: =1/(1+Inputs!$D$6)^(V4-$D$4) -> 0.5873946076 | W7: =1/(1+Inputs!$D$6)^(W4-$D$4) -> 0.5702860268 | X7: =1/(1+Inputs!$D$6)^(X4-$D$4) -> 0.5536757542 | Y7: =1/(1+Inputs!$D$6)^(Y4-$D$4) -> 0.5375492759 | Z7: =1/(1+Inputs!$D$6)^(Z4-$D$4) -> 0.5218925009 | AA7: =1/(1+Inputs!$D$6)^(AA4-$D$4) -> 0.5066917484 | AB7: =1/(1+Inputs!$D$6)^(AB4-$D$4) -> 0.4919337363 | AC7: =1/(1+Inputs!$D$6)^(AC4-$D$4) -> 0.4776055693 | AD7: =1/(1+Inputs!$D$6)^(AD4-$D$4) -> 0.4636947274 | AE7: =1/(1+Inputs!$D$6)^(AE4-$D$4) -> 0.4501890558 | AF7: =1/(1+Inputs!$D$6)^(AF4-$D$4) -> 0.4370767532 | AG7: =1/(1+Inputs!$D$6)^(AG4-$D$4) -> 0.4243463623 | AH7: =1/(1+Inputs!$D$6)^(AH4-$D$4) -> 0.4119867595 | AI7: =1/(1+Inputs!$D$6)^(AI4-$D$4) -> 0.3999871452 | AJ7: =1/(1+Inputs!$D$6)^(AJ4-$D$4) -> 0.3883370341 | AK7: =1/(1+Inputs!$D$6)^(AK4-$D$4) -> 0.3770262467 | AL7: =1/(1+Inputs!$D$6)^(AL4-$D$4) -> 0.3660448997
A9: Share of Traffic - Auto | B9: % | D9: =1-ShareTruck -> 0.79 | E9: 0.79 | F9: 0.79 | G9: 0.79 | H9: 0.79 | I9: 0.79 | J9: 0.79 | K9: 0.79 | L9: 0.79 | M9: 0.79 | N9: 0.79 | O9: 0.79 | P9: 0.79 | Q9: 0.79 | R9: 0.79 | S9: 0.79 | T9: 0.79 | U9: 0.79 | V9: 0.79 | W9: 0.79 | X9: =Inputs!#REF! ->  | Y9: =Inputs!#REF! ->  | Z9: =Inputs!#REF! ->  | AA9: =Inputs!#REF! ->  | AB9: =Inputs!#REF! ->  | AC9: =Inputs!#REF! ->  | AD9: =Inputs!#REF! ->  | AE9: =Inputs!#REF! ->  | AF9: =Inputs!#REF! ->  | AG9: =Inputs!#REF! ->  | AH9: =Inputs!#REF! ->  | AI9: =Inputs!#REF! ->  | AJ9: =Inputs!#REF! ->  | AK9: =Inputs!#REF! ->  | AL9: =Inputs!#REF! -> 
A10: Share of Traffic - Trucks | B10: % | D10: =Inputs!$D$21 -> 0.21 | E10: =Inputs!$D$21 -> 0.21 | F10: =Inputs!$D$21 -> 0.21 | G10: =Inputs!$D$21 -> 0.21 | H10: =Inputs!$D$21 -> 0.21 | I10: =Inputs!$D$21 -> 0.21 | J10: =Inputs!$D$21 -> 0.21 | K10: =Inputs!$D$21 -> 0.21 | L10: =Inputs!$D$21 -> 0.21 | M10: =Inputs!$D$21 -> 0.21 | N10: =Inputs!$D$21 -> 0.21 | O10: =Inputs!$D$21 -> 0.21 | P10: =Inputs!$D$21 -> 0.21 | Q10: =Inputs!$D$21 -> 0.21 | R10: =Inputs!$D$21 -> 0.21 | S10: =Inputs!$D$21 -> 0.21 | T10: =Inputs!$D$21 -> 0.21 | U10: =Inputs!$D$21 -> 0.21 | V10: =Inputs!$D$21 -> 0.21 | W10: =Inputs!$D$21 -> 0.21 | X10: =Inputs!$D$21 -> 0.21 | Y10: =Inputs!$D$21 -> 0.21 | Z10: =Inputs!$D$21 -> 0.21 | AA10: =Inputs!$D$21 -> 0.21 | AB10: =Inputs!$D$21 -> 0.21 | AC10: =Inputs!$D$21 -> 0.21 | AD10: =Inputs!$D$21 -> 0.21 | AE10: =Inputs!$D$21 -> 0.21 | AF10: =Inputs!$D$21 -> 0.21 | AG10: =Inputs!$D$21 -> 0.21 | AH10: =Inputs!$D$21 -> 0.21 | AI10: =Inputs!$D$21 -> 0.21 | AJ10: =Inputs!$D$21 -> 0.21 | AK10: =Inputs!$D$21 -> 0.21 | AL10: =Inputs!$D$21 -> 0.21
A12: No Build Case Alternative | B12: Unit | C12: Value | D12: =BaseYear -> 2019 | E12: =D12+1 -> 2020 | F12: 2021 | G12: 2022 | H12: 2023 | I12: 2024 | J12: 2025 | K12: 2026 | L12: 2027 | M12: 2028 | N12: 2029 | O12: 2030 | P12: 2031 | Q12: 2032 | R12: 2033 | S12: 2034 | T12: 2035 | U12: 2036 | V12: 2037 | W12: 2038 | X12: 2039 | Y12: 2040 | Z12: 2041 | AA12: 2042 | AB12: 2043 | AC12: =AB12+1 -> 2044 | AD12: =AC12+1 -> 2045 | AE12: =AD12+1 -> 2046 | AF12: =AE12+1 -> 2047 | AG12: =AF12+1 -> 2048 | AH12: =AG12+1 -> 2049 | AI12: =AH12+1 -> 2050 | AJ12: =AI12+1 -> 2051 | AK12: =AJ12+1 -> 2052 | AL12: =AK12+1 -> 2053
A14: Auto Daily VMT | B14: =Traffic!B11 -> Daily VMT | D14: =Traffic!D16 -> 7250.730709 | E14: =Traffic!E16 -> 7394.246949 | F14: =Traffic!F11 -> 17343.38887 | G14: =Traffic!G11 -> 17686.67261 | H14: =Traffic!H11 -> 18036.75109 | I14: =Traffic!I11 -> 18393.75879 | J14: =Traffic!J11 -> 18757.83287 | K14: =Traffic!K11 -> 19129.11319 | L14: =Traffic!L11 -> 19507.7424 | M14: =Traffic!M11 -> 19893.86595 | N14: =Traffic!N11 -> 20287.63217 | O14: =Traffic!O11 -> 20689.19234 | P14: =Traffic!P11 -> 21098.70074 | Q14: =Traffic!Q11 -> 21516.31468 | R14: =Traffic!R11 -> 21942.1946 | S14: =Traffic!S11 -> 22376.5041 | T14: =Traffic!T11 -> 22819.41005 | U14: =Traffic!U11 -> 23271.08259 | V14: =Traffic!V11 -> 23731.69524 | W14: =Traffic!W11 -> 24201.42495 | X14: =Traffic!X11 -> 24680.45219 | Y14: =Traffic!Y11 -> 25168.96099 | Z14: =Traffic!Z11 -> 25667.13901 | AA14: =Traffic!AA11 -> 26175.17764 | AB14: =Traffic!AB11 -> 26693.27205 | AC14: =Traffic!AC11 -> 27221.62129 | AD14: =Traffic!AD11 -> 27760.42833 | AE14: =Traffic!AE11 -> 28309.90016 | AF14: =Traffic!AF11 -> 28870.24789 | AG14: =Traffic!AG11 -> 29441.68677 | AH14: =Traffic!AH11 -> 30024.43634 | AI14: =Traffic!AI11 -> 30618.72047 | AJ14: =Traffic!AJ11 -> 31224.76748 | AK14: =Traffic!AK11 -> 31842.81019 | AL14: =Traffic!AL11 -> 32473.08603
A15: Truck Daily VMT | B15: =Traffic!B12 -> Daily VMT | D15: =Traffic!D17 -> 1927.409429 | E15: =Traffic!E17 -> 1965.559316 | F15: =Traffic!F12 -> 4610.267927 | G15: =Traffic!G12 -> 4701.520568 | H15: =Traffic!H12 -> 4794.579403 | I15: =Traffic!I12 -> 4889.480185 | J15: =Traffic!J12 -> 4986.25937 | K15: =Traffic!K12 -> 5084.95414 | L15: =Traffic!L12 -> 5185.60241 | M15: =Traffic!M12 -> 5288.242846 | N15: =Traffic!N12 -> 5392.91488 | O15: =Traffic!O12 -> 5499.658725 | P15: =Traffic!P12 -> 5608.515387 | Q15: =Traffic!Q12 -> 5719.526687 | R15: =Traffic!R12 -> 5832.735273 | S15: =Traffic!S12 -> 5948.184635 | T15: =Traffic!T12 -> 6065.919127 | U15: =Traffic!U12 -> 6185.983979 | V15: =Traffic!V12 -> 6308.425316 | W15: =Traffic!W12 -> 6433.290177 | X15: =Traffic!X12 -> 6560.626533 | Y15: =Traffic!Y12 -> 6690.483301 | Z15: =Traffic!Z12 -> 6822.910369 | AA15: =Traffic!AA12 -> 6957.958612 | AB15: =Traffic!AB12 -> 7095.679912 | AC15: =Traffic!AC12 -> 7236.127178 | AD15: =Traffic!AD12 -> 7379.354366 | AE15: =Traffic!AE12 -> 7525.4165 | AF15: =Traffic!AF12 -> 7674.369692 | AG15: =Traffic!AG12 -> 7826.271166 | AH15: =Traffic!AH12 -> 7981.17928 | AI15: =Traffic!AI12 -> 8139.153543 | AJ15: =Traffic!AJ12 -> 8300.254647 | AK15: =Traffic!AK12 -> 8464.54448 | AL15: =Traffic!AL12 -> 8632.08616
A17: Environmental Cost for Auto | B17: $/year | D17: =(D14*Annualization_Factor*EmissionCost_Auto1) -> 6724.849505 | E17: =(E14*Annualization_Factor*EmissionCost_Auto1) -> 6857.956796 | F17: 16085.50707 | G17: 16403.89312 | H17: 16728.58109 | I17: 17059.69573 | J17: 17397.36423 | K17: 17741.71633 | L17: 18092.8843 | M17: 18451.00307 | N17: 18816.21021 | O17: 19188.64601 | P17: 19568.45357 | Q17: 19955.7788 | R17: 20350.77048 | S17: 20753.58038 | T17: 21164.36323 | U17: =(U14*Annualization_Factor*EmissionCost_Auto2) -> 7077.439641 | V17: 7217.525871 | W17: 7360.384877 | X17: 7506.071541 | Y17: 7654.641831 | Z17: 7806.152825 | AA17: 7960.662729 | AB17: =(AB14*Annualization_Factor*EmissionCost_Auto2) -> 8118.230902 | AC17: 8278.917876 | AD17: 8442.785383 | AE17: 8609.896378 | AF17: 8780.315058 | AG17: 8954.106895 | AH17: 9131.338654 | AI17: 9312.078423 | AJ17: 9496.395637 | AK17: 9684.361107 | AL17: 9876.047042
A18: Environmental Cost for Trucks | B18: $/year | D18: =(D15*Annualization_Factor*EmissionCost_Truck1) -> 14797.06936 | E18: 15089.95291 | F18: 35393.85729 | G18: 36094.42025 | H18: 36808.84969 | I18: 37537.42009 | J18: 38280.41133 | K18: 39038.10885 | L18: 39810.80375 | M18: 40598.79287 | N18: 41402.37892 | O18: 42221.87064 | P18: 43057.58285 | Q18: 43909.83659 | R18: 44778.9593 | S18: 45665.28485 | T18: 46569.15375 | U18: =(U15*Annualization_Factor*EmissionCost_Truck2) -> 5796.298852 | V18: 5911.027016 | W18: 6028.026034 | X18: 6147.340855 | Y18: 6269.017315 | Z18: 6393.10216 | AA18: 6519.64306 | AB18: =(AB15*Annualization_Factor*EmissionCost_Truck2) -> 6648.688628 | AC18: 6780.28844 | AD18: 6914.493052 | AE18: 7051.354023 | AF18: 7190.923932 | AG18: 7333.256396 | AH18: 7478.406096 | AI18: 7626.428795 | AJ18: 7777.381358 | AK18: 7931.321779 | AL18: 8088.309196
A20: Total Emission Cost | D20: =SUM(D17:D18) -> 21521.91886 | E20: 21947.9097 | F20: 51479.36436 | G20: 52498.31337 | H20: 53537.43078 | I20: 54597.11581 | J20: 55677.77556 | K20: 56779.82518 | L20: 57903.68805 | M20: 59049.79593 | N20: 60218.58913 | O20: 61410.51666 | P20: 62626.03642 | Q20: 63865.61539 | R20: 65129.72978 | S20: 66418.86522 | T20: 67733.51698 | U20: 12873.73849 | V20: 13128.55289 | W20: 13388.41091 | X20: 13653.4124 | Y20: 13923.65915 | Z20: 14199.25499 | AA20: 14480.30579 | AB20: =SUM(AB17:AB18) -> 14766.91953 | AC20: =SUM(AC17:AC18) -> 15059.20632 | AD20: 15357.27844 | AE20: 15661.2504 | AF20: 15971.23899 | AG20: 16287.36329 | AH20: 16609.74475 | AI20: 16938.50722 | AJ20: 17273.777 | AK20: 17615.68289 | AL20: 17964.35624
A22: Build (Alternative Case) | B22: Unit | C22: Value | D22: =BaseYear -> 2019 | E22: =D22+1 -> 2020 | F22: 2021 | G22: 2022 | H22: 2023 | I22: 2024 | J22: 2025 | K22: 2026 | L22: 2027 | M22: 2028 | N22: 2029 | O22: 2030 | P22: 2031 | Q22: 2032 | R22: 2033 | S22: 2034 | T22: 2035 | U22: 2036 | V22: 2037 | W22: 2038 | X22: 2039 | Y22: 2040 | Z22: 2041 | AA22: 2042 | AB22: 2043 | AC22: =AB22+1 -> 2044 | AD22: =AC22+1 -> 2045 | AE22: =AD22+1 -> 2046 | AF22: =AE22+1 -> 2047 | AG22: =AF22+1 -> 2048 | AH22: =AG22+1 -> 2049 | AI22: =AH22+1 -> 2050 | AJ22: =AI22+1 -> 2051 | AK22: =AJ22+1 -> 2052 | AL22: =AK22+1 -> 2053
A24: Auto Daily VMT | B24: =Traffic!B16 -> Daily VMT | D24: =Traffic!D16 -> 7250.730709 | E24: =Traffic!E16 -> 7394.246949 | F24: =(Traffic!F11) -> 17343.38887 | G24: =(Traffic!G11) -> 17686.67261 | H24: =(Traffic!H11) -> 18036.75109 | I24: =Traffic!I16 -> 7997.28643 | J24: =Traffic!J16 -> 8155.579508 | K24: =Traffic!K16 -> 8317.005737 | L24: =Traffic!L16 -> 8481.62713 | M24: =Traffic!M16 -> 8649.506933 | N24: =Traffic!N16 -> 8820.709639 | O24: =Traffic!O16 -> 8995.30102 | P24: =Traffic!P16 -> 9173.348148 | Q24: =Traffic!Q16 -> 9354.919426 | R24: =Traffic!R16 -> 9540.084607 | S24: =Traffic!S16 -> 9728.914827 | T24: =Traffic!T16 -> 9921.48263 | U24: =Traffic!U16 -> 10117.86199 | V24: =Traffic!V16 -> 10318.12836 | W24: =Traffic!W16 -> 10522.35868 | X24: =Traffic!X16 -> 10730.63139 | Y24: =Traffic!Y16 -> 10943.02652 | Z24: =Traffic!Z16 -> 11159.62565 | AA24: =Traffic!AA16 -> 11380.51202 | AB24: =Traffic!AB16 -> 11605.77046 | AC24: =Traffic!AC16 -> 11835.48752 | AD24: =Traffic!AD16 -> 12069.75145 | AE24: =Traffic!AE16 -> 12308.65225 | AF24: =Traffic!AF16 -> 12552.28169 | AG24: =Traffic!AG16 -> 12800.73338 | AH24: =Traffic!AH16 -> 13054.10276 | AI24: =Traffic!AI16 -> 13312.48716 | AJ24: =Traffic!AJ16 -> 13575.98586 | AK24: =Traffic!AK16 -> 13844.70008 | AL24: =Traffic!AL16 -> 14118.73306
A25: Truck Daily VMT | B25: =Traffic!B17 -> Daily VMT | D25: =Traffic!D17 -> 1927.409429 | E25: =Traffic!E17 -> 1965.559316 | F25: =(Traffic!F12) -> 4610.267927 | G25: =(Traffic!G12) -> 4701.520568 | H25: =(Traffic!H12) -> 4794.579403 | I25: =Traffic!I17 -> 2125.86095 | J25: =Traffic!J17 -> 2167.938857 | K25: =Traffic!K17 -> 2210.849626 | L25: =Traffic!L17 -> 2254.609744 | M25: =Traffic!M17 -> 2299.23602 | N25: =Traffic!N17 -> 2344.7456 | O25: =Traffic!O17 -> 2391.155967 | P25: =Traffic!P17 -> 2438.484951 | Q25: =Traffic!Q17 -> 2486.750733 | R25: =Traffic!R17 -> 2535.971858 | S25: =Traffic!S17 -> 2586.167233 | T25: =Traffic!T17 -> 2637.356142 | U25: =Traffic!U17 -> 2689.558252 | V25: =Traffic!V17 -> 2742.793616 | W25: =Traffic!W17 -> 2797.082686 | X25: =Traffic!X17 -> 2852.446319 | Y25: =Traffic!Y17 -> 2908.905783 | Z25: =Traffic!Z17 -> 2966.482769 | AA25: =Traffic!AA17 -> 3025.199397 | AB25: =Traffic!AB17 -> 3085.078223 | AC25: =Traffic!AC17 -> 3146.142252 | AD25: =Traffic!AD17 -> 3208.414942 | AE25: =Traffic!AE17 -> 3271.920217 | AF25: =Traffic!AF17 -> 3336.682475 | AG25: =Traffic!AG17 -> 3402.726594 | AH25: =Traffic!AH17 -> 3470.077948 | AI25: =Traffic!AI17 -> 3538.76241 | AJ25: =Traffic!AJ17 -> 3608.806368 | AK25: =Traffic!AK17 -> 3680.236731 | AL25: =Traffic!AL17 -> 3753.080939
A27: Environmental Cost for Auto | B27: $/year | D27: =(D24*Annualization_Factor*EmissionCost_Auto1) -> 6724.849505 | E27: =(E24*Annualization_Factor*EmissionCost_Auto1) -> 6857.956796 | F27: =(F24*Annualization_Factor*EmissionCost_Auto1) -> 16085.50707 | G27: =G24*Annualization_Factor*EmissionCost_Auto1 -> 16403.89312 | H27: 16728.58109 | I27: 7417.259012 | J27: 7564.071405 | K27: 7713.789708 | L27: 7866.471436 | M27: 8022.175248 | N27: 8180.960959 | O27: 8342.889571 | P27: 8508.023292 | Q27: 8676.425563 | R27: 8848.161079 | S27: 9023.295816 | T27: 9201.897055 | U27: =U24*Annualization_Factor*EmissionCost_Auto2 -> 3077.14767 | V27: 3138.054727 | W27: 3200.167338 | X27: 3263.509365 | Y27: 3328.105144 | Z27: 3393.979489 | AA27: 3461.157708 | AB27: =AB24*Annualization_Factor*EmissionCost_Auto2 -> 3529.665609 | AC27: 3599.529511 | AD27: 3670.776254 | AE27: 3743.433208 | AF27: 3817.528286 | AG27: 3893.089954 | AH27: 3970.147241 | AI27: 4048.729749 | AJ27: 4128.867668 | AK27: 4210.591785 | AL27: 4293.933496
A28: Environmental Cost for Trucks | B28: $/year | D28: =(D25*Annualization_Factor*EmissionCost_Truck1) -> 14797.06936 | E28: =(E25*Annualization_Factor*EmissionCost_Truck1) -> 15089.95291 | F28: =(F25*Annualization_Factor*EmissionCost_Truck1) -> 35393.85729 | G28: =G25*Annualization_Factor*EmissionCost_Truck1 -> 36094.42025 | H28: 36808.84969 | I28: 16320.61743 | J28: 16643.6571 | K28: 16973.09081 | L28: 17309.04511 | M28: 17651.64907 | N28: 18001.03432 | O28: 18357.33506 | P28: 18720.68819 | Q28: 19091.2333 | R28: 19469.11274 | S28: 19854.47167 | T28: 20247.45815 | U28: =U25*Annualization_Factor*EmissionCost_Truck2 -> 2520.129936 | V28: 2570.011746 | W28: 2620.880884 | X28: 2672.756893 | Y28: 2725.659702 | Z28: 2779.609635 | AA28: 2834.627417 | AB28: =AB25*Annualization_Factor*EmissionCost_Truck2 -> 2890.734186 | AC28: 2947.951495 | AD28: 3006.301327 | AE28: 3065.806097 | AF28: 3126.488666 | AG28: 3188.372346 | AH28: 3251.480911 | AI28: 3315.838606 | AJ28: 3381.470156 | AK28: 3448.400773 | AL28: 3516.656172
A30: Total Emission Cost | D30: =SUM(D27:D28) -> 21521.91886 | E30: 21947.9097 | F30: 51479.36436 | G30: 52498.31337 | H30: 53537.43078 | I30: 23737.87644 | J30: 24207.7285 | K30: 24686.88051 | L30: 25175.51654 | M30: 25673.82432 | N30: 26181.99527 | O30: 26700.22463 | P30: 27228.71149 | Q30: 27767.65887 | R30: 28317.27382 | S30: 28877.76749 | T30: 29449.35521 | U30: 5597.277606 | V30: 5708.066473 | W30: 5821.048222 | X30: 5936.266259 | Y30: 6053.764846 | Z30: 6173.589124 | AA30: 6295.785126 | AB30: =SUM(AB27:AB28) -> 6420.399795 | AC30: =SUM(AC27:AC28) -> 6547.481007 | AD30: 6677.077581 | AE30: 6809.239305 | AF30: 6944.016952 | AG30: 7081.4623 | AH30: 7221.628152 | AI30: 7364.568356 | AJ30: 7510.337824 | AK30: 7658.992559 | AL30: 7810.589668
A32: No Build Less Build | B32: Unit | C32: Value | D32: =BaseYear -> 2019 | E32: =D32+1 -> 2020 | F32: 2021 | G32: 2022 | H32: 2023 | I32: 2024 | J32: 2025 | K32: 2026 | L32: 2027 | M32: 2028 | N32: 2029 | O32: 2030 | P32: 2031 | Q32: 2032 | R32: 2033 | S32: 2034 | T32: 2035 | U32: 2036 | V32: 2037 | W32: 2038 | X32: 2039 | Y32: 2040 | Z32: 2041 | AA32: 2042 | AB32: 2043 | AC32: =AB32+1 -> 2044 | AD32: =AC32+1 -> 2045 | AE32: =AD32+1 -> 2046 | AF32: =AE32+1 -> 2047 | AG32: =AF32+1 -> 2048 | AH32: =AG32+1 -> 2049 | AI32: =AH32+1 -> 2050 | AJ32: =AI32+1 -> 2051 | AK32: =AJ32+1 -> 2052 | AL32: =AK32+1 -> 2053
A33: Undiscounted Impacts | D33: =D20-D30 -> 0 | E33: 0 | F33: 0 | G33: 0 | H33: 0 | I33: 30859.23937 | J33: 31470.04705 | K33: 32092.94467 | L33: 32728.17151 | M33: 33375.97162 | N33: 34036.59386 | O33: 34710.29202 | P33: 35397.32493 | Q33: 36097.95652 | R33: 36812.45596 | S33: 37541.09774 | T33: 38284.16177 | U33: 7276.460888 | V33: 7420.486415 | W33: 7567.362689 | X33: 7717.146137 | Y33: 7869.8943 | Z33: 8025.665861 | AA33: 8184.520664 | AB33: =AB20-AB30 -> 8346.519734 | AC33: =AC20-AC30 -> 8511.725309 | AD33: 8680.200855 | AE33: 8852.011096 | AF33: 9027.222038 | AG33: 9205.90099 | AH33: 9388.116598 | AI33: 9573.938862 | AJ33: 9763.439172 | AK33: 9956.690327 | AL33: 10153.76657
A34: Discounted Impacts, at 7% | D34: =D33*D6 -> 0 | E34: 0 | F34: 0 | G34: 0 | H34: 0 | I34: 22002.21118 | J34: 20969.82114 | K34: 19985.87301 | L34: 19048.09379 | M34: 18154.31715 | N34: 17302.47839 | O34: 16490.6097 | P34: 15716.8356 | Q34: 14979.3686 | R34: 14276.50511 | S34: 13606.62145 | T34: 12968.17014 | U34: 2303.54117 | V34: 2195.454172 | W34: 2092.438842 | X34: 1994.257209 | Y34: 1900.682465 | Z34: 1811.498444 | AA34: 1726.499126 | AB34: =AB33*AB6 -> 1645.488154 | AC34: =AC33*AC6 -> 1568.278387 | AD34: 1494.691466 | AE34: 1424.557397 | AF34: 1357.714167 | AG34: 1294.007361 | AH34: 1233.289813 | AI34: 1175.42126 | AJ34: 1120.268021 | AK34: 1067.702688 | AL34: 1017.603832
A35: Discounted Impacts, at 3% | D35: =D33*D7 -> 0 | E35: 0 | F35: 0 | G35: 0 | H35: 0 | I35: 26619.45096 | J35: 26355.66897 | K35: 26094.50088 | L35: 25835.92081 | M35: 25579.9031 | N35: 25326.42237 | O35: 25075.45347 | P35: 24826.97152 | Q35: 24580.95187 | R35: 24337.37011 | S35: 24096.2021 | T35: 23857.42391 | U35: 4402.378505 | V35: 4358.753706 | W35: 4315.561201 | X35: 4272.796707 | Y35: 4230.455983 | Z35: 4188.534828 | AA35: 4147.029085 | AB35: =AB33*AB7 -> 4105.934638 | AC35: =AC33*AC7 -> 4065.247411 | AD35: 4024.96337 | AE35: 3985.078517 | AF35: 3945.588898 | AG35: 3906.490597 | AH35: 3867.779735 | AI35: 3829.452473 | AJ35: 3791.505011 | AK35: 3753.933584 | AL35: 3716.734466
A37: Key Quantified Impacts
A38: Total Environmental Cost Saving | D38: =D33 -> 0 | E38: 0 | F38: 0 | G38: 0 | H38: 0 | I38: 30859.23937 | J38: 31470.04705 | K38: 32092.94467 | L38: 32728.17151 | M38: 33375.97162 | N38: 34036.59386 | O38: 34710.29202 | P38: 35397.32493 | Q38: 36097.95652 | R38: 36812.45596 | S38: 37541.09774 | T38: 38284.16177 | U38: 7276.460888 | V38: 7420.486415 | W38: 7567.362689 | X38: 7717.146137 | Y38: 7869.8943 | Z38: 8025.665861 | AA38: =AA33 -> 8184.520664 | AB38: =AB33 -> 8346.519734 | AC38: =AC33 -> 8511.725309 | AD38: 8680.200855 | AE38: 8852.011096 | AF38: 9027.222038 | AG38: 9205.90099 | AH38: 9388.116598 | AI38: 9573.938862 | AJ38: 9763.439172 | AK38: 9956.690327 | AL38: 10153.76657

Sheet Project Data
A1: Project-Related Costs
D2: Base Year | E2: =BaseYear -> 2019
A3: Data Input | B3: Year | D3: =BaseYear -> 2019 | E3: =D3+1 -> 2020 | F3: =E3+1 -> 2021 | G3: 2022 | H3: 2023 | I3: 2024 | J3: 2025 | K3: 2026 | L3: 2027 | M3: 2028 | N3: 2029 | O3: 2030 | P3: 2031 | Q3: 2032 | R3: 2033 | S3: 2034 | T3: 2035 | U3: 2036 | V3: 2037 | W3: 2038 | X3: 2039 | Y3: 2040 | Z3: 2041 | AA3: 2042 | AB3: 2043 | AC3: =AB3+1 -> 2044 | AD3: =AC3+1 -> 2045 | AE3: =AD3+1 -> 2046 | AF3: =AE3+1 -> 2047 | AG3: =AF3+1 -> 2048 | AH3: =AG3+1 -> 2049 | AI3: =AH3+1 -> 2050 | AJ3: =AI3+1 -> 2051 | AK3: =AJ3+1 -> 2052 | AL3: =AK3+1 -> 2053
B4: Benefits Index | D4: 0 | E4: 0 | F4: 0 | G4: 0 | H4: 0 | I4: 1 | J4: 2 | K4: 3 | L4: 4 | M4: 5 | N4: 6 | O4: 7 | P4: 8 | Q4: 9 | R4: 10 | S4: 11 | T4: 12 | U4: 13 | V4: 14 | W4: 15 | X4: 16 | Y4: 17 | Z4: 18 | AA4: 19 | AB4: 20 | AC4: 21 | AD4: 22 | AE4: 23 | AF4: 24 | AG4: 25 | AH4: 26 | AI4: 27 | AJ4: 28 | AK4: 29 | AL4: 30
B5: Discount Factor | C5: 0.07 | D5: =1/(1+$C$5)^(D3-$E$2) -> 1 | E5: =1/(1+$C$5)^(E3-$E$2) -> 0.9345794393 | F5: 0.8734387283 | G5: 0.8162978769 | H5: =1/(1+$C$5)^(H3-$E$2) -> 0.762895212 | I5: 0.7129861795 | J5: 0.6663422238 | K5: 0.6227497419 | L5: 0.5820091046 | M5: 0.5439337426 | N5: 0.5083492921 | O5: 0.4750927964 | P5: 0.4440119592 | Q5: 0.4149644479 | R5: 0.387817241 | S5: 0.3624460196 | T5: 0.3387345978 | U5: 0.3165743905 | V5: 0.2958639163 | W5: 0.276508333 | X5: 0.2584190028 | Y5: 0.2415130867 | Z5: 0.2257131652 | AA5: 0.2109468833 | AB5: =1/(1+$C$5)^(AB3-$E$2) -> 0.1971466199 | AC5: =1/(1+$C$5)^(AC3-$E$2) -> 0.1842491775 | AD5: 0.172195493 | AE5: 0.1609303673 | AF5: 0.1504022124 | AG5: 0.1405628154 | AH5: 0.1313671172 | AI5: 0.1227730067 | AJ5: 0.1147411277 | AK5: 0.1072346988 | AL5: 0.1002193447
B6: Discount Factor | C6: 0.03 | D6: =1/(1+$C$6)^(D3-$E$2) -> 1 | E6: =1/(1+$C$6)^(E3-$E$2) -> 0.9708737864 | F6: 0.9425959091 | G6: 0.9151416594 | H6: 0.8884870479 | I6: 0.8626087844 | J6: 0.8374842567 | K6: 0.8130915113 | L6: 0.7894092343 | M6: 0.7664167323 | N6: 0.7440939149 | O6: 0.7224212766 | P6: 0.7013798802 | Q6: 0.68095134 | R6: 0.6611178058 | S6: 0.6418619474 | T6: 0.6231669392 | U6: 0.6050164458 | V6: 0.5873946076 | W6: 0.5702860268 | X6: 0.5536757542 | Y6: 0.5375492759 | Z6: 0.5218925009 | AA6: 0.5066917484 | AB6: =1/(1+$C$6)^(AB3-$E$2) -> 0.4919337363 | AC6: =1/(1+$C$6)^(AC3-$E$2) -> 0.4776055693 | AD6: 0.4636947274 | AE6: 0.4501890558 | AF6: 0.4370767532 | AG6: 0.4243463623 | AH6: 0.4119867595 | AI6: 0.3999871452 | AJ6: 0.3883370341 | AK6: 0.3770262467 | AL6: 0.3660448997
A8: Capital Expenditures (2018$/year)
A9: Pre-Construction Cost | D9: ='Project Costs'!C7/DeflatorRate -> 661851.6993 | F9: ='Project Costs'!C9/DeflatorRate -> 791289.151 | H9: 0 | I9: 0 | J9: 0 | K9: 0 | L9: 0 | M9: 0 | N9: 0 | O9: 0 | P9: 0 | Q9: 0 | R9: 0 | S9: 0 | T9: 0 | U9: 0 | V9: 0 | W9: 0 | X9: 0 | Y9: 0 | Z9: 0 | AA9: 0 | AB9: 0 | AC9: 0 | AD9: 0 | AE9: 0 | AF9: 0 | AG9: 0 | AH9: 0 | AI9: 0 | AJ9: 0 | AK9: 0 | AL9: 0
A10: Construction Cost | D10: 0 | E10: 0 | F10: 0 | G10: =('Project Costs'!D49*1/2)/DeflatorRate -> 16784166.38 | H10: =('Project Costs'!D49*1/2)/DeflatorRate -> 16784166.38 | J10: 0 | K10: 0 | L10: 0 | M10: 0 | N10: 0 | O10: 0 | P10: 0 | Q10: 0 | R10: 0 | S10: 0 | T10: 0 | U10: 0 | V10: 0 | W10: 0 | X10: 0 | Y10: 0 | Z10: 0 | AA10: 0 | AB10: 0 | AC10: 0 | AD10: 0 | AE10: 0 | AF10: 0 | AG10: 0 | AH10: 0 | AI10: 0 | AJ10: 0 | AK10: 0 | AL10: 0
A12: Total Estimated Cost | D12: =SUM(D9:D10) -> 661851.6993 | E12: =SUM(E9:E10) -> 0 | F12: =SUM(F9:F10) -> 791289.151 | G12: =SUM(G9:G10) -> 16784166.38 | H12: =SUM(H9:H10) -> 16784166.38 | I12: =SUM(I9:I10)/DeflatorRate -> 0 | J12: 0 | K12: 0 | L12: 0 | M12: 0 | N12: 0 | O12: 0 | P12: 0 | Q12: 0 | R12: 0 | S12: 0 | T12: 0 | U12: 0 | V12: 0 | W12: 0 | X12: 0 | Y12: 0 | Z12: 0 | AA12: 0 | AB12: 0
A14: Build O&M (2018$/year)
A15: Total O&M Costs | D15: =(SUMIF('Project Costs'!$B$54:$B$79,'Project Data'!D3,'Project Costs'!$C$54:$C$79))/DeflatorRate -> 0 | E15: =(SUMIF('Project Costs'!$B$54:$B$79,'Project Data'!E3,'Project Costs'!$C$54:$C$79))/DeflatorRate -> 0 | F15: =(SUMIF('Project Costs'!$B$54:$B$79,'Project Data'!F3,'Project Costs'!$C$54:$C$79))/DeflatorRate -> 0 | G15: =(SUMIF('Project Costs'!$B$54:$B$79,'Project Data'!G3,'Project Costs'!$C$54:$C$79))/DeflatorRate -> 0 | H15: =(SUMIF('Project Costs'!$B$54:$B$79,'Project Data'!H3,'Project Costs'!$C$54:$C$79))/DeflatorRate -> 0 | I15: =(SUMIF('Project Costs'!$B$54:$B$79,'Project Data'!I3,'Project Costs'!$C$54:$C$79))/DeflatorRate -> 0 | J15: =(SUMIF('Project Costs'!$B$54:$B$79,'Project Data'!J3,'Project Costs'!$C$54:$C$79))/DeflatorRate -> 4809.905825 | K15: =(SUMIF('Project Costs'!$B$54:$B$79,'Project Data'!K3,'Project Costs'!$C$54:$C$79))/DeflatorRate -> 0 | L15: =(SUMIF('Project Costs'!$B$54:$B$79,'Project Data'!L3,'Project Costs'!$C$54:$C$79))/DeflatorRate -> 4809.905825 | M15: =(SUMIF('Project Costs'!$B$54:$B$79,'Project Data'!M3,'Project Costs'!$C$54:$C$79))/DeflatorRate -> 0 | N15: =(SUMIF('Project Costs'!$B$54:$B$79,'Project Data'!N3,'Project Costs'!$C$54:$C$79))/DeflatorRate -> 4809.905825 | O15: =(SUMIF('Project Costs'!$B$54:$B$79,'Project Data'!O3,'Project Costs'!$C$54:$C$79))/DeflatorRate -> 0 | P15: =(SUMIF('Project Costs'!$B$54:$B$79,'Project Data'!P3,'Project Costs'!$C$54:$C$79))/DeflatorRate -> 4809.905825 | Q15: =(SUMIF('Project Costs'!$B$54:$B$79,'Project Data'!Q3,'Project Costs'!$C$54:$C$79))/DeflatorRate -> 0 | R15: =(SUMIF('Project Costs'!$B$54:$B$79,'Project Data'!R3,'Project Costs'!$C$54:$C$79))/DeflatorRate -> 1736376.003 | S15: =(SUMIF('Project Costs'!$B$54:$B$79,'Project Data'!S3,'Project Costs'!$C$54:$C$79))/DeflatorRate -> 0 | T15: =(SUMIF('Project Costs'!$B$54:$B$79,'Project Data'!T3,'Project Costs'!$C$54:$C$79))/DeflatorRate -> 4809.905825 | U15: =(SUMIF('Project Costs'!$B$54:$B$79,'Project Data'!U3,'Project Costs'!$C$54:$C$79))/DeflatorRate -> 0 | V15: =(SUMIF('Project Costs'!$B$54:$B$79,'Project Data'!V3,'Project Costs'!$C$54:$C$79))/DeflatorRate -> 4809.905825 | W15: =(SUMIF('Project Costs'!$B$54:$B$79,'Project Data'!W3,'Project Costs'!$C$54:$C$79))/DeflatorRate -> 1025471.922 | X15: =(SUMIF('Project Costs'!$B$54:$B$79,'Project Data'!X3,'Project Costs'!$C$54:$C$79))/DeflatorRate -> 4809.905825 | Y15: =(SUMIF('Project Costs'!$B$54:$B$79,'Project Data'!Y3,'Project Costs'!$C$54:$C$79))/DeflatorRate -> 0 | Z15: =(SUMIF('Project Costs'!$B$54:$B$79,'Project Data'!Z3,'Project Costs'!$C$54:$C$79))/DeflatorRate -> 4809.905825 | AA15: =(SUMIF('Project Costs'!$B$54:$B$79,'Project Data'!AA3,'Project Costs'!$C$54:$C$79))/DeflatorRate -> 0 | AB15: =(SUMIF('Project Costs'!$B$54:$B$88,'Project Data'!AB3,'Project Costs'!$C$54:$C$88))/DeflatorRate -> 1736376.003 | AC15: =(SUMIF('Project Costs'!$B$54:$B$88,'Project Data'!AC3,'Project Costs'!$C$54:$C$88))/DeflatorRate -> 0 | AD15: =(SUMIF('Project Costs'!$B$54:$B$88,'Project Data'!AD3,'Project Costs'!$C$54:$C$88))/DeflatorRate -> 4809.905825 | AE15: =(SUMIF('Project Costs'!$B$54:$B$88,'Project Data'!AE3,'Project Costs'!$C$54:$C$88))/DeflatorRate -> 0 | AF15: =(SUMIF('Project Costs'!$B$54:$B$88,'Project Data'!AF3,'Project Costs'!$C$54:$C$88))/DeflatorRate -> 4809.905825 | AG15: =(SUMIF('Project Costs'!$B$54:$B$88,'Project Data'!AG3,'Project Costs'!$C$54:$C$88))/DeflatorRate -> 0 | AH15: =(SUMIF('Project Costs'!$B$54:$B$88,'Project Data'!AH3,'Project Costs'!$C$54:$C$88))/DeflatorRate -> 4809.905825 | AI15: =(SUMIF('Project Costs'!$B$54:$B$88,'Project Data'!AI3,'Project Costs'!$C$54:$C$88))/DeflatorRate -> 0 | AJ15: =(SUMIF('Project Costs'!$B$54:$B$88,'Project Data'!AJ3,'Project Costs'!$C$54:$C$88))/DeflatorRate -> 4809.905825 | AK15: =(SUMIF('Project Costs'!$B$54:$B$88,'Project Data'!AK3,'Project Costs'!$C$54:$C$88))/DeflatorRate -> 0 | AL15: =(SUMIF('Project Costs'!$B$54:$B$88,'Project Data'!AL3,'Project Costs'!$C$54:$C$88))/DeflatorRate -> 8739598.884
A17: No Build O&M (2018$/year)
A18: Total O&M Costs | D18: =(SUMIF('Project Costs'!$B$92:$B$116,'Project Data'!D3,'Project Costs'!$C$92:$C$116))/DeflatorRate -> 0 | E18: =(SUMIF('Project Costs'!$B$92:$B$116,'Project Data'!E3,'Project Costs'!$C$92:$C$116))/DeflatorRate -> 44876.42135 | F18: =(SUMIF('Project Costs'!$B$92:$B$116,'Project Data'!F3,'Project Costs'!$C$92:$C$116))/DeflatorRate -> 89752.84269 | G18: =(SUMIF('Project Costs'!$B$92:$B$116,'Project Data'!G3,'Project Costs'!$C$92:$C$116))/DeflatorRate -> 89752.84269 | H18: =(SUMIF('Project Costs'!$B$92:$B$126,'Project Data'!H3,'Project Costs'!$C$92:$C$126))/DeflatorRate -> 89752.84269 | I18: =(SUMIF('Project Costs'!$B$92:$B$126,'Project Data'!I3,'Project Costs'!$C$92:$C$126))/DeflatorRate -> 89752.84269 | J18: =(SUMIF('Project Costs'!$B$92:$B$126,'Project Data'!J3,'Project Costs'!$C$92:$C$126))/DeflatorRate -> 89752.84269 | K18: =(SUMIF('Project Costs'!$B$92:$B$126,'Project Data'!K3,'Project Costs'!$C$92:$C$126))/DeflatorRate -> 89752.84269 | L18: =(SUMIF('Project Costs'!$B$92:$B$126,'Project Data'!L3,'Project Costs'!$C$92:$C$126))/DeflatorRate -> 89752.84269 | M18: =(SUMIF('Project Costs'!$B$92:$B$126,'Project Data'!M3,'Project Costs'!$C$92:$C$126))/DeflatorRate -> 89752.84269 | N18: =(SUMIF('Project Costs'!$B$92:$B$126,'Project Data'!N3,'Project Costs'!$C$92:$C$126))/DeflatorRate -> 89752.84269 | O18: =(SUMIF('Project Costs'!$B$92:$B$126,'Project Data'!O3,'Project Costs'!$C$92:$C$126))/DeflatorRate -> 89752.84269 | P18: =(SUMIF('Project Costs'!$B$92:$B$126,'Project Data'!P3,'Project Costs'!$C$92:$C$126))/DeflatorRate -> 89752.84269 | Q18: =(SUMIF('Project Costs'!$B$92:$B$126,'Project Data'!Q3,'Project Costs'!$C$92:$C$126))/DeflatorRate -> 89752.84269 | R18: =(SUMIF('Project Costs'!$B$92:$B$126,'Project Data'!R3,'Project Costs'!$C$92:$C$126))/DeflatorRate -> 89752.84269 | S18: =(SUMIF('Project Costs'!$B$92:$B$126,'Project Data'!S3,'Project Costs'!$C$92:$C$126))/DeflatorRate -> 89752.84269 | T18: =(SUMIF('Project Costs'!$B$92:$B$126,'Project Data'!T3,'Project Costs'!$C$92:$C$126))/DeflatorRate -> 89752.84269 | U18: =(SUMIF('Project Costs'!$B$92:$B$126,'Project Data'!U3,'Project Costs'!$C$92:$C$126))/DeflatorRate -> 89752.84269 | V18: =(SUMIF('Project Costs'!$B$92:$B$126,'Project Data'!V3,'Project Costs'!$C$92:$C$126))/DeflatorRate -> 89752.84269 | W18: =(SUMIF('Project Costs'!$B$92:$B$126,'Project Data'!W3,'Project Costs'!$C$92:$C$126))/DeflatorRate -> 89752.84269 | X18: =(SUMIF('Project Costs'!$B$92:$B$126,'Project Data'!X3,'Project Costs'!$C$92:$C$126))/DeflatorRate -> 89752.84269 | Y18: =(SUMIF('Project Costs'!$B$92:$B$126,'Project Data'!Y3,'Project Costs'!$C$92:$C$126))/DeflatorRate -> 89752.84269 | Z18: =(SUMIF('Project Costs'!$B$92:$B$126,'Project Data'!Z3,'Project Costs'!$C$92:$C$126))/DeflatorRate -> 89752.84269 | AA18: =(SUMIF('Project Costs'!$B$92:$B$126,'Project Data'!AA3,'Project Costs'!$C$92:$C$126))/DeflatorRate -> 89752.84269 | AB18: =(SUMIF('Project Costs'!$B$92:$B$126,'Project Data'!AB3,'Project Costs'!$C$92:$C$126))/DeflatorRate -> 89752.84269 | AC18: =(SUMIF('Project Costs'!$B$92:$B$126,'Project Data'!AC3,'Project Costs'!$C$92:$C$126))/DeflatorRate -> 89752.84269 | AD18: =(SUMIF('Project Costs'!$B$92:$B$126,'Project Data'!AD3,'Project Costs'!$C$92:$C$126))/DeflatorRate -> 89752.84269 | AE18: =(SUMIF('Project Costs'!$B$92:$B$126,'Project Data'!AE3,'Project Costs'!$C$92:$C$126))/DeflatorRate -> 89752.84269 | AF18: =(SUMIF('Project Costs'!$B$92:$B$126,'Project Data'!AF3,'Project Costs'!$C$92:$C$126))/DeflatorRate -> 89752.84269 | AG18: =(SUMIF('Project Costs'!$B$92:$B$126,'Project Data'!AG3,'Project Costs'!$C$92:$C$126))/DeflatorRate -> 89752.84269 | AH18: =(SUMIF('Project Costs'!$B$92:$B$126,'Project Data'!AH3,'Project Costs'!$C$92:$C$126))/DeflatorRate -> 89752.84269 | AI18: =(SUMIF('Project Costs'!$B$92:$B$126,'Project Data'!AI3,'Project Costs'!$C$92:$C$126))/DeflatorRate -> 89752.84269 | AJ18: =(SUMIF('Project Costs'!$B$92:$B$126,'Project Data'!AJ3,'Project Costs'!$C$92:$C$126))/DeflatorRate -> 89752.84269 | AK18: =(SUMIF('Project Costs'!$B$92:$B$126,'Project Data'!AK3,'Project Costs'!$C$92:$C$126))/DeflatorRate -> 89752.84269 | AL18: =(SUMIF('Project Costs'!$B$92:$B$126,'Project Data'!AL3,'Project Costs'!$C$92:$C$126))/DeflatorRate -> 89752.84269

Sheet Project Costs
B2: Project Costs - Cost are in 2020 Dollars
A4: Pre-construction Capital Expedinture ($2020 Dollars)
A5: *Pre construction evenly distribute cost starting June 2019 to Dec 31,2021 (31 months)
B6: Year | C6: Total
B7: 2019 | C7: =P23 -> 688009 | D7: <<< previously incurred costs
B8: 2020 | C8: =SUM(D8:F8) -> 0
B9: 2021 | C9: =P24 -> 822562
B10: Total | C10: =SUM(C7:C9) -> 1510571
A11: Construction Capital Expedinture ($2020 Dollars)
B12: Superstructure Rehabilitation - Truss Spans (38 Spans) | C12: Per Span | D12: Total | E12: % Total
B13: Structural Steel | C13: 273000 | D13: 10374000 | E13: 0.297 | I13: SOURCES of FUNDS
B14: Precast Deck Panels | C14: 51000 | D14: 1938000 | E14: 0.056 | I14: NON-FEDERAL (ODOT) | K14: BUILD | M14: OTHER FEDERAL | O14: FUTURE ELIGIBLE COSTS | P14: TOTAL PROJECT COSTS
B15: Ultra High Performance Concrete | C15: 50000 | D15: 1900000 | E15: 0.054 | I15: Pre-Incurred | J15: Future | K15: Pre-Incurred | L15: Future | M15: Pre-Incurred | N15: Future
B16: Sealed Expansion Joint | C16: 3000 | D16: 114000 | E16: 0.003
B17: Sealer Crack Preparation and Resin | C17: 1000 | D17: 38000 | E17: 0.001
B18: Ornamental Railing | C18: 31000 | D18: 1178000 | E18: 0.034 | H18: Pre-Construction | I18: 137602 | J18: 164512 | K18: 0 | L18: 0 | M18: 550407 | N18: 658050 | O18: 0 | P18: 1510571
B19: 15% Contingency $18,000.00 | D19: 2356000 | E19: 0.068 | H19: * Construction | I19: 0 | J19: 12895000 | K19: 0 | L19: 22000000 | M19: 0 | N19: 0 | O19: 34895000 | P19: 34895000
B20: 471000 | D20: 17898000 | E20: 0.513
B21: Superstructure Rehabilitation - Approach Spans (2 Spans) | C21: Per Span | D21: Total | E21: % Total | H21: TOTAL ELIGIBLE COSTS | I21: 0 | J21: 12895000 | K21: 0 | L21: 22000000 | M21: 0 | N21: 0 | O21: 34895000 | P21: 36405571 | Q21: =O21+P24 -> 35717562
B22: Structural Steel | C22: 44000 | D22: 88000 | E22: 0.003 | H22: % OF FUTURE ELIGIBLE COSTS | J22: 0.37 | L22: 0.63 | O22: 1 | Q22: =Q21+P23 -> 36405571
B23: Class AA Concrete | C23: 19000 | D23: 38000 | E23: 0.001 | H23: Previously incurred | I23: =I18 -> 137602 | K23: =K18 -> 0 | M23: =M18 -> 550407 | P23: =I23+M23 -> 688009
B24: Epoxy Coated Reinforcing Steel | C24: 5000 | D24: 10000 | E24: 0 | H24: Future Pre-construction | J24: =J18 -> 164512 | N24: =N18 -> 658050 | P24: =J24+N24 -> 822562
B25: Sealed Expansion Joint | C25: 8000 | D25: 16000 | E25: 0
B26: Approach Slab | C26: 19000 | D26: 38000 | E26: 0.001
B27: Ornamental Railing | C27: 21000 | D27: 42000 | E27: 0.001
B28: 15% Contingency $18,000.00 | D28: 36000 | E28: 0.001
C29: 134000 | D29: 268000 | E29: 0.008
B30: Truss Painting (38 Spans) | C30: Per Span | D30: Total | E30: % Total
B31: Painting Existing Structures | C31: 20000 | D31: 760000 | E31: 0.022
B32: Collection and Handling of Waste | C32: 5000 | D32: 190000 | E32: 0.005
B33: 15% Contingency $4,000.00 | D33: 152000 | E33: 0.007
B34: 29000 | D34: 1102000 | E34: 0.051
B35: Substructure Rehabilitation (2 Abutments, 39 Piers) | D35: Total | E35: % Total
B36: Class A Concrete | D36: 1815000 | E36: 0.052
B37: Epoxy Coated Reinforcing Steel | D37: 454000 | E37: 0.013
B38: Steel Piles | D38: 51000 | E38: 0.001
B39: Drilled Shafts | D39: 6240000 | E39: 0.179
B40: Bearing Assemblies | D40: 480000 | E40: 0.014
B41: Removal of Substructure | D41: 440000 | E41: 0.013
B42: 15% Contingency | D42: 1422000 | E42: 0.041
D43: 10902000 | E43: 0.312
D44: Total | E44: % Total
B45: Removal of Existing Superstructutre / Resetting Truss (~ $25/sf) | D45: 2570000 | E45: 0.074
B46: Roadway (asphalt taper to match existing grade) | D46: 250000 | E46: 0.007
B47: Traffic Control (road closure and detour) | D47: 500000 | E47: 0.014
B48: Mobilization | D48: 1405000 | E48: 0.04
C49: TOTAL = | D49: =SUM(D45:D48,D43,D34,D29,D20)*(1+G49) -> 34895000 | G49: 0 | H49: <<< for sensitivity Testing
B50: *Note: even monthly distribution of cost | D50: =SUM(D49,C10) -> 36405571 | E50: =D50/DeflatorRate -> 35021473.6
A52: Operations and Maintenance Expenditures Under Build ($2020 Dollars)
B53: Year | C53: Total | D53: Inspection | E53: Joint repair | F53: Paint (assuming no Weathering Steel) | G53: Deck Replacement
B54: =BaseYear -> 2019 | C54: =SUM(D54:G54) -> 0
B55: =B54+1 -> 2020 | C55: =SUM(D55:G55) -> 0
B56: 2021 | C56: =SUM(D56:G56) -> 0
B57: 2022 | C57: =SUM(D57:G57) -> 0
B58: 2023 | C58: =SUM(D58:G58) -> 0
A59: 1 | B59: 2024 | C59: 0
A60: 2 | B60: 2025 | C60: 5000 | D60: 5000
A61: 3 | B61: 2026 | C61: 0
A62: 4 | B62: 2027 | C62: 5000 | D62: 5000
A63: 5 | B63: =B62+1 -> 2028 | C63: 0
A64: 6 | B64: 2029 | C64: 5000 | D64: 5000
A65: 7 | B65: 2030 | C65: 0
A66: 8 | B66: 2031 | C66: 5000 | D66: 5000
A67: 9 | B67: 2032 | C67: 0
A68: 10 | B68: 2033 | C68: 1805000 | D68: 5000 | F68: 1800000
A69: 11 | B69: 2034 | C69: 0
A70: 12 | B70: 2035 | C70: 5000 | D70: 5000
A71: 13 | B71: 2036 | C71: 0
A72: 14 | B72: 2037 | C72: 5000 | D72: 5000
A73: 15 | B73: 2038 | C73: 1066000 | E73: 1066000
A74: 16 | B74: 2039 | C74: 5000 | D74: 5000
A75: 17 | B75: 2040 | C75: 0
A76: 18 | B76: 2041 | C76: 5000 | D76: 5000
A77: 19 | B77: 2042 | C77: 0
A78: 20 | B78: 2043 | C78: 1805000 | D78: 5000 | F78: 1800000
A79: 21 | B79: 2044 | C79: 0
A80: 22 | B80: 2045 | C80: 5000 | D80: 5000
A81: 23 | B81: 2046 | C81: 0
A82: 24 | B82: 2047 | C82: 5000 | D82: 5000
A83: 25 | B83: 2048 | C83: 0
A84: 26 | B84: 2049 | C84: 5000 | D84: 5000
A85: 27 | B85: 2050 | C85: 0
A86: 28 | B86: 2051 | C86: 5000 | D86: 5000
A87: 29 | B87: 2052 | C87: 0
A88: 30 | B88: 2053 | C88: 9085000 | D88: 5000 | F88: 1800000 | G88: 7280000
A90: Operations and Maintenance Expenditures Under No Build ($2020 Dollars)
B91: Year | C91: Total
B92: =BaseYear -> 2019 | C92: 0
B93: =B92+1 -> 2020 | C93: 46650
B94: 2021 | C94: 93300
B95: 2022 | C95: 93300
B96: 2023 | C96: 93300
B97: 2024 | C97: 93300
B98: 2025 | C98: 93300
B99: 2026 | C99: 93300
B100: =B99+1 -> 2027 | C100: 93300
B101: 2028 | C101: 93300
B102: 2029 | C102: 93300
B103: 2030 | C103: 93300
B104: 2031 | C104: 93300
B105: 2032 | C105: 93300
B106: 2033 | C106: 93300
B107: 2034 | C107: 93300
B108: 2035 | C108: 93300
B109: 2036 | C109: 93300
B110: 2037 | C110: 93300
B111: 2038 | C111: 93300
B112: 2039 | C112: 93300
B113: 2040 | C113: 93300
B114: 2041 | C114: 93300
B115: 2042 | C115: 93300
B116: 2043 | C116: 93300
B117: 2044 | C117: 93300
B118: 2045 | C118: 93300
B119: 2046 | C119: 93300
B120: 2047 | C120: 93300
B121: 2048 | C121: 93300
B122: 2049 | C122: 93300
B123: 2050 | C123: 93300
B124: 2051 | C124: 93300
B125: 2052 | C125: 93300
B126: 2053 | C126: 93300

Sheet Emissions Rates
A1: Form Cal-BC v6 | N1: Emissions Tables | Q1: Cost, $/tonne | S1: =Inputs!D57 -> 9480 | T1: =Inputs!D58 -> 426925 | U1: =Inputs!D59 -> 55226 | V1: =Inputs!D60 -> 2315 | AB1: Cost, $/tonne | AD1: =Inputs!D57 -> 9480 | AE1: =Inputs!D58 -> 426925 | AF1: =Inputs!D59 -> 55226 | AG1: =Inputs!D60 -> 2315
B2: Operating Cost Tables | H2: Fuel Cost Per Gallon (Exclude Taxes) | O2: Mode | P2: Speed | Q2: CO | R2: CO2 | S2: NOX | T2: PM10 | U2: SOX | V2: VOC | X2: Cost per Mile | Z2: Mode | AA2: Speed | AB2: CO | AC2: CO2 | AD2: NOX | AE2: PM10 | AF2: SOX | AG2: VOC | AI2: Cost per Mile
I3: Automobile | J3: 2.65 | K3: $/gal | O3: Auto | P3: 65 | Q3: =VLOOKUP(P3,$P$12:$V$78, 2) -> 1.2506 | R3: =VLOOKUP(P3,$P$12:$V$78, 3) -> 354.5442 | S3: =VLOOKUP(P3,$P$12:$V$78, 4) -> 0.149 | T3: =VLOOKUP(P3,$P$12:$V$78, 5) -> 0.0019 | U3: =VLOOKUP(P3,$P$12:$V$78, 6) -> 0.0036 | V3: =VLOOKUP(P3,$P$12:$V$78, 7) -> 0.0512 | X3: =(S3*S1+T3*T1+U3*U1+V3*V1)/1000000 -> 0.0025410191 | Z3: Auto | AA3: 65 | AB3: =VLOOKUP(AA3,$AA$12:$AG$78, 2) -> 0.3784 | AC3: =VLOOKUP(AA3,$AA$12:$AG$78, 3) -> 196.3756 | AD3: =VLOOKUP(AA3,$AA$12:$AG$78, 4) -> 0.0356 | AE3: =VLOOKUP(AA3,$AA$12:$AG$78, 5) -> 0.0008 | AF3: =VLOOKUP(AA3,$AA$12:$AG$78, 6) -> 0.002 | AG3: =VLOOKUP(AA3,$AA$12:$AG$78, 7) -> 0.0189 | AI3: =(AD3*AD1+AE3*AE1+AF3*AF1+AG3*AG1)/1000000 -> 0.0008332335
C4: FUEL CONSUMPTION RATES | I4: Truck | J4: 2.4 | K4: $/gal | O4: Truck | P4: 65 | Q4: =VLOOKUP(P4,$P$80:$V$146, 2) -> 1.5544 | R4: =VLOOKUP(P4,$P$80:$V$146, 3) -> 729.692 | S4: =VLOOKUP(P4,$P$80:$V$146, 4) -> 1.2992 | T4: =VLOOKUP(P4,$P$80:$V$146, 5) -> 0.0191 | U4: =VLOOKUP(P4,$P$80:$V$146, 6) -> 0.0072 | V4: =VLOOKUP(P4,$P$80:$V$146, 7) -> 0.0713 | X4: =(S4*S1+T4*T1+U4*U1+V4*V1)/1000000 -> 0.0210333702 | Z4: Truck | AA4: 65 | AB4: =VLOOKUP(AA4,$AA$80:$AG$146, 2) -> 0.3132 | AC4: =VLOOKUP(AA4,$AA$80:$AG$146, 3) -> 605.9991 | AD4: =VLOOKUP(AA4,$AA$80:$AG$146, 4) -> 0.1388 | AE4: =VLOOKUP(AA4,$AA$80:$AG$146, 5) -> 0.0021 | AF4: =VLOOKUP(AA4,$AA$80:$AG$146, 6) -> 0.0059 | AG4: =VLOOKUP(AA4,$AA$80:$AG$146, 7) -> 0.0125 | AI4: =(AD4*AD1+AE4*AE1+AF4*AF1+AG4*AG1)/1000000 -> 0.0025671374
C5: (gal/veh-mi)
C7: Speed | D7: Auto* | E7: Truck
C8: 5 | D8: 0.1024 | E8: 0.2112 | O8: HIGHWAY EMISSIONS FACTORS (g/mi) | Z8: HIGHWAY EMISSIONS FACTORS (g/mi)
C9: 6 | D9: 0.0971 | E9: 0.2056 | O9: Model Year 2016 | Z9: Model Year 2036
C10: 7 | D10: 0.0919 | E10: 0.2
C11: 8 | D11: 0.0867 | E11: 0.1944 | O11: Mode | P11: Speed | Q11: CO | R11: CO2 | S11: NOX | T11: PM10 | U11: SOX | V11: VOC | Z11: Mode | AA11: Speed | AB11: CO | AC11: CO2 | AD11: NOX | AE11: PM10 | AF11: SOX | AG11: VOC
C12: 9 | D12: 0.0815 | E12: 0.1888 | O12: Auto | P12: 0 | Q12: 0.538 | R12: 13.0731 | S12: 0.04 | T12: 0.0005 | U12: 0.0001 | V12: 0.0444 | Z12: Auto | AA12: 0 | AB12: 0.1267 | AC12: 8.2937 | AD12: 0.0054 | AE12: 0.0003 | AF12: 0.0001 | AG12: 0.0087
C13: 10 | D13: 0.0763 | E13: 0.1832 | P13: 5 | Q13: 3.4738 | R13: 1116.2988 | S13: 0.3085 | T13: 0.0137 | U13: 0.0112 | V13: 0.3257 | AA13: 5 | AB13: 0.9124 | AC13: 621.3226 | AD13: 0.0617 | AE13: 0.0059 | AF13: 0.0062 | AG13: 0.1117
C14: 11 | D14: 0.0727 | E14: 0.1707 | P14: 6 | Q14: 3.315 | R14: 1059.1874 | S14: 0.2954 | T14: 0.0127 | U14: 0.0106 | V14: 0.2994 | AA14: 6 | AB14: 0.8859 | AC14: 589.854 | AD14: 0.0602 | AE14: 0.0055 | AF14: 0.0059 | AG14: 0.1039
C15: 12 | D15: 0.0691 | E15: 0.1583 | P15: 7 | Q15: 3.1563 | R15: 1002.0759 | S15: 0.2823 | T15: 0.0118 | U15: 0.0101 | V15: 0.2732 | AA15: 7 | AB15: 0.8594 | AC15: 558.3854 | AD15: 0.0588 | AE15: 0.005 | AF15: 0.0056 | AG15: 0.096
C16: 13 | D16: 0.0656 | E16: 0.1459 | P16: 8 | Q16: 2.9975 | R16: 944.9645 | S16: 0.2692 | T16: 0.0108 | U16: 0.0095 | V16: 0.2469 | AA16: 8 | AB16: 0.8328 | AC16: 526.9168 | AD16: 0.0574 | AE16: 0.0046 | AF16: 0.0053 | AG16: 0.0882
C17: 14 | D17: 0.062 | E17: 0.1335 | P17: 9 | Q17: 2.8387 | R17: 887.8531 | S17: 0.256 | T17: 0.0098 | U17: 0.0089 | V17: 0.2207 | AA17: 9 | AB17: 0.8063 | AC17: 495.4481 | AD17: 0.056 | AE17: 0.0042 | AF17: 0.005 | AG17: 0.0804
C18: 15 | D18: 0.0584 | E18: 0.1211 | P18: 10 | Q18: 2.68 | R18: 830.7416 | S18: 0.2429 | T18: 0.0088 | U18: 0.0083 | V18: 0.1944 | AA18: 10 | AB18: 0.7798 | AC18: 463.9795 | AD18: 0.0546 | AE18: 0.0037 | AF18: 0.0046 | AG18: 0.0726
C19: 16 | D19: 0.056 | E19: 0.1181 | P19: 11 | Q19: 2.6065 | R19: 791.6908 | S19: 0.2349 | T19: 0.0082 | U19: 0.0079 | V19: 0.1825 | AA19: 11 | AB19: 0.7615 | AC19: 442.2214 | AD19: 0.0527 | AE19: 0.0035 | AF19: 0.0044 | AG19: 0.068
C20: 17 | D20: 0.0536 | E20: 0.115 | P20: 12 | Q20: 2.533 | R20: 752.6399 | S20: 0.2269 | T20: 0.0076 | U20: 0.0076 | V20: 0.1707 | AA20: 12 | AB20: 0.7432 | AC20: 420.4632 | AD20: 0.0509 | AE20: 0.0032 | AF20: 0.0042 | AG20: 0.0635
C21: 18 | D21: 0.0513 | E21: 0.112 | P21: 13 | Q21: 2.4595 | R21: 713.589 | S21: 0.219 | T21: 0.007 | U21: 0.0072 | V21: 0.1588 | AA21: 13 | AB21: 0.7249 | AC21: 398.7051 | AD21: 0.0491 | AE21: 0.003 | AF21: 0.004 | AG21: 0.0589
C22: 19 | D22: 0.0489 | E22: 0.1089 | P22: 14 | Q22: 2.386 | R22: 674.5382 | S22: 0.211 | T22: 0.0064 | U22: 0.0068 | V22: 0.1469 | AA22: 14 | AB22: 0.7066 | AC22: 376.9469 | AD22: 0.0472 | AE22: 0.0027 | AF22: 0.0038 | AG22: 0.0544
C23: 20 | D23: 0.0465 | E23: 0.1059 | P23: 15 | Q23: 2.3125 | R23: 635.4873 | S23: 0.203 | T23: 0.0058 | U23: 0.0064 | V23: 0.1351 | AA23: 15 | AB23: 0.6883 | AC23: 355.1888 | AD23: 0.0454 | AE23: 0.0025 | AF23: 0.0036 | AG23: 0.0499
C24: 21 | D24: 0.0449 | E24: 0.1011 | P24: 16 | Q24: 2.2482 | R24: 609.4158 | S24: 0.1973 | T24: 0.0055 | U24: 0.0061 | V24: 0.127 | AA24: 16 | AB24: 0.6724 | AC24: 340.7505 | AD24: 0.0442 | AE24: 0.0023 | AF24: 0.0034 | AG24: 0.0469
C25: 22 | D25: 0.0433 | E25: 0.0963 | P25: 17 | Q25: 2.1838 | R25: 583.3443 | S25: 0.1916 | T25: 0.0051 | U25: 0.0059 | V25: 0.1189 | AA25: 17 | AB25: 0.6566 | AC25: 326.3121 | AD25: 0.0431 | AE25: 0.0022 | AF25: 0.0033 | AG25: 0.0439
C26: 23 | D26: 0.0417 | E26: 0.0916 | P26: 18 | Q26: 2.1195 | R26: 557.2727 | S26: 0.1859 | T26: 0.0048 | U26: 0.0056 | V26: 0.1108 | AA26: 18 | AB26: 0.6407 | AC26: 311.8738 | AD26: 0.042 | AE26: 0.002 | AF26: 0.0031 | AG26: 0.041
C27: 24 | D27: 0.0401 | E27: 0.0868 | P27: 19 | Q27: 2.0551 | R27: 531.2012 | S27: 0.1803 | T27: 0.0044 | U27: 0.0053 | V27: 0.1027 | AA27: 19 | AB27: 0.6249 | AC27: 297.4355 | AD27: 0.0409 | AE27: 0.0019 | AF27: 0.003 | AG27: 0.038
C28: 25 | D28: 0.0384 | E28: 0.0821 | P28: 20 | Q28: 1.9907 | R28: 505.1297 | S28: 0.1746 | T28: 0.0041 | U28: 0.0051 | V28: 0.0946 | AA28: 20 | AB28: 0.609 | AC28: 282.9972 | AD28: 0.0397 | AE28: 0.0017 | AF28: 0.0028 | AG28: 0.035
C29: 26 | D29: 0.0374 | E29: 0.0804 | P29: 21 | Q29: 1.9371 | R29: 487.6709 | S29: 0.1701 | T29: 0.0039 | U29: 0.0049 | V29: 0.0895 | AA29: 21 | AB29: 0.5973 | AC29: 273.2085 | AD29: 0.039 | AE29: 0.0016 | AF29: 0.0027 | AG29: 0.0333
C30: 27 | D30: 0.0363 | E30: 0.0788 | P30: 22 | Q30: 1.8834 | R30: 470.2121 | S30: 0.1656 | T30: 0.0036 | U30: 0.0047 | V30: 0.0845 | AA30: 22 | AB30: 0.5855 | AC30: 263.4199 | AD30: 0.0383 | AE30: 0.0015 | AF30: 0.0026 | AG30: 0.0316
C31: 28 | D31: 0.0352 | E31: 0.0771 | P31: 23 | Q31: 1.8297 | R31: 452.7533 | S31: 0.1611 | T31: 0.0034 | U31: 0.0045 | V31: 0.0794 | AA31: 23 | AB31: 0.5737 | AC31: 253.6313 | AD31: 0.0376 | AE31: 0.0015 | AF31: 0.0025 | AG31: 0.0299
C32: 29 | D32: 0.0341 | E32: 0.0755 | P32: 24 | Q32: 1.776 | R32: 435.2945 | S32: 0.1566 | T32: 0.0032 | U32: 0.0044 | V32: 0.0744 | AA32: 24 | AB32: 0.5619 | AC32: 243.8426 | AD32: 0.0369 | AE32: 0.0014 | AF32: 0.0024 | AG32: 0.0282
C33: 30 | D33: 0.033 | E33: 0.0738 | P33: 25 | Q33: 1.7223 | R33: 417.8356 | S33: 0.1522 | T33: 0.003 | U33: 0.0042 | V33: 0.0693 | AA33: 25 | AB33: 0.5502 | AC33: 234.054 | AD33: 0.0362 | AE33: 0.0013 | AF33: 0.0023 | AG33: 0.0264
C34: 31 | D34: 0.0323 | E34: 0.075 | P34: 26 | Q34: 1.6875 | R34: 406.0164 | S34: 0.1499 | T34: 0.0029 | U34: 0.0041 | V34: 0.0665 | AA34: 26 | AB34: 0.5395 | AC34: 227.3537 | AD34: 0.0356 | AE34: 0.0012 | AF34: 0.0023 | AG34: 0.0253
C35: 32 | D35: 0.0316 | E35: 0.0763 | P35: 27 | Q35: 1.6528 | R35: 394.1971 | S35: 0.1476 | T35: 0.0027 | U35: 0.004 | V35: 0.0637 | AA35: 27 | AB35: 0.5289 | AC35: 220.6535 | AD35: 0.0349 | AE35: 0.0012 | AF35: 0.0022 | AG35: 0.0242
C36: 33 | D36: 0.031 | E36: 0.0774 | P36: 28 | Q36: 1.618 | R36: 382.3778 | S36: 0.1453 | T36: 0.0026 | U36: 0.0038 | V36: 0.0609 | AA36: 28 | AB36: 0.5182 | AC36: 213.9532 | AD36: 0.0343 | AE36: 0.0011 | AF36: 0.0021 | AG36: 0.0231
C37: 34 | D37: 0.0303 | E37: 0.0786 | P37: 29 | Q37: 1.5833 | R37: 370.5585 | S37: 0.143 | T37: 0.0025 | U37: 0.0037 | V37: 0.058 | AA37: 29 | AB37: 0.5076 | AC37: 207.253 | AD37: 0.0337 | AE37: 0.001 | AF37: 0.0021 | AG37: 0.0219
C38: 35 | D38: 0.0296 | E38: 0.0799 | P38: 30 | Q38: 1.5486 | R38: 358.7392 | S38: 0.1407 | T38: 0.0023 | U38: 0.0036 | V38: 0.0552 | AA38: 30 | AB38: 0.497 | AC38: 200.5527 | AD38: 0.0331 | AE38: 0.001 | AF38: 0.002 | AG38: 0.0208
C39: 36 | D39: 0.0292 | E39: 0.0796 | P39: 31 | Q39: 1.5319 | R39: 351.4164 | S39: 0.1404 | T39: 0.0023 | U39: 0.0035 | V39: 0.0538 | AA39: 31 | AB39: 0.4906 | AC39: 196.3779 | AD39: 0.033 | AE39: 0.001 | AF39: 0.002 | AG39: 0.0201
C40: 37 | D40: 0.0288 | E40: 0.0794 | P40: 32 | Q40: 1.5153 | R40: 344.0935 | S40: 0.14 | T40: 0.0022 | U40: 0.0035 | V40: 0.0525 | AA40: 32 | AB40: 0.4842 | AC40: 192.2031 | AD40: 0.0328 | AE40: 0.0009 | AF40: 0.0019 | AG40: 0.0194
C41: 38 | D41: 0.0284 | E41: 0.0792 | P41: 33 | Q41: 1.4987 | R41: 336.7706 | S41: 0.1396 | T41: 0.0021 | U41: 0.0034 | V41: 0.0511 | AA41: 33 | AB41: 0.4779 | AC41: 188.0283 | AD41: 0.0327 | AE41: 0.0009 | AF41: 0.0019 | AG41: 0.0187
C42: 39 | D42: 0.028 | E42: 0.079 | P42: 34 | Q42: 1.4821 | R42: 329.4478 | S42: 0.1392 | T42: 0.002 | U42: 0.0033 | V42: 0.0497 | AA42: 34 | AB42: 0.4715 | AC42: 183.8535 | AD42: 0.0325 | AE42: 0.0009 | AF42: 0.0018 | AG42: 0.0181
C43: 40 | D43: 0.0276 | E43: 0.0788 | P43: 35 | Q43: 1.4654 | R43: 322.1249 | S43: 0.1389 | T43: 0.002 | U43: 0.0032 | V43: 0.0483 | AA43: 35 | AB43: 0.4652 | AC43: 179.6787 | AD43: 0.0324 | AE43: 0.0008 | AF43: 0.0018 | AG43: 0.0174
C44: 41 | D44: 0.0274 | E44: 0.0796 | P44: 36 | Q44: 1.453 | R44: 317.7039 | S44: 0.1389 | T44: 0.0019 | U44: 0.0032 | V44: 0.0475 | AA44: 36 | AB44: 0.459 | AC44: 177.1527 | AD44: 0.0322 | AE44: 0.0008 | AF44: 0.0018 | AG44: 0.0169
C45: 42 | D45: 0.0272 | E45: 0.0804 | P45: 37 | Q45: 1.4406 | R45: 313.283 | S45: 0.139 | T45: 0.0019 | U45: 0.0032 | V45: 0.0467 | AA45: 37 | AB45: 0.4528 | AC45: 174.6268 | AD45: 0.032 | AE45: 0.0008 | AF45: 0.0018 | AG45: 0.0165
C46: 43 | D46: 0.027 | E46: 0.0812 | P46: 38 | Q46: 1.4282 | R46: 308.8621 | S46: 0.1391 | T46: 0.0018 | U46: 0.0031 | V46: 0.0458 | AA46: 38 | AB46: 0.4466 | AC46: 172.1008 | AD46: 0.0318 | AE46: 0.0008 | AF46: 0.0017 | AG46: 0.016
C47: 44 | D47: 0.0268 | E47: 0.082 | P47: 39 | Q47: 1.4157 | R47: 304.4411 | S47: 0.1392 | T47: 0.0018 | U47: 0.0031 | V47: 0.045 | AA47: 39 | AB47: 0.4405 | AC47: 169.5748 | AD47: 0.0316 | AE47: 0.0007 | AF47: 0.0017 | AG47: 0.0156
C48: 45 | D48: 0.0266 | E48: 0.0828 | P48: 40 | Q48: 1.4033 | R48: 300.0202 | S48: 0.1392 | T48: 0.0017 | U48: 0.003 | V48: 0.0442 | AA48: 40 | AB48: 0.4343 | AC48: 167.0488 | AD48: 0.0314 | AE48: 0.0007 | AF48: 0.0017 | AG48: 0.0152
C49: 46 | D49: 0.0266 | E49: 0.0826 | P49: 41 | Q49: 1.393 | R49: 297.8379 | S49: 0.1396 | T49: 0.0017 | U49: 0.003 | V49: 0.0439 | AA49: 41 | AB49: 0.4306 | AC49: 165.8643 | AD49: 0.0314 | AE49: 0.0007 | AF49: 0.0017 | AG49: 0.015
C50: 47 | D50: 0.0266 | E50: 0.0824 | P50: 42 | Q50: 1.3827 | R50: 295.6556 | S50: 0.1399 | T50: 0.0017 | U50: 0.003 | V50: 0.0435 | AA50: 42 | AB50: 0.4269 | AC50: 164.6798 | AD50: 0.0314 | AE50: 0.0007 | AF50: 0.0017 | AG50: 0.0149
C51: 48 | D51: 0.0266 | E51: 0.0821 | P51: 43 | Q51: 1.3724 | R51: 293.4734 | S51: 0.1402 | T51: 0.0017 | U51: 0.003 | V51: 0.0432 | AA51: 43 | AB51: 0.4232 | AC51: 163.4953 | AD51: 0.0314 | AE51: 0.0007 | AF51: 0.0016 | AG51: 0.0148
C52: 49 | D52: 0.0266 | E52: 0.0819 | P52: 44 | Q52: 1.3621 | R52: 291.2911 | S52: 0.1405 | T52: 0.0016 | U52: 0.0029 | V52: 0.0429 | AA52: 44 | AB52: 0.4195 | AC52: 162.3108 | AD52: 0.0315 | AE52: 0.0007 | AF52: 0.0016 | AG52: 0.0147
C53: 50 | D53: 0.0266 | E53: 0.0817 | P53: 45 | Q53: 1.3518 | R53: 289.1088 | S53: 0.1408 | T53: 0.0016 | U53: 0.0029 | V53: 0.0425 | AA53: 45 | AB53: 0.4158 | AC53: 161.1263 | AD53: 0.0315 | AE53: 0.0007 | AF53: 0.0016 | AG53: 0.0145
C54: 51 | D54: 0.0268 | E54: 0.0826 | P54: 46 | Q54: 1.3461 | R54: 289.1663 | S54: 0.1416 | T54: 0.0016 | U54: 0.0029 | V54: 0.0425 | AA54: 46 | AB54: 0.4121 | AC54: 161.1408 | AD54: 0.0315 | AE54: 0.0006 | AF54: 0.0016 | AG54: 0.0145
C55: 52 | D55: 0.027 | E55: 0.0834 | P55: 47 | Q55: 1.3403 | R55: 289.2238 | S55: 0.1424 | T55: 0.0016 | U55: 0.0029 | V55: 0.0426 | AA55: 47 | AB55: 0.4083 | AC55: 161.1552 | AD55: 0.0315 | AE55: 0.0006 | AF55: 0.0016 | AG55: 0.0144
C56: 53 | D56: 0.0272 | E56: 0.0842 | P56: 48 | Q56: 1.3346 | R56: 289.2813 | S56: 0.1432 | T56: 0.0016 | U56: 0.0029 | V56: 0.0426 | AA56: 48 | AB56: 0.4046 | AC56: 161.1697 | AD56: 0.0316 | AE56: 0.0006 | AF56: 0.0016 | AG56: 0.0143
C57: 54 | D57: 0.0274 | E57: 0.085 | P57: 49 | Q57: 1.3288 | R57: 289.3388 | S57: 0.144 | T57: 0.0016 | U57: 0.0029 | V57: 0.0426 | AA57: 49 | AB57: 0.4009 | AC57: 161.1841 | AD57: 0.0316 | AE57: 0.0006 | AF57: 0.0016 | AG57: 0.0143
C58: 55 | D58: 0.0275 | E58: 0.0858 | P58: 50 | Q58: 1.3231 | R58: 289.3962 | S58: 0.1448 | T58: 0.0016 | U58: 0.0029 | V58: 0.0426 | AA58: 50 | AB58: 0.3971 | AC58: 161.1986 | AD58: 0.0317 | AE58: 0.0006 | AF58: 0.0016 | AG58: 0.0142
C59: 56 | D59: 0.0279 | E59: 0.0839 | P59: 51 | Q59: 1.3174 | R59: 291.4641 | S59: 0.1457 | T59: 0.0016 | U59: 0.0029 | V59: 0.0429 | AA59: 51 | AB59: 0.3934 | AC59: 162.3502 | AD59: 0.0316 | AE59: 0.0006 | AF59: 0.0016 | AG59: 0.0142
C60: 57 | D60: 0.0283 | E60: 0.082 | P60: 52 | Q60: 1.3117 | R60: 293.5321 | S60: 0.1466 | T60: 0.0016 | U60: 0.003 | V60: 0.0431 | AA60: 52 | AB60: 0.3897 | AC60: 163.5019 | AD60: 0.0316 | AE60: 0.0006 | AF60: 0.0016 | AG60: 0.0143
C61: 58 | D61: 0.0286 | E61: 0.0802 | P61: 53 | Q61: 1.3061 | R61: 295.6 | S61: 0.1476 | T61: 0.0016 | U61: 0.003 | V61: 0.0434 | AA61: 53 | AB61: 0.3859 | AC61: 164.6536 | AD61: 0.0316 | AE61: 0.0006 | AF61: 0.0016 | AG61: 0.0144
C62: 59 | D62: 0.029 | E62: 0.0783 | P62: 54 | Q62: 1.3004 | R62: 297.6679 | S62: 0.1485 | T62: 0.0016 | U62: 0.003 | V62: 0.0437 | AA62: 54 | AB62: 0.3822 | AC62: 165.8052 | AD62: 0.0316 | AE62: 0.0006 | AF62: 0.0017 | AG62: 0.0144
C63: 60 | D63: 0.0293 | E63: 0.0764 | P63: 55 | Q63: 1.2947 | R63: 299.7358 | S63: 0.1494 | T63: 0.0017 | U63: 0.003 | V63: 0.0439 | AA63: 55 | AB63: 0.3785 | AC63: 166.9569 | AD63: 0.0316 | AE63: 0.0006 | AF63: 0.0017 | AG63: 0.0145
C64: 61 | D64: 0.03 | E64: 0.0756 | P64: 56 | Q64: 1.2785 | R64: 303.633 | S64: 0.1482 | T64: 0.0017 | U64: 0.0031 | V64: 0.0439 | AA64: 56 | AB64: 0.3749 | AC64: 169.1785 | AD64: 0.0315 | AE64: 0.0007 | AF64: 0.0017 | AG64: 0.0147
C65: 62 | D65: 0.0306 | E65: 0.0749 | P65: 57 | Q65: 1.2623 | R65: 307.5302 | S65: 0.1469 | T65: 0.0017 | U65: 0.0031 | V65: 0.0439 | AA65: 57 | AB65: 0.3712 | AC65: 171.4 | AD65: 0.0314 | AE65: 0.0007 | AF65: 0.0017 | AG65: 0.0149
C66: 63 | D66: 0.0312 | E66: 0.0741 | P66: 58 | Q66: 1.246 | R66: 311.4274 | S66: 0.1457 | T66: 0.0017 | U66: 0.0031 | V66: 0.0439 | AA66: 58 | AB66: 0.3676 | AC66: 173.6216 | AD66: 0.0313 | AE66: 0.0007 | AF66: 0.0017 | AG66: 0.0151
C67: 64 | D67: 0.0319 | E67: 0.0734 | P67: 59 | Q67: 1.2298 | R67: 315.3246 | S67: 0.1445 | T67: 0.0017 | U67: 0.0032 | V67: 0.0439 | AA67: 59 | AB67: 0.364 | AC67: 175.8432 | AD67: 0.0312 | AE67: 0.0007 | AF67: 0.0018 | AG67: 0.0152
C68: 65 | D68: 0.0325 | E68: 0.0726 | P68: 60 | Q68: 1.2136 | R68: 319.2217 | S68: 0.1432 | T68: 0.0017 | U68: 0.0032 | V68: 0.0439 | AA68: 60 | AB68: 0.3603 | AC68: 178.0647 | AD68: 0.0311 | AE68: 0.0007 | AF68: 0.0018 | AG68: 0.0154
C69: 66 | D69: 0.0331 | E69: 0.0765 | P69: 61 | Q69: 1.221 | R69: 326.2862 | S69: 0.1444 | T69: 0.0018 | U69: 0.0033 | V69: 0.0453 | AA69: 61 | AB69: 0.3639 | AC69: 181.7269 | AD69: 0.032 | AE69: 0.0007 | AF69: 0.0018 | AG69: 0.0161
C70: 67 | D70: 0.0337 | E70: 0.0804 | P70: 62 | Q70: 1.2284 | R70: 333.3507 | S70: 0.1455 | T70: 0.0018 | U70: 0.0033 | V70: 0.0468 | AA70: 62 | AB70: 0.3676 | AC70: 185.3891 | AD70: 0.0329 | AE70: 0.0007 | AF70: 0.0019 | AG70: 0.0168
C71: 68 | D71: 0.0343 | E71: 0.0842 | P71: 63 | Q71: 1.2358 | R71: 340.4152 | S71: 0.1467 | T71: 0.0018 | U71: 0.0034 | V71: 0.0483 | AA71: 63 | AB71: 0.3712 | AC71: 189.0513 | AD71: 0.0338 | AE71: 0.0007 | AF71: 0.0019 | AG71: 0.0175
C72: 69 | D72: 0.035 | E72: 0.0881 | P72: 64 | Q72: 1.2432 | R72: 347.4797 | S72: 0.1479 | T72: 0.0018 | U72: 0.0035 | V72: 0.0497 | AA72: 64 | AB72: 0.3748 | AC72: 192.7134 | AD72: 0.0347 | AE72: 0.0008 | AF72: 0.0019 | AG72: 0.0182
C73: 70 | D73: 0.0356 | E73: 0.092 | P73: 65 | Q73: 1.2506 | R73: 354.5442 | S73: 0.149 | T73: 0.0019 | U73: 0.0036 | V73: 0.0512 | AA73: 65 | AB73: 0.3784 | AC73: 196.3756 | AD73: 0.0356 | AE73: 0.0008 | AF73: 0.002 | AG73: 0.0189
P74: 66 | Q74: 1.2948 | R74: 361.2833 | S74: 0.1524 | T74: 0.0019 | U74: 0.0036 | V74: 0.0537 | AA74: 66 | AB74: 0.3804 | AC74: 200.1791 | AD74: 0.035 | AE74: 0.0008 | AF74: 0.002 | AG74: 0.0191
B75: * Includes motorcycles & motorhomes | P75: 67 | Q75: 1.3391 | R75: 368.0223 | S75: 0.1559 | T75: 0.002 | U75: 0.0037 | V75: 0.0563 | AA75: 67 | AB75: 0.3823 | AC75: 203.9827 | AD75: 0.0344 | AE75: 0.0008 | AF75: 0.002 | AG75: 0.0194
B76: Note: Five mph is best estimate for idling | P76: 68 | Q76: 1.3833 | R76: 374.7614 | S76: 0.1593 | T76: 0.002 | U76: 0.0038 | V76: 0.0588 | AA76: 68 | AB76: 0.3843 | AC76: 207.7862 | AD76: 0.0338 | AE76: 0.0008 | AF76: 0.0021 | AG76: 0.0197
P77: 69 | Q77: 1.4275 | R77: 381.5004 | S77: 0.1627 | T77: 0.002 | U77: 0.0038 | V77: 0.0613 | AA77: 69 | AB77: 0.3863 | AC77: 211.5897 | AD77: 0.0333 | AE77: 0.0008 | AF77: 0.0021 | AG77: 0.0199
B78: Source: California Air Resources Board, | P78: 70 | Q78: 1.4718 | R78: 388.2395 | S78: 0.1661 | T78: 0.0021 | U78: 0.0039 | V78: 0.0638 | AA78: 70 | AB78: 0.3882 | AC78: 215.3932 | AD78: 0.0327 | AE78: 0.0008 | AF78: 0.0022 | AG78: 0.0202
B79: EMFAC2014, 2016 & 2036 average
O80: Truck | P80: 0 | Q80: 0.884 | R80: 15.8943 | S80: 0.1698 | T80: 0.0004 | U80: 0.0002 | V80: 0.0746 | Z80: Truck | AA80: 0 | AB80: 0.2015 | AC80: 9.6105 | AD80: 0.162 | AE80: 0.0002 | AF80: 0.0001 | AG80: 0.0118
P81: 5 | Q81: 5.1981 | R81: 2078.7487 | S81: 6.0007 | T81: 0.0866 | U81: 0.0196 | V81: 0.8863 | AA81: 5 | AB81: 3.5072 | AC81: 1907.1744 | AD81: 6.8607 | AE81: 0.011 | AF81: 0.0168 | AG81: 0.3209
P82: 6 | Q82: 4.9646 | R82: 2025.227 | S82: 5.9079 | T82: 0.0866 | U82: 0.0191 | V82: 0.8538 | AA82: 6 | AB82: 3.3251 | AC82: 1859.4917 | AD82: 6.5675 | AE82: 0.0105 | AF82: 0.0165 | AG82: 0.3064
C83: NUMBER OF FATALITIES | P83: 7 | Q83: 4.7312 | R83: 1971.7054 | S83: 5.8151 | T83: 0.0867 | U83: 0.0186 | V83: 0.8213 | AA83: 7 | AB83: 3.1431 | AC83: 1811.8091 | AD83: 6.2744 | AE83: 0.0101 | AF83: 0.0161 | AG83: 0.2919
C84: (events/accident) | P84: 8 | Q84: 4.4977 | R84: 1918.1838 | S84: 5.7223 | T84: 0.0868 | U84: 0.0181 | V84: 0.7888 | AA84: 8 | AB84: 2.961 | AC84: 1764.1265 | AD84: 5.9812 | AE84: 0.0096 | AF84: 0.0157 | AG84: 0.2774
P85: 9 | Q85: 4.2642 | R85: 1864.6622 | S85: 5.6295 | T85: 0.0869 | U85: 0.0176 | V85: 0.7563 | AA85: 9 | AB85: 2.779 | AC85: 1716.4439 | AD85: 5.688 | AE85: 0.0092 | AF85: 0.0153 | AG85: 0.2629
C86: Accident Type | D86: Urban | E86: Suburban | F86: Rural | G86: Average | P86: 10 | Q86: 4.0308 | R86: 1811.1406 | S86: 5.5367 | T86: 0.0869 | U86: 0.0171 | V86: 0.7239 | AA86: 10 | AB86: 2.597 | AC86: 1668.7613 | AD86: 5.3948 | AE86: 0.0087 | AF86: 0.015 | AG86: 0.2484
C87: Fatal Accident | D87: 1.09 | E87: 1.08 | F87: 1.14 | G87: 1.11 | P87: 11 | Q87: 3.8318 | R87: 1684.0729 | S87: 5.0222 | T87: 0.0789 | U87: 0.016 | V87: 0.6511 | AA87: 11 | AB87: 2.3246 | AC87: 1549.8034 | AD87: 4.7725 | AE87: 0.0083 | AF87: 0.014 | AG87: 0.2253
P88: 12 | Q88: 3.6328 | R88: 1557.0053 | S88: 4.5078 | T88: 0.0709 | U88: 0.0149 | V88: 0.5784 | AA88: 12 | AB88: 2.0522 | AC88: 1430.8454 | AD88: 4.1501 | AE88: 0.0079 | AF88: 0.013 | AG88: 0.2023
P89: 13 | Q89: 3.4338 | R89: 1429.9376 | S89: 3.9933 | T89: 0.0628 | U89: 0.0137 | V89: 0.5056 | AA89: 13 | AB89: 1.7799 | AC89: 1311.8875 | AD89: 3.5278 | AE89: 0.0075 | AF89: 0.0121 | AG89: 0.1792
C90: NUMBER OF INJURIES | P90: 14 | Q90: 3.2348 | R90: 1302.8699 | S90: 3.4788 | T90: 0.0548 | U90: 0.0126 | V90: 0.4329 | AA90: 14 | AB90: 1.5075 | AC90: 1192.9296 | AD90: 2.9055 | AE90: 0.0071 | AF90: 0.0111 | AG90: 0.1561
C91: (events/accident) | P91: 15 | Q91: 3.0358 | R91: 1175.8022 | S91: 2.9643 | T91: 0.0468 | U91: 0.0114 | V91: 0.3601 | AA91: 15 | AB91: 1.2352 | AC91: 1073.9717 | AD91: 2.2831 | AE91: 0.0067 | AF91: 0.0102 | AG91: 0.1331
P92: 16 | Q92: 2.9594 | R92: 1149.78 | S92: 2.8981 | T92: 0.0452 | U92: 0.0112 | V92: 0.3364 | AA92: 16 | AB92: 1.1707 | AC92: 1044.4852 | AD92: 2.1133 | AE92: 0.0063 | AF92: 0.0099 | AG92: 0.1231
C93: Accident Type | D93: Urban | E93: Suburban | F93: Rural | G93: Average | P93: 17 | Q93: 2.883 | R93: 1123.7577 | S93: 2.8318 | T93: 0.0436 | U93: 0.011 | V93: 0.3126 | AA93: 17 | AB93: 1.1062 | AC93: 1014.9987 | AD93: 1.9435 | AE93: 0.0059 | AF93: 0.0097 | AG93: 0.113
C94: Fatal Accident | D94: 0.81 | E94: 0.82 | F94: 1.12 | G94: 0.95 | P94: 18 | Q94: 2.8066 | R94: 1097.7354 | S94: 2.7656 | T94: 0.042 | U94: 0.0107 | V94: 0.2888 | AA94: 18 | AB94: 1.0418 | AC94: 985.5122 | AD94: 1.7737 | AE94: 0.0055 | AF94: 0.0094 | AG94: 0.103
C95: Injury Accident | D95: 1.44 | E95: 1.43 | F95: 1.5 | G95: 1.44 | P95: 19 | Q95: 2.7302 | R95: 1071.7131 | S95: 2.6994 | T95: 0.0405 | U95: 0.0105 | V95: 0.265 | AA95: 19 | AB95: 0.9773 | AC95: 956.0257 | AD95: 1.6039 | AE95: 0.0051 | AF95: 0.0092 | AG95: 0.093
P96: 20 | Q96: 2.6538 | R96: 1045.6908 | S96: 2.6332 | T96: 0.0389 | U96: 0.0102 | V96: 0.2413 | AA96: 20 | AB96: 0.9128 | AC96: 926.5391 | AD96: 1.4341 | AE96: 0.0047 | AF96: 0.0089 | AG96: 0.083
P97: 21 | Q97: 2.6003 | R97: 1002.0956 | S97: 2.4211 | T97: 0.035 | U97: 0.0098 | V97: 0.2216 | AA97: 21 | AB97: 0.8778 | AC97: 874.5162 | AD97: 1.253 | AE97: 0.0044 | AF97: 0.0084 | AG97: 0.0748
C98: NUMBER OF VEHICLES INVOLVED | P98: 22 | Q98: 2.5468 | R98: 958.5005 | S98: 2.2091 | T98: 0.0311 | U98: 0.0094 | V98: 0.2019 | AA98: 22 | AB98: 0.8428 | AC98: 822.4933 | AD98: 1.0718 | AE98: 0.0041 | AF98: 0.0079 | AG98: 0.0666
C99: (events/accident) | P99: 23 | Q99: 2.4933 | R99: 914.9053 | S99: 1.9971 | T99: 0.0272 | U99: 0.009 | V99: 0.1822 | AA99: 23 | AB99: 0.8077 | AC99: 770.4704 | AD99: 0.8907 | AE99: 0.0038 | AF99: 0.0074 | AG99: 0.0584
P100: 24 | Q100: 2.4398 | R100: 871.3101 | S100: 1.785 | T100: 0.0233 | U100: 0.0086 | V100: 0.1626 | AA100: 24 | AB100: 0.7727 | AC100: 718.4476 | AD100: 0.7096 | AE100: 0.0035 | AF100: 0.0069 | AG100: 0.0502
C101: Accident Type | D101: Urban | E101: Suburban | F101: Rural | G101: Average | P101: 25 | Q101: 2.3864 | R101: 827.715 | S101: 1.573 | T101: 0.0194 | U101: 0.0081 | V101: 0.1429 | AA101: 25 | AB101: 0.7377 | AC101: 666.4247 | AD101: 0.5284 | AE101: 0.0031 | AF101: 0.0064 | AG101: 0.042
C102: Fatal Accident | D102: 1.51 | E102: 1.69 | F102: 1.58 | G102: 1.63 | P102: 26 | Q102: 2.344 | R102: 810.584 | S102: 1.532 | T102: 0.0187 | U102: 0.008 | V102: 0.1364 | AA102: 26 | AB102: 0.7207 | AC102: 654.1183 | AD102: 0.4949 | AE102: 0.003 | AF102: 0.0063 | AG102: 0.0399
C103: Injury Accident | D103: 1.82 | E103: 2.1 | F103: 1.59 | G103: 1.99 | P103: 27 | Q103: 2.3017 | R103: 793.453 | S103: 1.4911 | T103: 0.018 | U103: 0.0078 | V103: 0.1299 | AA103: 27 | AB103: 0.7038 | AC103: 641.812 | AD103: 0.4613 | AE103: 0.0029 | AF103: 0.0062 | AG103: 0.0378
C104: PDO Accident | D104: 1.8 | E104: 2.03 | F104: 1.59 | G104: 1.96 | P104: 28 | Q104: 2.2593 | R104: 776.322 | S104: 1.4501 | T104: 0.0173 | U104: 0.0076 | V104: 0.1234 | AA104: 28 | AB104: 0.6869 | AC104: 629.5057 | AD104: 0.4278 | AE104: 0.0028 | AF104: 0.0061 | AG104: 0.0358
P105: 29 | Q105: 2.217 | R105: 759.191 | S105: 1.4092 | T105: 0.0167 | U105: 0.0075 | V105: 0.1169 | AA105: 29 | AB105: 0.67 | AC105: 617.1994 | AD105: 0.3942 | AE105: 0.0026 | AF105: 0.006 | AG105: 0.0337
P106: 30 | Q106: 2.1747 | R106: 742.06 | S106: 1.3682 | T106: 0.016 | U106: 0.0073 | V106: 0.1104 | AA106: 30 | AB106: 0.6531 | AC106: 604.8931 | AD106: 0.3607 | AE106: 0.0025 | AF106: 0.0058 | AG106: 0.0316
C107: DISTRIBUTION OF ACCIDENT TYPES | P107: 31 | Q107: 2.1326 | R107: 752.0419 | S107: 1.444 | T107: 0.0168 | U107: 0.0074 | V107: 0.1096 | AA107: 31 | AB107: 0.6458 | AC107: 624.5823 | AD107: 0.3646 | AE107: 0.0025 | AF107: 0.006 | AG107: 0.0318
C108: (percent of accidents) | P108: 32 | Q108: 2.0905 | R108: 762.0238 | S108: 1.5198 | T108: 0.0177 | U108: 0.0075 | V108: 0.1087 | AA108: 32 | AB108: 0.6386 | AC108: 644.2715 | AD108: 0.3685 | AE108: 0.0026 | AF108: 0.0062 | AG108: 0.032
P109: 33 | Q109: 2.0484 | R109: 772.0057 | S109: 1.5955 | T109: 0.0185 | U109: 0.0075 | V109: 0.1079 | AA109: 33 | AB109: 0.6313 | AC109: 663.9607 | AD109: 0.3725 | AE109: 0.0026 | AF109: 0.0063 | AG109: 0.0322
C110: Accident Type | D110: Urban | E110: Suburban | F110: Rural | G110: Average | P110: 34 | Q110: 2.0064 | R110: 781.9877 | S110: 1.6713 | T110: 0.0194 | U110: 0.0076 | V110: 0.1071 | AA110: 34 | AB110: 0.6241 | AC110: 683.6499 | AD110: 0.3764 | AE110: 0.0026 | AF110: 0.0065 | AG110: 0.0324
C111: Fatal Accident | D111: 0.0118 | E111: 0.0045 | F111: 0.0192 | G111: 0.0071 | P111: 35 | Q111: 1.9643 | R111: 791.9696 | S111: 1.7471 | T111: 0.0202 | U111: 0.0077 | V111: 0.1062 | AA111: 35 | AB111: 0.6168 | AC111: 703.3391 | AD111: 0.3803 | AE111: 0.0026 | AF111: 0.0067 | AG111: 0.0326
C112: Injury Accident | D112: 0.3493 | E112: 0.3309 | F112: 0.3825 | G112: 0.3398 | P112: 36 | Q112: 1.9353 | R112: 788.7558 | S112: 1.7522 | T112: 0.0206 | U112: 0.0077 | V112: 0.1039 | AA112: 36 | AB112: 0.5989 | AC112: 704.5951 | AD112: 0.3666 | AE112: 0.0026 | AF112: 0.0067 | AG112: 0.0314
C113: PDO Accident | D113: 0.6389 | E113: 0.6645 | F113: 0.5983 | G113: 0.6531 | P113: 37 | Q113: 1.9064 | R113: 785.542 | S113: 1.7573 | T113: 0.021 | U113: 0.0076 | V113: 0.1015 | AA113: 37 | AB113: 0.5809 | AC113: 705.8511 | AD113: 0.3529 | AE113: 0.0026 | AF113: 0.0067 | AG113: 0.0302
P114: 38 | Q114: 1.8774 | R114: 782.3282 | S114: 1.7624 | T114: 0.0213 | U114: 0.0076 | V114: 0.0991 | AA114: 38 | AB114: 0.5629 | AC114: 707.1071 | AD114: 0.3392 | AE114: 0.0026 | AF114: 0.0067 | AG114: 0.0291
P115: 39 | Q115: 1.8485 | R115: 779.1144 | S115: 1.7676 | T115: 0.0217 | U115: 0.0076 | V115: 0.0967 | AA115: 39 | AB115: 0.545 | AC115: 708.363 | AD115: 0.3255 | AE115: 0.0025 | AF115: 0.0067 | AG115: 0.0279
B116: Source: California Department of Transportation,TASAS Unit, 2010 to 2013 average | P116: 40 | Q116: 1.8195 | R116: 775.9006 | S116: 1.7727 | T116: 0.0221 | U116: 0.0075 | V116: 0.0944 | AA116: 40 | AB116: 0.527 | AC116: 709.619 | AD116: 0.3118 | AE116: 0.0025 | AF116: 0.0067 | AG116: 0.0267
P117: 41 | Q117: 1.7831 | R117: 783.2454 | S117: 1.8215 | T117: 0.0228 | U117: 0.0076 | V117: 0.0934 | AA117: 41 | AB117: 0.5118 | AC117: 720.8037 | AD117: 0.3077 | AE117: 0.0025 | AF117: 0.0069 | AG117: 0.0262
P118: 42 | Q118: 1.7466 | R118: 790.5902 | S118: 1.8703 | T118: 0.0234 | U118: 0.0077 | V118: 0.0923 | AA118: 42 | AB118: 0.4965 | AC118: 731.9884 | AD118: 0.3036 | AE118: 0.0026 | AF118: 0.007 | AG118: 0.0257
P119: 43 | Q119: 1.7102 | R119: 797.935 | S119: 1.9191 | T119: 0.0241 | U119: 0.0077 | V119: 0.0913 | AA119: 43 | AB119: 0.4813 | AC119: 743.1731 | AD119: 0.2995 | AE119: 0.0026 | AF119: 0.0071 | AG119: 0.0252
P120: 44 | Q120: 1.6737 | R120: 805.2797 | S120: 1.9679 | T120: 0.0248 | U120: 0.0078 | V120: 0.0903 | AA120: 44 | AB120: 0.466 | AC120: 754.3578 | AD120: 0.2954 | AE120: 0.0026 | AF120: 0.0072 | AG120: 0.0247
P121: 45 | Q121: 1.6373 | R121: 812.6245 | S121: 2.0168 | T121: 0.0255 | U121: 0.0079 | V121: 0.0893 | AA121: 45 | AB121: 0.4508 | AC121: 765.5425 | AD121: 0.2913 | AE121: 0.0027 | AF121: 0.0073 | AG121: 0.0242
P122: 46 | Q122: 1.6085 | R122: 809.0851 | S122: 2.0513 | T122: 0.0259 | U122: 0.0078 | V122: 0.0885 | AA122: 46 | AB122: 0.4344 | AC122: 765.4447 | AD122: 0.2853 | AE122: 0.0027 | AF122: 0.0073 | AG122: 0.0234
P123: 47 | Q123: 1.5797 | R123: 805.5456 | S123: 2.0859 | T123: 0.0264 | U123: 0.0078 | V123: 0.0876 | AA123: 47 | AB123: 0.4181 | AC123: 765.3468 | AD123: 0.2794 | AE123: 0.0027 | AF123: 0.0073 | AG123: 0.0226
P124: 48 | Q124: 1.551 | R124: 802.0062 | S124: 2.1205 | T124: 0.0268 | U124: 0.0078 | V124: 0.0868 | AA124: 48 | AB124: 0.4017 | AC124: 765.249 | AD124: 0.2734 | AE124: 0.0028 | AF124: 0.0073 | AG124: 0.0218
P125: 49 | Q125: 1.5222 | R125: 798.4667 | S125: 2.155 | T125: 0.0273 | U125: 0.0078 | V125: 0.086 | AA125: 49 | AB125: 0.3854 | AC125: 765.1511 | AD125: 0.2675 | AE125: 0.0028 | AF125: 0.0073 | AG125: 0.021
P126: 50 | Q126: 1.4935 | R126: 794.9273 | S126: 2.1896 | T126: 0.0277 | U126: 0.0077 | V126: 0.0852 | AA126: 50 | AB126: 0.369 | AC126: 765.0533 | AD126: 0.2615 | AE126: 0.0028 | AF126: 0.0073 | AG126: 0.0202
P127: 51 | Q127: 1.4732 | R127: 804.8722 | S127: 2.2174 | T127: 0.0293 | U127: 0.0078 | V127: 0.0851 | AA127: 51 | AB127: 0.3589 | AC127: 772.938 | AD127: 0.2554 | AE127: 0.0028 | AF127: 0.0074 | AG127: 0.0196
P128: 52 | Q128: 1.4529 | R128: 814.8171 | S128: 2.2453 | T128: 0.0308 | U128: 0.0079 | V128: 0.085 | AA128: 52 | AB128: 0.3488 | AC128: 780.8227 | AD128: 0.2493 | AE128: 0.0028 | AF128: 0.0075 | AG128: 0.019
P129: 53 | Q129: 1.4326 | R129: 824.762 | S129: 2.2731 | T129: 0.0323 | U129: 0.008 | V129: 0.0849 | AA129: 53 | AB129: 0.3388 | AC129: 788.7075 | AD129: 0.2433 | AE129: 0.0028 | AF129: 0.0076 | AG129: 0.0184
P130: 54 | Q130: 1.4124 | R130: 834.7069 | S130: 2.301 | T130: 0.0338 | U130: 0.0081 | V130: 0.0849 | AA130: 54 | AB130: 0.3287 | AC130: 796.5922 | AD130: 0.2372 | AE130: 0.0028 | AF130: 0.0077 | AG130: 0.0178
P131: 55 | Q131: 1.3921 | R131: 844.6518 | S131: 2.3288 | T131: 0.0353 | U131: 0.0082 | V131: 0.0848 | AA131: 55 | AB131: 0.3186 | AC131: 804.4769 | AD131: 0.2311 | AE131: 0.0028 | AF131: 0.0077 | AG131: 0.0171
P132: 56 | Q132: 1.4034 | R132: 827.1954 | S132: 2.2073 | T132: 0.0345 | U132: 0.008 | V132: 0.0832 | AA132: 56 | AB132: 0.3134 | AC132: 779.8106 | AD132: 0.2173 | AE132: 0.0027 | AF132: 0.0075 | AG132: 0.0163
P133: 57 | Q133: 1.4147 | R133: 809.7391 | S133: 2.0858 | T133: 0.0338 | U133: 0.0079 | V133: 0.0815 | AA133: 57 | AB133: 0.3082 | AC133: 755.1442 | AD133: 0.2034 | AE133: 0.0026 | AF133: 0.0073 | AG133: 0.0154
P134: 58 | Q134: 1.426 | R134: 792.2827 | S134: 1.9643 | T134: 0.033 | U134: 0.0077 | V134: 0.0799 | AA134: 58 | AB134: 0.303 | AC134: 730.4779 | AD134: 0.1896 | AE134: 0.0025 | AF134: 0.007 | AG134: 0.0146
P135: 59 | Q135: 1.4373 | R135: 774.8264 | S135: 1.8428 | T135: 0.0322 | U135: 0.0076 | V135: 0.0783 | AA135: 59 | AB135: 0.2978 | AC135: 705.8115 | AD135: 0.1758 | AE135: 0.0024 | AF135: 0.0068 | AG135: 0.0137
P136: 60 | Q136: 1.4486 | R136: 757.37 | S136: 1.7213 | T136: 0.0314 | U136: 0.0074 | V136: 0.0766 | AA136: 60 | AB136: 0.2926 | AC136: 681.1452 | AD136: 0.1619 | AE136: 0.0023 | AF136: 0.0066 | AG136: 0.0129
P137: 61 | Q137: 1.4697 | R137: 751.8344 | S137: 1.6368 | T137: 0.029 | U137: 0.0074 | V137: 0.0756 | AA137: 61 | AB137: 0.2967 | AC137: 666.116 | AD137: 0.1573 | AE137: 0.0023 | AF137: 0.0064 | AG137: 0.0128
P138: 62 | Q138: 1.4909 | R138: 746.2988 | S138: 1.5524 | T138: 0.0265 | U138: 0.0073 | V138: 0.0745 | AA138: 62 | AB138: 0.3008 | AC138: 651.0868 | AD138: 0.1527 | AE138: 0.0022 | AF138: 0.0063 | AG138: 0.0127
P139: 63 | Q139: 1.512 | R139: 740.7632 | S139: 1.468 | T139: 0.0241 | U139: 0.0073 | V139: 0.0734 | AA139: 63 | AB139: 0.305 | AC139: 636.0575 | AD139: 0.1481 | AE139: 0.0022 | AF139: 0.0062 | AG139: 0.0126
P140: 64 | Q140: 1.5332 | R140: 735.2276 | S140: 1.3836 | T140: 0.0216 | U140: 0.0072 | V140: 0.0724 | AA140: 64 | AB140: 0.3091 | AC140: 621.0283 | AD140: 0.1434 | AE140: 0.0021 | AF140: 0.006 | AG140: 0.0125
P141: 65 | Q141: 1.5544 | R141: 729.692 | S141: 1.2992 | T141: 0.0191 | U141: 0.0072 | V141: 0.0713 | AA141: 65 | AB141: 0.3132 | AC141: 605.9991 | AD141: 0.1388 | AE141: 0.0021 | AF141: 0.0059 | AG141: 0.0125
P142: 66 | Q142: 1.5252 | R142: 769.9276 | S142: 1.462 | T142: 0.0203 | U142: 0.0076 | V142: 0.0735 | AA142: 66 | AB142: 0.3047 | AC142: 649.3239 | AD142: 0.1524 | AE142: 0.0022 | AF142: 0.0063 | AG142: 0.0133
P143: 67 | Q143: 1.4961 | R143: 810.1633 | S143: 1.6247 | T143: 0.0214 | U143: 0.0079 | V143: 0.0757 | AA143: 67 | AB143: 0.2962 | AC143: 692.6487 | AD143: 0.166 | AE143: 0.0024 | AF143: 0.0067 | AG143: 0.0142
P144: 68 | Q144: 1.467 | R144: 850.3989 | S144: 1.7874 | T144: 0.0226 | U144: 0.0083 | V144: 0.0778 | AA144: 68 | AB144: 0.2877 | AC144: 735.9736 | AD144: 0.1796 | AE144: 0.0026 | AF144: 0.0071 | AG144: 0.015
P145: 69 | Q145: 1.4378 | R145: 890.6346 | S145: 1.9502 | T145: 0.0237 | U145: 0.0087 | V145: 0.08 | AA145: 69 | AB145: 0.2791 | AC145: 779.2984 | AD145: 0.1933 | AE145: 0.0027 | AF145: 0.0075 | AG145: 0.0159
P146: 70 | Q146: 1.4087 | R146: 930.8702 | S146: 2.1129 | T146: 0.0248 | U146: 0.0091 | V146: 0.0822 | AA146: 70 | AB146: 0.2706 | AC146: 822.6232 | AD146: 0.2069 | AE146: 0.0029 | AF146: 0.0079 | AG146: 0.0167
O148: Bus | P148: 0 | Q148: 0.9177 | R148: 7.0526 | S148: 0.1729 | T148: 0.0001 | U148: 0.0001 | V148: 0.0589 | Z148: Bus | AA148: 0 | AB148: 0.5851 | AC148: 9.1495 | AD148: 0.2924 | AE148: 0.0001 | AF148: 0.0001 | AG148: 0.0398
P149: 5 | Q149: 19.5716 | R149: 3427.7169 | S149: 22.0898 | T149: 0.4156 | U149: 0.0272 | V149: 3.1109 | AA149: 5 | AB149: 9.8074 | AC149: 2999.6012 | AD149: 5.2921 | AE149: 0.0368 | AF149: 0.0239 | AG149: 0.387
P150: 6 | Q150: 18.614 | R150: 3345.9708 | S150: 21.1562 | T150: 0.397 | U150: 0.0267 | V150: 2.9233 | AA150: 6 | AB150: 9.1892 | AC150: 2922.623 | AD150: 5.0912 | AE150: 0.0348 | AF150: 0.0234 | AG150: 0.3644
P151: 7 | Q151: 17.6564 | R151: 3264.2247 | S151: 20.2227 | T151: 0.3785 | U151: 0.0261 | V151: 2.7357 | AA151: 7 | AB151: 8.571 | AC151: 2845.6447 | AD151: 4.8903 | AE151: 0.0329 | AF151: 0.0228 | AG151: 0.3417
P152: 8 | Q152: 16.6988 | R152: 3182.4787 | S152: 19.2892 | T152: 0.36 | U152: 0.0255 | V152: 2.548 | AA152: 8 | AB152: 7.9529 | AC152: 2768.6665 | AD152: 4.6894 | AE152: 0.0309 | AF152: 0.0223 | AG152: 0.3191
P153: 9 | Q153: 15.7411 | R153: 3100.7326 | S153: 18.3556 | T153: 0.3415 | U153: 0.025 | V153: 2.3604 | AA153: 9 | AB153: 7.3347 | AC153: 2691.6883 | AD153: 4.4886 | AE153: 0.0289 | AF153: 0.0218 | AG153: 0.2964
P154: 10 | Q154: 14.7835 | R154: 3018.9865 | S154: 17.4221 | T154: 0.323 | U154: 0.0244 | V154: 2.1728 | AA154: 10 | AB154: 6.7166 | AC154: 2614.71 | AD154: 4.2877 | AE154: 0.027 | AF154: 0.0212 | AG154: 0.2738
P155: 11 | Q155: 13.9616 | R155: 2881.3138 | S155: 16.5063 | T155: 0.3034 | U155: 0.0232 | V155: 1.9877 | AA155: 11 | AB155: 6.1349 | AC155: 2484.7098 | AD155: 3.9697 | AE155: 0.0252 | AF155: 0.0201 | AG155: 0.2512
P156: 12 | Q156: 13.1396 | R156: 2743.6411 | S156: 15.5905 | T156: 0.2838 | U156: 0.022 | V156: 1.8026 | AA156: 12 | AB156: 5.5533 | AC156: 2354.7095 | AD156: 3.6517 | AE156: 0.0234 | AF156: 0.0189 | AG156: 0.2286
P157: 13 | Q157: 12.3177 | R157: 2605.9684 | S157: 14.6748 | T157: 0.2642 | U157: 0.0208 | V157: 1.6175 | AA157: 13 | AB157: 4.9716 | AC157: 2224.7093 | AD157: 3.3337 | AE157: 0.0217 | AF157: 0.0178 | AG157: 0.206
P158: 14 | Q158: 11.4957 | R158: 2468.2957 | S158: 13.759 | T158: 0.2446 | U158: 0.0196 | V158: 1.4324 | AA158: 14 | AB158: 4.39 | AC158: 2094.709 | AD158: 3.0157 | AE158: 0.0199 | AF158: 0.0166 | AG158: 0.1833
P159: 15 | Q159: 10.6738 | R159: 2330.623 | S159: 12.8432 | T159: 0.225 | U159: 0.0184 | V159: 1.2474 | AA159: 15 | AB159: 3.8083 | AC159: 1964.7088 | AD159: 2.6977 | AE159: 0.0182 | AF159: 0.0154 | AG159: 0.1607
P160: 16 | Q160: 10.6231 | R160: 2266.5116 | S160: 12.7714 | T160: 0.2193 | U160: 0.0175 | V160: 1.168 | AA160: 16 | AB160: 3.6564 | AC160: 1904.7758 | AD160: 2.5065 | AE160: 0.018 | AF160: 0.0145 | AG160: 0.1489
P161: 17 | Q161: 10.5725 | R161: 2202.4002 | S161: 12.6995 | T161: 0.2136 | U161: 0.0167 | V161: 1.0887 | AA161: 17 | AB161: 3.5045 | AC161: 1844.8428 | AD161: 2.3153 | AE161: 0.0179 | AF161: 0.0135 | AG161: 0.137
P162: 18 | Q162: 10.5218 | R162: 2138.2887 | S162: 12.6277 | T162: 0.2079 | U162: 0.0158 | V162: 1.0093 | AA162: 18 | AB162: 3.3526 | AC162: 1784.9098 | AD162: 2.1241 | AE162: 0.0178 | AF162: 0.0126 | AG162: 0.1251
P163: 19 | Q163: 10.4712 | R163: 2074.1773 | S163: 12.5558 | T163: 0.2022 | U163: 0.015 | V163: 0.93 | AA163: 19 | AB163: 3.2006 | AC163: 1724.9767 | AD163: 1.9328 | AE163: 0.0176 | AF163: 0.0116 | AG163: 0.1133
P164: 20 | Q164: 10.4205 | R164: 2010.0658 | S164: 12.484 | T164: 0.1965 | U164: 0.0141 | V164: 0.8506 | AA164: 20 | AB164: 3.0487 | AC164: 1665.0437 | AD164: 1.7416 | AE164: 0.0175 | AF164: 0.0107 | AG164: 0.1014
P165: 21 | Q165: 8.8915 | R165: 1886.2217 | S165: 11.1331 | T165: 0.169 | U165: 0.0139 | V165: 0.7311 | AA165: 21 | AB165: 2.5386 | AC165: 1582.512 | AD165: 1.601 | AE165: 0.0148 | AF165: 0.0109 | AG165: 0.0929
P166: 22 | Q166: 7.3625 | R166: 1762.3776 | S166: 9.7823 | T166: 0.1416 | U166: 0.0137 | V166: 0.6115 | AA166: 22 | AB166: 2.0285 | AC166: 1499.9803 | AD166: 1.4604 | AE166: 0.0122 | AF166: 0.0111 | AG166: 0.0843
P167: 23 | Q167: 5.8334 | R167: 1638.5335 | S167: 8.4314 | T167: 0.1142 | U167: 0.0134 | V167: 0.492 | AA167: 23 | AB167: 1.5183 | AC167: 1417.4486 | AD167: 1.3197 | AE167: 0.0095 | AF167: 0.0114 | AG167: 0.0758
P168: 24 | Q168: 4.3044 | R168: 1514.6894 | S168: 7.0806 | T168: 0.0868 | U168: 0.0132 | V168: 0.3724 | AA168: 24 | AB168: 1.0082 | AC168: 1334.9169 | AD168: 1.1791 | AE168: 0.0068 | AF168: 0.0116 | AG168: 0.0673
P169: 25 | Q169: 2.7754 | R169: 1390.8452 | S169: 5.7297 | T169: 0.0594 | U169: 0.013 | V169: 0.2529 | AA169: 25 | AB169: 0.4981 | AC169: 1252.3852 | AD169: 1.0385 | AE169: 0.0041 | AF169: 0.0118 | AG169: 0.0587
P170: 26 | Q170: 2.7002 | R170: 1372.4617 | S170: 5.6623 | T170: 0.0576 | U170: 0.0128 | V170: 0.2422 | AA170: 26 | AB170: 0.4776 | AC170: 1237.6052 | AD170: 0.9754 | AE170: 0.004 | AF170: 0.0117 | AG170: 0.0559
P171: 27 | Q171: 2.625 | R171: 1354.0782 | S171: 5.5949 | T171: 0.0558 | U171: 0.0126 | V171: 0.2315 | AA171: 27 | AB171: 0.4571 | AC171: 1222.8253 | AD171: 0.9124 | AE171: 0.0039 | AF171: 0.0115 | AG171: 0.0531
P172: 28 | Q172: 2.5498 | R172: 1335.6947 | S172: 5.5274 | T172: 0.0539 | U172: 0.0124 | V172: 0.2208 | AA172: 28 | AB172: 0.4366 | AC172: 1208.0454 | AD172: 0.8493 | AE172: 0.0038 | AF172: 0.0114 | AG172: 0.0503
P173: 29 | Q173: 2.4747 | R173: 1317.3112 | S173: 5.46 | T173: 0.0521 | U173: 0.0123 | V173: 0.2102 | AA173: 29 | AB173: 0.4162 | AC173: 1193.2654 | AD173: 0.7863 | AE173: 0.0037 | AF173: 0.0113 | AG173: 0.0474
P174: 30 | Q174: 2.3995 | R174: 1298.9277 | S174: 5.3926 | T174: 0.0503 | U174: 0.0121 | V174: 0.1995 | AA174: 30 | AB174: 0.3957 | AC174: 1178.4855 | AD174: 0.7233 | AE174: 0.0036 | AF174: 0.0111 | AG174: 0.0446
P175: 31 | Q175: 2.342 | R175: 1282.7142 | S175: 5.3486 | T175: 0.0492 | U175: 0.012 | V175: 0.1916 | AA175: 31 | AB175: 0.3799 | AC175: 1165.3188 | AD175: 0.6873 | AE175: 0.0035 | AF175: 0.011 | AG175: 0.0424
P176: 32 | Q176: 2.2845 | R176: 1266.5008 | S176: 5.3047 | T176: 0.048 | U176: 0.0118 | V176: 0.1836 | AA176: 32 | AB176: 0.3642 | AC176: 1152.1522 | AD176: 0.6513 | AE176: 0.0035 | AF176: 0.0109 | AG176: 0.0401
P177: 33 | Q177: 2.227 | R177: 1250.2874 | S177: 5.2608 | T177: 0.0469 | U177: 0.0117 | V177: 0.1757 | AA177: 33 | AB177: 0.3485 | AC177: 1138.9856 | AD177: 0.6154 | AE177: 0.0034 | AF177: 0.0108 | AG177: 0.0379
P178: 34 | Q178: 2.1695 | R178: 1234.0739 | S178: 5.2169 | T178: 0.0457 | U178: 0.0116 | V178: 0.1678 | AA178: 34 | AB178: 0.3327 | AC178: 1125.819 | AD178: 0.5794 | AE178: 0.0033 | AF178: 0.0106 | AG178: 0.0356
P179: 35 | Q179: 2.112 | R179: 1217.8605 | S179: 5.1729 | T179: 0.0445 | U179: 0.0114 | V179: 0.1598 | AA179: 35 | AB179: 0.317 | AC179: 1112.6523 | AD179: 0.5435 | AE179: 0.0033 | AF179: 0.0105 | AG179: 0.0334
P180: 36 | Q180: 2.0857 | R180: 1213.3793 | S180: 5.0994 | T180: 0.0437 | U180: 0.0114 | V180: 0.1557 | AA180: 36 | AB180: 0.3098 | AC180: 1109.2246 | AD180: 0.5225 | AE180: 0.0032 | AF180: 0.0105 | AG180: 0.0319
P181: 37 | Q181: 2.0595 | R181: 1208.898 | S181: 5.0259 | T181: 0.0429 | U181: 0.0113 | V181: 0.1516 | AA181: 37 | AB181: 0.3026 | AC181: 1105.7968 | AD181: 0.5015 | AE181: 0.0032 | AF181: 0.0104 | AG181: 0.0305
P182: 38 | Q182: 2.0332 | R182: 1204.4168 | S182: 4.9524 | T182: 0.0421 | U182: 0.0113 | V182: 0.1475 | AA182: 38 | AB182: 0.2955 | AC182: 1102.369 | AD182: 0.4805 | AE182: 0.0031 | AF182: 0.0104 | AG182: 0.029
P183: 39 | Q183: 2.0069 | R183: 1199.9356 | S183: 4.8788 | T183: 0.0413 | U183: 0.0112 | V183: 0.1434 | AA183: 39 | AB183: 0.2883 | AC183: 1098.9412 | AD183: 0.4595 | AE183: 0.0031 | AF183: 0.0104 | AG183: 0.0276
P184: 40 | Q184: 1.9806 | R184: 1195.4543 | S184: 4.8053 | T184: 0.0405 | U184: 0.0112 | V184: 0.1393 | AA184: 40 | AB184: 0.2811 | AC184: 1095.5135 | AD184: 0.4385 | AE184: 0.003 | AF184: 0.0103 | AG184: 0.0262
P185: 41 | Q185: 1.9689 | R185: 1187.5854 | S185: 4.7071 | T185: 0.0397 | U185: 0.0111 | V185: 0.1362 | AA185: 41 | AB185: 0.2757 | AC185: 1088.6622 | AD185: 0.4217 | AE185: 0.003 | AF185: 0.0103 | AG185: 0.0249
P186: 42 | Q186: 1.9571 | R186: 1179.7165 | S186: 4.6089 | T186: 0.0389 | U186: 0.011 | V186: 0.133 | AA186: 42 | AB186: 0.2702 | AC186: 1081.8109 | AD186: 0.405 | AE186: 0.0029 | AF186: 0.0102 | AG186: 0.0237
P187: 43 | Q187: 1.9453 | R187: 1171.8476 | S187: 4.5106 | T187: 0.0382 | U187: 0.0109 | V187: 0.1298 | AA187: 43 | AB187: 0.2648 | AC187: 1074.9596 | AD187: 0.3883 | AE187: 0.0029 | AF187: 0.0101 | AG187: 0.0224
P188: 44 | Q188: 1.9336 | R188: 1163.9787 | S188: 4.4124 | T188: 0.0374 | U188: 0.0108 | V188: 0.1267 | AA188: 44 | AB188: 0.2593 | AC188: 1068.1083 | AD188: 0.3715 | AE188: 0.0028 | AF188: 0.01 | AG188: 0.0212
P189: 45 | Q189: 1.9218 | R189: 1156.1098 | S189: 4.3142 | T189: 0.0367 | U189: 0.0108 | V189: 0.1235 | AA189: 45 | AB189: 0.2539 | AC189: 1061.257 | AD189: 0.3548 | AE189: 0.0027 | AF189: 0.01 | AG189: 0.0199
P190: 46 | Q190: 1.8909 | R190: 1152.6296 | S190: 4.2858 | T190: 0.0369 | U190: 0.0107 | V190: 0.1221 | AA190: 46 | AB190: 0.2475 | AC190: 1059.087 | AD190: 0.3451 | AE190: 0.0027 | AF190: 0.01 | AG190: 0.0193
P191: 47 | Q191: 1.86 | R191: 1149.1493 | S191: 4.2573 | T191: 0.0371 | U191: 0.0107 | V191: 0.1208 | AA191: 47 | AB191: 0.241 | AC191: 1056.9171 | AD191: 0.3354 | AE191: 0.0027 | AF191: 0.0099 | AG191: 0.0187
P192: 48 | Q192: 1.8291 | R192: 1145.6691 | S192: 4.2289 | T192: 0.0373 | U192: 0.0107 | V192: 0.1194 | AA192: 48 | AB192: 0.2346 | AC192: 1054.7471 | AD192: 0.3257 | AE192: 0.0027 | AF192: 0.0099 | AG192: 0.0181
P193: 49 | Q193: 1.7982 | R193: 1142.1889 | S193: 4.2004 | T193: 0.0375 | U193: 0.0106 | V193: 0.118 | AA193: 49 | AB193: 0.2281 | AC193: 1052.5771 | AD193: 0.316 | AE193: 0.0027 | AF193: 0.0099 | AG193: 0.0175
P194: 50 | Q194: 1.7673 | R194: 1138.7086 | S194: 4.172 | T194: 0.0377 | U194: 0.0106 | V194: 0.1166 | AA194: 50 | AB194: 0.2217 | AC194: 1050.4072 | AD194: 0.3063 | AE194: 0.0027 | AF194: 0.0099 | AG194: 0.0169
P195: 51 | Q195: 1.7408 | R195: 1137.0732 | S195: 4.2359 | T195: 0.0389 | U195: 0.0106 | V195: 0.1169 | AA195: 51 | AB195: 0.2164 | AC195: 1048.78 | AD195: 0.3035 | AE195: 0.0027 | AF195: 0.0098 | AG195: 0.0165
P196: 52 | Q196: 1.7143 | R196: 1135.4378 | S196: 4.2999 | T196: 0.0402 | U196: 0.0106 | V196: 0.1172 | AA196: 52 | AB196: 0.2111 | AC196: 1047.1529 | AD196: 0.3006 | AE196: 0.0027 | AF196: 0.0098 | AG196: 0.0161
P197: 53 | Q197: 1.6878 | R197: 1133.8024 | S197: 4.3638 | T197: 0.0414 | U197: 0.0105 | V197: 0.1175 | AA197: 53 | AB197: 0.2059 | AC197: 1045.5257 | AD197: 0.2977 | AE197: 0.0028 | AF197: 0.0098 | AG197: 0.0157
P198: 54 | Q198: 1.6613 | R198: 1132.167 | S198: 4.4278 | T198: 0.0427 | U198: 0.0105 | V198: 0.1178 | AA198: 54 | AB198: 0.2006 | AC198: 1043.8985 | AD198: 0.2948 | AE198: 0.0028 | AF198: 0.0098 | AG198: 0.0152
P199: 55 | Q199: 1.6348 | R199: 1130.5315 | S199: 4.4917 | T199: 0.044 | U199: 0.0105 | V199: 0.1181 | AA199: 55 | AB199: 0.1954 | AC199: 1042.2714 | AD199: 0.2919 | AE199: 0.0028 | AF199: 0.0098 | AG199: 0.0148
P200: 56 | Q200: 1.6585 | R200: 1135.2651 | S200: 4.5276 | T200: 0.0451 | U200: 0.0105 | V200: 0.1215 | AA200: 56 | AB200: 0.1959 | AC200: 1045.108 | AD200: 0.2934 | AE200: 0.0029 | AF200: 0.0098 | AG200: 0.0148
P201: 57 | Q201: 1.6822 | R201: 1139.9987 | S201: 4.5636 | T201: 0.0463 | U201: 0.0105 | V201: 0.1249 | AA201: 57 | AB201: 0.1963 | AC201: 1047.9446 | AD201: 0.2949 | AE201: 0.0029 | AF201: 0.0098 | AG201: 0.0149
P202: 58 | Q202: 1.7059 | R202: 1144.7323 | S202: 4.5995 | T202: 0.0474 | U202: 0.0106 | V202: 0.1283 | AA202: 58 | AB202: 0.1968 | AC202: 1050.7812 | AD202: 0.2965 | AE202: 0.003 | AF202: 0.0098 | AG202: 0.0149
... 14 more rows

Sheet Traffic Projection
A1: Current Traffic - 2018
A29: Traffic Projection 2060
A45: Traffic Projection 2060

Sheet Deflation Factors
A1: Table 10.1 - GROSS DOMESTIC PRODUCT AND DEFLATORS USED IN THE HISTORICAL TABLES: 1940 - 2025
A2: (Fiscal Year 2012 = 1.000)
A3: Fiscal Year | B3: GDP (in billions of dollars) | C3: GDP (Chained) Price Index | D3: Composite Outlay Deflators
D4: Total | E4: Total Defense | F4: Total Nondefense | G4: Payment for Individuals | J4: Other Grants | K4: Net Interest | L4: Undis- tributed Offsetting Receipts | M4: All Other | N4: Addendum: Direct Capital
G5: Total | H5: Direct | I5: Grants | N5: Total | O5: Defense | P5: Nondefense
A6: 1940 | B6: 98.2 | C6: 0.0771 | D6: 0.0653 | E6: 0.0614 | F6: 0.0662 | G6: 0.0741 | H6: 0.0741 | I6: 0.0741 | J6: 0.0463 | K6: 0.0771 | L6: 0.0442 | M6: 0.0627 | N6: 0.1378 | O6: 0.143 | P6: 0.1357
A7: 1941 | B7: 116.2 | C7: 0.08 | D7: 0.0724 | E7: 0.0756 | F7: 0.0697 | G7: 0.0767 | H7: 0.0767 | I7: 0.0767 | J7: 0.0419 | K7: 0.08 | L7: 0.0439 | M7: 0.0641 | N7: 0.1487 | O7: 0.1516 | P7: 0.1421
A8: 1942 | B8: 147.7 | C8: 0.086 | D8: 0.0823 | E8: 0.0925 | F8: 0.0633 | G8: 0.0839 | H8: 0.0839 | I8: 0.0839 | J8: 0.0411 | K8: 0.086 | L8: 0.0471 | M8: 0.0553 | N8: 0.1555 | O8: 0.1557 | P8: 0.1533
A9: 1943 | B9: 184.6 | C9: 0.0915 | D9: 0.0912 | E9: 0.0993 | F9: 0.0625 | G9: 0.0929 | H9: 0.0929 | I9: 0.0929 | J9: 0.0438 | K9: 0.0915 | L9: 0.0516 | M9: 0.0542 | N9: 0.1525 | O9: 0.1525 | P9: 0.1562
A10: 1944 | B10: 213.8 | C10: 0.0948 | D10: 0.0837 | E10: 0.0869 | F10: 0.0676 | G10: 0.0998 | H10: 0.0998 | I10: 0.0998 | J10: 0.0461 | K10: 0.0948 | L10: 0.0568 | M10: 0.0578 | N10: 0.1481 | O10: 0.148 | P10: 0.1633
A11: 1945 | B11: 226.4 | C11: 0.0971 | D11: 0.0789 | E11: 0.079 | F11: 0.0778 | G11: 0.105 | H11: 0.105 | I11: 0.1047 | J11: 0.0466 | K11: 0.0971 | L11: 0.0599 | M11: 0.0614 | N11: 0.1381 | O11: 0.138 | P11: 0.169
A12: 1946 | B12: 228 | C12: 0.1045 | D12: 0.0793 | E12: 0.0754 | F12: 0.0958 | G12: 0.1106 | H12: 0.1106 | I12: 0.1104 | J12: 0.0514 | K12: 0.1045 | L12: 0.0623 | M12: 0.0667 | N12: 0.1402 | O12: 0.1398 | P12: 0.1596
A13: 1947 | B13: 238.9 | C13: 0.1159 | D13: 0.0897 | E13: 0.0813 | F13: 0.0955 | G13: 0.1189 | H13: 0.1189 | I13: 0.1188 | J13: 0.1246 | K13: 0.1159 | L13: 0.0661 | M13: 0.0688 | N13: 0.1561 | O13: 0.1557 | P13: 0.1581
A14: 1948 | B14: 261.9 | C14: 0.1269 | D14: 0.0932 | E14: 0.0763 | F14: 0.1034 | G14: 0.1299 | H14: 0.1299 | I14: 0.1298 | J14: 0.07 | K14: 0.1269 | L14: 0.0714 | M14: 0.0757 | N14: 0.1736 | O14: 0.1708 | P14: 0.184
A15: 1949 | B15: 276.5 | C15: 0.1312 | D15: 0.0896 | E15: 0.0759 | F15: 0.0988 | G15: 0.1333 | H15: 0.1333 | I15: 0.1332 | J15: 0.0737 | K15: 0.1312 | L15: 0.0694 | M15: 0.0737 | N15: 0.1823 | O15: 0.18 | P15: 0.1877
A16: 1950 | B16: 278.675 | C16: 0.1294 | D16: 0.0942 | E16: 0.0767 | F16: 0.1056 | G16: 0.1316 | H16: 0.1317 | I16: 0.1312 | J16: 0.0699 | K16: 0.1294 | L16: 0.0731 | M16: 0.0788 | N16: 0.1804 | O16: 0.1793 | P16: 0.1821
A17: 1951 | B17: 327.05 | C17: 0.1363 | D17: 0.0947 | E17: 0.0813 | F17: 0.1151 | G17: 0.139 | H17: 0.1391 | I17: 0.1385 | J17: 0.0836 | K17: 0.1363 | L17: 0.0721 | M17: 0.0805 | N17: 0.1924 | O17: 0.193 | P17: 0.1898
A18: 1952 | B18: 357.1 | C18: 0.1418 | D18: 0.0944 | E18: 0.0845 | F18: 0.1259 | G18: 0.1446 | H18: 0.1446 | I18: 0.1441 | J18: 0.0839 | K18: 0.1418 | L18: 0.0776 | M18: 0.0877 | N18: 0.2019 | O18: 0.2018 | P18: 0.2025
A19: 1953 | B19: 382.05 | C19: 0.1444 | D19: 0.1015 | E19: 0.0933 | F19: 0.1268 | G19: 0.1467 | H19: 0.1468 | I19: 0.1463 | J19: 0.0879 | K19: 0.1444 | L19: 0.0821 | M19: 0.0922 | N19: 0.2045 | O19: 0.2042 | P19: 0.2089
A20: 1954 | B20: 387.15 | C20: 0.1461 | D20: 0.1047 | E20: 0.0949 | F20: 0.1366 | G20: 0.1486 | H20: 0.1486 | I20: 0.1484 | J20: 0.0842 | K20: 0.1461 | L20: 0.085 | M20: 0.0987 | N20: 0.2026 | O20: 0.2023 | P20: 0.2073
A21: 1955 | B21: 406.325 | C21: 0.1472 | D21: 0.1081 | E21: 0.098 | F21: 0.1306 | G21: 0.1485 | H21: 0.1485 | I21: 0.1484 | J21: 0.0858 | K21: 0.1472 | L21: 0.0873 | M21: 0.0954 | N21: 0.2083 | O21: 0.2086 | P21: 0.2033
A22: 1956 | B22: 438.25 | C22: 0.151 | D22: 0.113 | E22: 0.1039 | F22: 0.1302 | G22: 0.1503 | H22: 0.1503 | I22: 0.1502 | J22: 0.0871 | K22: 0.151 | L22: 0.0883 | M22: 0.0951 | N22: 0.2193 | O22: 0.2198 | P22: 0.2107
A23: 1957 | B23: 463.375 | C23: 0.1566 | D23: 0.1186 | E23: 0.1093 | F23: 0.1353 | G23: 0.1545 | H23: 0.1545 | I23: 0.1544 | J23: 0.095 | K23: 0.1566 | L23: 0.0904 | M23: 0.0984 | N23: 0.2315 | O23: 0.2322 | P23: 0.2212
A24: 1958 | B24: 473.475 | C24: 0.1613 | D24: 0.1256 | E24: 0.1144 | F24: 0.1441 | G24: 0.1591 | H24: 0.1591 | I24: 0.159 | J24: 0.1053 | K24: 0.1613 | L24: 0.0967 | M24: 0.1069 | N24: 0.2388 | O24: 0.2397 | P24: 0.228
A25: 1959 | B25: 504.6 | C25: 0.1638 | D25: 0.1308 | E25: 0.1223 | F25: 0.142 | G25: 0.1613 | H25: 0.1613 | I25: 0.1612 | J25: 0.1126 | K25: 0.1638 | L25: 0.1015 | M25: 0.1106 | N25: 0.243 | O25: 0.244 | P25: 0.2317
A26: 1960 | B26: 534.325 | C26: 0.1661 | D26: 0.1328 | E26: 0.121 | F26: 0.1486 | G26: 0.1643 | H26: 0.1644 | I26: 0.1642 | J26: 0.1132 | K26: 0.1661 | L26: 0.1007 | M26: 0.1143 | N26: 0.2447 | O26: 0.2459 | P26: 0.2348
A27: 1961 | B27: 546.575 | C27: 0.1683 | D27: 0.1358 | E27: 0.1233 | F27: 0.1516 | G27: 0.1666 | H27: 0.1666 | I27: 0.1665 | J27: 0.1111 | K27: 0.1683 | L27: 0.1057 | M27: 0.1205 | N27: 0.2461 | O27: 0.2473 | P27: 0.2366
A28: 1962 | B28: 585.675 | C28: 0.17 | D28: 0.1359 | E28: 0.1234 | F28: 0.1505 | G28: 0.1682 | H28: 0.1682 | I28: 0.1681 | J28: 0.1115 | K28: 0.17 | L28: 0.1078 | M28: 0.1224 | N28: 0.2481 | O28: 0.2494 | P28: 0.2387
A29: 1963 | B29: 618.2 | C29: 0.172 | D29: 0.1418 | E29: 0.129 | F29: 0.1562 | G29: 0.1702 | H29: 0.1702 | I29: 0.1701 | J29: 0.1155 | K29: 0.172 | L29: 0.1113 | M29: 0.1302 | N29: 0.2521 | O29: 0.2536 | P29: 0.241
A30: 1964 | B30: 661.7 | C30: 0.1742 | D30: 0.1441 | E30: 0.1307 | F30: 0.158 | G30: 0.1726 | H30: 0.1726 | I30: 0.1725 | J30: 0.1175 | K30: 0.1742 | L30: 0.1149 | M30: 0.1366 | N30: 0.2525 | O30: 0.2538 | P30: 0.2446
A31: 1965 | B31: 709.325 | C31: 0.1772 | D31: 0.1461 | E31: 0.1303 | F31: 0.1606 | G31: 0.1749 | H31: 0.175 | I31: 0.1748 | J31: 0.1207 | K31: 0.1772 | L31: 0.1214 | M31: 0.1423 | N31: 0.2531 | O31: 0.2545 | P31: 0.2468
A32: 1966 | B32: 780.475 | C32: 0.181 | D32: 0.1501 | E32: 0.1365 | F32: 0.1624 | G32: 0.1781 | H32: 0.1781 | I32: 0.178 | J32: 0.1174 | K32: 0.181 | L32: 0.1255 | M32: 0.1464 | N32: 0.2552 | O32: 0.2566 | P32: 0.2482
A33: 1967 | B33: 836.525 | C33: 0.1865 | D33: 0.1534 | E33: 0.1409 | F33: 0.1656 | G33: 0.1829 | H33: 0.1829 | I33: 0.1828 | J33: 0.1189 | K33: 0.1865 | L33: 0.1287 | M33: 0.1484 | N33: 0.259 | O33: 0.26 | P33: 0.252
A34: 1968 | B34: 897.575 | C34: 0.193 | D34: 0.159 | E34: 0.1476 | F34: 0.1703 | G34: 0.1886 | H34: 0.1886 | I34: 0.1885 | J34: 0.1231 | K34: 0.193 | L34: 0.1334 | M34: 0.1516 | N34: 0.2647 | O34: 0.2655 | P34: 0.2577
A35: 1969 | B35: 980.275 | C35: 0.2018 | D35: 0.1691 | E35: 0.156 | F35: 0.1816 | G35: 0.1966 | H35: 0.1966 | I35: 0.1965 | J35: 0.1305 | K35: 0.2018 | L35: 0.1427 | M35: 0.1632 | N35: 0.2748 | O35: 0.2755 | P35: 0.2677
A36: 1970 | B36: 1046.675 | C36: 0.2126 | D36: 0.1785 | E36: 0.164 | F36: 0.1907 | G36: 0.2059 | H36: 0.2059 | I36: 0.2058 | J36: 0.1393 | K36: 0.2126 | L36: 0.1545 | M36: 0.1733 | N36: 0.289 | O36: 0.2897 | P36: 0.2826
A37: 1971 | B37: 1116.55 | C37: 0.2234 | D37: 0.1909 | E37: 0.1742 | F37: 0.2025 | G37: 0.2151 | H37: 0.2151 | I37: 0.215 | J37: 0.1491 | K37: 0.2234 | L37: 0.1701 | M37: 0.1897 | N37: 0.3069 | O37: 0.3079 | P37: 0.3002
A38: 1972 | B38: 1216.25 | C38: 0.234 | D38: 0.2033 | E38: 0.1908 | F38: 0.2105 | G38: 0.2233 | H38: 0.2233 | I38: 0.2232 | J38: 0.1561 | K38: 0.234 | L38: 0.1832 | M38: 0.2021 | N38: 0.3302 | O38: 0.3333 | P38: 0.3147
A39: 1973 | B39: 1352.725 | C39: 0.2442 | D39: 0.2126 | E39: 0.2042 | F39: 0.2166 | G39: 0.2317 | H39: 0.2317 | I39: 0.2316 | J39: 0.1594 | K39: 0.2442 | L39: 0.1938 | M39: 0.2138 | N39: 0.3515 | O39: 0.3569 | P39: 0.328
A40: 1974 | B40: 1482.85 | C40: 0.2616 | D40: 0.2304 | E40: 0.2181 | F40: 0.236 | G40: 0.2504 | H40: 0.2504 | I40: 0.2503 | J40: 0.1744 | K40: 0.2616 | L40: 0.2057 | M40: 0.2261 | N40: 0.3725 | O40: 0.3771 | P40: 0.3533
A41: 1975 | B41: 1606.925 | C41: 0.2886 | D41: 0.2528 | E41: 0.2376 | F41: 0.2586 | G41: 0.2762 | H41: 0.2762 | I41: 0.2761 | J41: 0.1934 | K41: 0.2886 | L41: 0.2211 | M41: 0.241 | N41: 0.4049 | O41: 0.4083 | P41: 0.3924
A42: 1976 | B42: 1786.1 | C42: 0.3087 | D42: 0.2709 | E42: 0.2525 | F42: 0.2773 | G42: 0.2942 | H42: 0.2942 | I42: 0.2941 | J42: 0.2086 | K42: 0.3087 | L42: 0.2395 | M42: 0.2624 | N42: 0.4302 | O42: 0.4342 | P42: 0.4162
A43: TQ | B43: 471.65 | C43: 0.318 | D43: 0.2776 | E43: 0.2574 | F43: 0.2844 | G43: 0.3034 | H43: 0.3034 | I43: 0.3033 | J43: 0.2163 | K43: 0.318 | L43: 0.2467 | M43: 0.2681 | N43: 0.4442 | O43: 0.4497 | P43: 0.4274
A44: 1977 | B44: 2024.325 | C44: 0.331 | D44: 0.2906 | E44: 0.2725 | F44: 0.2968 | G44: 0.3163 | H44: 0.3164 | I44: 0.3162 | J44: 0.2237 | K44: 0.331 | L44: 0.2582 | M44: 0.2818 | N44: 0.4632 | O44: 0.4696 | P44: 0.4409
A45: 1978 | B45: 2273.45 | C45: 0.3533 | D45: 0.3088 | E45: 0.2911 | F45: 0.3144 | G45: 0.3375 | H45: 0.3376 | I45: 0.3374 | J45: 0.2379 | K45: 0.3533 | L45: 0.2746 | M45: 0.2976 | N45: 0.4918 | O45: 0.5007 | P45: 0.4634
A46: 1979 | B46: 2565.575 | C46: 0.3818 | D46: 0.3356 | E46: 0.3149 | F46: 0.3424 | G46: 0.3655 | H46: 0.3656 | I46: 0.3654 | J46: 0.2597 | K46: 0.3818 | L46: 0.2922 | M46: 0.3209 | N46: 0.5257 | O46: 0.535 | P46: 0.4944
A47: 1980 | B47: 2791.9 | C47: 0.4151 | D47: 0.3711 | E47: 0.3485 | F47: 0.3783 | G47: 0.4042 | H47: 0.4043 | I47: 0.4041 | J47: 0.2889 | K47: 0.4151 | L47: 0.3172 | M47: 0.3443 | N47: 0.5652 | O47: 0.5721 | P47: 0.5392
A48: 1981 | B48: 3133.225 | C48: 0.4559 | D48: 0.4122 | E48: 0.3865 | F48: 0.4206 | G48: 0.4436 | H48: 0.4436 | I48: 0.4434 | J48: 0.323 | K48: 0.4559 | L48: 0.346 | M48: 0.3753 | N48: 0.6155 | O48: 0.6223 | P48: 0.5871
A49: 1982 | B49: 3313.35 | C49: 0.4876 | D49: 0.4439 | E49: 0.421 | F49: 0.452 | G49: 0.4711 | H49: 0.4711 | I49: 0.4709 | J49: 0.352 | K49: 0.4876 | L49: 0.3637 | M49: 0.3942 | N49: 0.6637 | O49: 0.6703 | P49: 0.6292
A50: 1983 | B50: 3536 | C50: 0.5089 | D50: 0.4657 | E50: 0.4417 | F50: 0.4747 | G50: 0.4926 | H50: 0.4926 | I50: 0.4924 | J50: 0.3702 | K50: 0.5089 | L50: 0.3757 | M50: 0.4054 | N50: 0.7028 | O50: 0.7106 | P50: 0.651
A51: 1984 | B51: 3949.175 | C51: 0.5271 | D51: 0.488 | E51: 0.4646 | F51: 0.4971 | G51: 0.5115 | H51: 0.5115 | I51: 0.5113 | J51: 0.3895 | K51: 0.5271 | L51: 0.3858 | M51: 0.4282 | N51: 0.7314 | O51: 0.7415 | P51: 0.6689
A52: 1985 | B52: 4265.125 | C52: 0.5447 | D52: 0.5059 | E52: 0.4827 | F52: 0.515 | G52: 0.5294 | H52: 0.5294 | I52: 0.5291 | J52: 0.406 | K52: 0.5447 | L52: 0.4023 | M52: 0.4465 | N52: 0.7382 | O52: 0.7474 | P52: 0.6838
A53: 1986 | B53: 4526.25 | C53: 0.5569 | D53: 0.5165 | E53: 0.4935 | F53: 0.5258 | G53: 0.5432 | H53: 0.5432 | I53: 0.5429 | J53: 0.4206 | K53: 0.5569 | L53: 0.4072 | M53: 0.4464 | N53: 0.733 | O53: 0.7389 | P53: 0.6921
A54: 1987 | B54: 4767.65 | C54: 0.5694 | D54: 0.5314 | E54: 0.5008 | F54: 0.5444 | G54: 0.5571 | H54: 0.5572 | I54: 0.5569 | J54: 0.4421 | K54: 0.5694 | L54: 0.4088 | M54: 0.456 | N54: 0.7258 | O54: 0.7295 | P54: 0.7016
A55: 1988 | B55: 5138.55 | C55: 0.5878 | D55: 0.5497 | E55: 0.5134 | F55: 0.5646 | G55: 0.5783 | H55: 0.5784 | I55: 0.5779 | J55: 0.459 | K55: 0.5878 | L55: 0.4217 | M55: 0.4737 | N55: 0.7272 | O55: 0.7282 | P55: 0.7216
A56: 1989 | B56: 5554.675 | C56: 0.6116 | D56: 0.5714 | E56: 0.5332 | F56: 0.5866 | G56: 0.604 | H56: 0.6041 | I56: 0.6031 | J56: 0.4782 | K56: 0.6116 | L56: 0.4324 | M56: 0.4818 | N56: 0.7437 | O56: 0.7434 | P56: 0.7455
A57: 1990 | B57: 5898.75 | C57: 0.634 | D57: 0.588 | E57: 0.5515 | F57: 0.6004 | G57: 0.6286 | H57: 0.6288 | I57: 0.6273 | J57: 0.5014 | K57: 0.634 | L57: 0.4442 | M57: 0.4834 | N57: 0.757 | O57: 0.7557 | P57: 0.7646
A58: 1991 | B58: 6093.175 | C58: 0.6566 | D58: 0.6143 | E58: 0.5788 | F58: 0.6243 | G58: 0.6536 | H58: 0.6538 | I58: 0.652 | J58: 0.5224 | K58: 0.6566 | L58: 0.4709 | M58: 0.5084 | N58: 0.7749 | O58: 0.7732 | P58: 0.7842
A59: 1992 | B59: 6416.25 | C59: 0.673 | D59: 0.6393 | E59: 0.588 | F59: 0.655 | G59: 0.6707 | H59: 0.671 | I59: 0.6689 | J59: 0.5378 | K59: 0.673 | L59: 0.4876 | M59: 0.5532 | N59: 0.7868 | O59: 0.7859 | P59: 0.7907
A60: 1993 | B60: 6775.325 | C60: 0.6888 | D60: 0.6582 | E60: 0.5939 | F60: 0.6773 | G60: 0.6879 | H60: 0.6884 | I60: 0.6856 | J60: 0.5546 | K60: 0.6888 | L60: 0.513 | M60: 0.596 | N60: 0.8057 | O60: 0.8063 | P60: 0.8035
A61: 1994 | B61: 7176.85 | C61: 0.7038 | D61: 0.6698 | E61: 0.5995 | F61: 0.6891 | G61: 0.7023 | H61: 0.7029 | I61: 0.6992 | J61: 0.5689 | K61: 0.7038 | L61: 0.5361 | M61: 0.6024 | N61: 0.825 | O61: 0.827 | P61: 0.8174
A62: 1995 | B62: 7560.425 | C62: 0.7188 | D62: 0.6897 | E62: 0.6111 | F62: 0.7097 | G62: 0.7174 | H62: 0.7181 | I62: 0.7143 | J62: 0.5884 | K62: 0.7188 | L62: 0.5531 | M62: 0.6429 | N62: 0.846 | O62: 0.8479 | P62: 0.8404
A63: 1996 | B63: 7951.325 | C63: 0.7323 | D63: 0.7042 | E63: 0.6243 | F63: 0.7232 | G63: 0.732 | H63: 0.7326 | I63: 0.7288 | J63: 0.6056 | K63: 0.7323 | L63: 0.5794 | M63: 0.6622 | N63: 0.8567 | O63: 0.8603 | P63: 0.8472
A64: 1997 | B64: 8451.025 | C64: 0.7453 | D64: 0.719 | E64: 0.634 | F64: 0.7392 | G64: 0.7468 | H64: 0.7474 | I64: 0.7435 | J64: 0.6173 | K64: 0.7453 | L64: 0.5937 | M64: 0.6771 | N64: 0.855 | O64: 0.8572 | P64: 0.8492
A65: 1998 | B65: 8930.8 | C65: 0.7546 | D65: 0.725 | E65: 0.646 | F65: 0.7426 | G65: 0.7538 | H65: 0.7543 | I65: 0.7515 | J65: 0.6251 | K65: 0.7546 | L65: 0.606 | M65: 0.6629 | N65: 0.8557 | O65: 0.8572 | P65: 0.8505
A66: 1999 | B66: 9479.35 | C66: 0.7643 | D66: 0.7339 | E66: 0.6589 | F66: 0.7504 | G66: 0.7628 | H66: 0.7632 | I66: 0.7608 | J66: 0.6403 | K66: 0.7643 | L66: 0.6245 | M66: 0.6818 | N66: 0.8643 | O66: 0.8675 | P66: 0.8562
A67: 2000 | B67: 10117.45 | C67: 0.78 | D67: 0.7525 | E67: 0.6821 | F67: 0.7681 | G67: 0.7807 | H67: 0.7812 | I67: 0.7784 | J67: 0.6646 | K67: 0.78 | L67: 0.6568 | M67: 0.7077 | N67: 0.8765 | O67: 0.8782 | P67: 0.8728
A68: 2001 | B68: 10526.5 | C68: 0.7984 | D68: 0.7722 | E68: 0.7054 | F68: 0.7867 | G68: 0.7981 | H68: 0.7985 | I68: 0.796 | J68: 0.6859 | K68: 0.7984 | L68: 0.6714 | M68: 0.7302 | N68: 0.8807 | O68: 0.88 | P68: 0.8821
A69: 2002 | B69: 10833.65 | C69: 0.8112 | D69: 0.7841 | E69: 0.7284 | F69: 0.7969 | G69: 0.8073 | H69: 0.8078 | I69: 0.8054 | J69: 0.6996 | K69: 0.8112 | L69: 0.7092 | M69: 0.7562 | N69: 0.8762 | O69: 0.8739 | P69: 0.8814
A70: 2003 | B70: 11283.8 | C70: 0.826 | D70: 0.8064 | E70: 0.7755 | F70: 0.8139 | G70: 0.8232 | H70: 0.8237 | I70: 0.8213 | J70: 0.7195 | K70: 0.826 | L70: 0.7476 | M70: 0.7885 | N70: 0.8831 | O70: 0.8822 | P70: 0.8854
A71: 2004 | B71: 12025.45 | C71: 0.8458 | D71: 0.8274 | E71: 0.8047 | F71: 0.8332 | G71: 0.8415 | H71: 0.8419 | I71: 0.8399 | J71: 0.7463 | K71: 0.8458 | L71: 0.7837 | M71: 0.8146 | N71: 0.895 | O71: 0.8943 | P71: 0.8971
A72: 2005 | B72: 12834.15 | C72: 0.8716 | D72: 0.8558 | E72: 0.8431 | F72: 0.8591 | G72: 0.8652 | H72: 0.8654 | I72: 0.864 | J72: 0.79 | K72: 0.8716 | L72: 0.8203 | M72: 0.8437 | N72: 0.9117 | O72: 0.9108 | P72: 0.9147
A73: 2006 | B73: 13638.375 | C73: 0.8995 | D73: 0.8854 | E73: 0.8792 | F73: 0.887 | G73: 0.8915 | H73: 0.8916 | I73: 0.8906 | J73: 0.8306 | K73: 0.8995 | L73: 0.8504 | M73: 0.8711 | N73: 0.9266 | O73: 0.9264 | P73: 0.9274
A74: 2007 | B74: 14290.8 | C74: 0.924 | D74: 0.9099 | E74: 0.9081 | F74: 0.9103 | G74: 0.9109 | H74: 0.9109 | I74: 0.9105 | J74: 0.8755 | K74: 0.924 | L74: 0.8812 | M74: 0.9033 | N74: 0.9396 | O74: 0.9401 | P74: 0.9381
A75: 2008 | B75: 14743.325 | C75: 0.9431 | D75: 0.9414 | E75: 0.9431 | F75: 0.9409 | G75: 0.9428 | H75: 0.9428 | I75: 0.9426 | J75: 0.9188 | K75: 0.9431 | L75: 0.9097 | M75: 0.9255 | N75: 0.9569 | O75: 0.9571 | P75: 0.956
A76: 2009 | B76: 14431.8 | C76: 0.954 | D76: 0.9413 | E76: 0.9412 | F76: 0.9414 | G76: 0.942 | H76: 0.942 | I76: 0.9421 | J76: 0.9323 | K76: 0.954 | L76: 0.9284 | M76: 0.9343 | N76: 0.9643 | O76: 0.9655 | P76: 0.9608
A77: 2010 | B77: 14838.85 | C77: 0.9622 | D77: 0.9581 | E77: 0.9583 | F77: 0.9581 | G77: 0.9583 | H77: 0.9583 | I77: 0.9581 | J77: 0.9473 | K77: 0.9622 | L77: 0.9551 | M77: 0.9633 | N77: 0.9698 | O77: 0.9697 | P77: 0.9703
A78: 2011 | B78: 15403.675 | C78: 0.9814 | D78: 0.9805 | E78: 0.9864 | F78: 0.9791 | G78: 0.9791 | H78: 0.9791 | I78: 0.9789 | J78: 0.974 | K78: 0.9814 | L78: 0.9888 | M78: 0.9869 | N78: 0.9895 | O78: 0.9887 | P78: 0.9917
A79: 2012 | B79: 16056.45 | C79: 1 | D79: 1 | E79: 1 | F79: 1 | G79: 1 | H79: 1 | I79: 1 | J79: 1 | K79: 1 | L79: 1 | M79: 1 | N79: 1 | O79: 1 | P79: 1
A80: 2013 | B80: 16603.775 | C80: 1.0184 | D80: 1.0142 | E80: 1.007 | F80: 1.0159 | G80: 1.0148 | H80: 1.0148 | I80: 1.0148 | J80: 1.0264 | K80: 1.0184 | L80: 1.0082 | M80: 1.0126 | N80: 1.004 | O80: 1.0031 | P80: 1.0065
A81: 2014 | B81: 17335.575 | C81: 1.038 | D81: 1.0302 | E81: 1.0234 | F81: 1.0316 | G81: 1.0301 | H81: 1.0301 | I81: 1.0302 | J81: 1.051 | K81: 1.038 | L81: 1.0426 | M81: 1.033 | N81: 1.018 | O81: 1.0162 | P81: 1.0235
A82: 2015 | B82: 18099.55 | C82: 1.05 | D82: 1.0355 | E82: 1.0285 | F82: 1.0369 | G82: 1.0344 | H82: 1.0344 | I82: 1.0346 | J82: 1.0609 | K82: 1.05 | L82: 1.0579 | M82: 1.0499 | N82: 1.0225 | O82: 1.0196 | P82: 1.0303
A83: 2016 | B83: 18554.775 | C83: 1.0593 | D83: 1.0424 | E83: 1.0328 | F83: 1.0441 | G83: 1.0416 | H83: 1.0416 | I83: 1.0417 | J83: 1.0651 | K83: 1.0593 | L83: 1.072 | M83: 1.0595 | N83: 1.021 | O83: 1.018 | P83: 1.0297
A84: 2017 | B84: 19287.65 | C84: 1.0781 | D84: 1.0597 | E84: 1.0471 | F84: 1.062 | G84: 1.0592 | H84: 1.0592 | I84: 1.0593 | J84: 1.0858 | K84: 1.0781 | L84: 1.1005 | M84: 1.0811 | N84: 1.0291 | O84: 1.0247 | P84: 1.0448
A85: 2018 | B85: 20335.525 | C85: 1.1032 | D85: 1.0839 | E85: 1.0762 | F85: 1.0853 | G85: 1.0811 | H85: 1.0811 | I85: 1.0813 | J85: 1.1208 | K85: 1.1032 | L85: 1.1428 | M85: 1.1171 | N85: 1.043 | O85: 1.0373 | P85: 1.0677
A86: 2019 | B86: 21215.7 | C86: 1.1246 | D86: 1.1029 | E86: 1.0968 | F86: 1.104 | G86: 1.0988 | H86: 1.0988 | I86: 1.0991 | J86: 1.1495 | K86: 1.1246 | L86: 1.1649 | M86: 1.1393 | N86: 1.0629 | O86: 1.0574 | P86: 1.0884
A87: 2020 estimate | B87: 22210.9 | C87: 1.1468 | D87: 1.127 | E87: 1.1182 | F87: 1.1285 | G87: 1.1233 | H87: 1.1233 | I87: 1.1236 | J87: 1.1794 | K87: 1.1468 | L87: 1.1879 | M87: 1.1615 | N87: 1.0846 | O87: 1.0782 | P87: 1.1099
A88: 2021 estimate | B88: 23353.1 | C88: 1.1697 | D88: 1.1516 | E88: 1.1402 | F88: 1.1538 | G88: 1.1487 | H88: 1.1487 | I88: 1.1491 | J88: 1.2156 | K88: 1.1697 | L88: 1.2116 | M88: 1.1824 | N88: 1.1058 | O88: 1.0998 | P88: 1.132
A89: 2022 estimate | B89: 24542.7 | C89: 1.1932 | D89: 1.1775 | E89: 1.1631 | F89: 1.1802 | G89: 1.1748 | H89: 1.1748 | I89: 1.1752 | J89: 1.252 | K89: 1.1932 | L89: 1.236 | M89: 1.2061 | N89: 1.1262 | O89: 1.1219 | P89: 1.1548
A90: 2023 estimate | B90: 25790.7 | C90: 1.2171 | D90: 1.2037 | E90: 1.1864 | F90: 1.2069 | G90: 1.2014 | H90: 1.2014 | I90: 1.2017 | J90: 1.2893 | K90: 1.2171 | L90: 1.2608 | M90: 1.2303 | N90: 1.1481 | O90: 1.1444 | P90: 1.178
A91: 2024 estimate | B91: 27104.1 | C91: 1.2416 | D91: 1.2307 | E91: 1.2103 | F91: 1.2344 | G91: 1.2287 | H91: 1.2286 | I91: 1.2289 | J91: 1.3285 | K91: 1.2416 | L91: 1.2862 | M91: 1.2551 | N91: 1.1703 | O91: 1.1674 | P91: 1.2017
A92: 2025 estimate | B92: 28472.7 | C92: 1.2665 | D92: 1.2579 | E92: 1.2346 | F92: 1.262 | G92: 1.2566 | H92: 1.2565 | I92: 1.2568 | J92: 1.3693 | K92: 1.2665 | L92: 1.312 | M92: 1.2803 | N92: 1.193 | O92: 1.1909 | P92: 1.2258
A93: Note: Constant dollar research and development outlays are based on the GDP (chained) price index.
A95: inflation Factor 2020-2018 | C95: =C87/C85 -> 1.039521392
